Workbook

Sheet Model Description
B2: Tab | C2: Description
B3: Summary | C3: This tab allows the user to input the year, baseline region, and other assumptions. Includes outputs of average bills for current and inputted year.
C4: Bundled represents customers that we procure gas for. System refers to all customer classes combined. Total System for a customer class includes Bundled + Unbundled.
B5: Authorized Rev Req | C5: This tab shows the authorized revenue requirement for each line item that is in existing rates.
B6: Incremental Rev Req | C6: This tab contains several sections: (i) Approved Application(s), (ii) Pending Application(s) Not Yet Approved, and (iii) Applications Projected to be Filed.
C7: The Approved Application(s) section shows the authorized revenue requirement for each line item forecasted out by year.
C8: The Pending Application(s) Not Yet Approved section includes pending advice letters or applications for new proceedings and any pending increases or decreases to current line items.
B9: SAR and RAR | C9: This tab shows the total revenue and the allocated revenue used to calculate Residential rates for the inputted year.
C10: The Residential percent allocations for the Revenue Recovery Mechanisms are estimated using the detailed Cost Allocation and Rate Design Model.
B11: Res Bill Impact | C11: This tab shows the calculation for Residential rates and average monthly bills.
B12: Hypothetical Tabs | C12: These tabs allow the user to estimate rate impacts from hypothetical revenue requirement changes relative to current rates.
B14: *IMPORTANT NOTE: | C14: CRT model uses current year CRT-calculated rates for comparison with future rates. For Hypothetical tabs, CRT uses current rates.

Sheet Summary
B1: Inputs: | G1: Assumptions:
C2: =CONCATENATE("Rate Impact for Year (",SetUp!J5,"-",SetUp!J9,")") -> Rate Impact for Year (2024-2028) | D2: 2024 | G2: Current Effective Rates | I2: =CurrentEffectiveRateDate -> 2024-12-01
C3: Baseline Region - (Residential bill) | D3: SDG&E | G3: Sales Forecast | I3: 2024
G4: Residential bill calculated using | I4: Schedule GR, Basic, Bundled, Single Family
G5: Non-CARE bill impact calculated with average summer usage of | K5: =IF($D$3="ALL",SUMPRODUCT('Res Bill Impact'!Q22:Q25,'Res Bill Impact'!U22:U25),VLOOKUP($D$3,'Res Bill Impact'!$P$22:$T$25,2,FALSE)) -> 15.83333333 | L5: therms per month
B6: Pending Proceedings | D6: Include in Impact (Y) | E6: Applicable Year(s) | G6: Non-CARE bill impact calculated with average winter usage of | K6: =IF($D$3="ALL",SUMPRODUCT('Res Bill Impact'!R22:R25,'Res Bill Impact'!U22:U25),VLOOKUP(D$3,'Res Bill Impact'!$P$22:$T$25,3,FALSE)) -> 34 | L6: therms per month
B7: ='Incremental Rev Req'!A92 -> 2024 GRC Application | D7: Y | E7: 2024-2027 | G7: CARE bill impact calculated with average summer usage of | K7: =IF($D$3="ALL",SUMPRODUCT('Res Bill Impact'!S22:S25,'Res Bill Impact'!V22:V25),VLOOKUP($D$3,'Res Bill Impact'!$P$22:$T$25,4,FALSE)) -> 15.5 | L7: therms per month
B8: ='Incremental Rev Req'!A93 -> Pipeline Safety Enhancement Plan (PSEP) -Local T | D8: Y | E8: 2024-2027 | G8: CARE bill impact calculated with average winter usage of | K8: =IF($D$3="ALL",SUMPRODUCT('Res Bill Impact'!T22:T25,'Res Bill Impact'!V22:V25),VLOOKUP($D$3,'Res Bill Impact'!$P$22:$T$25,5,FALSE)) -> 28.16666667 | L8: therms per month
B9: ='Incremental Rev Req'!A94 -> Pipeline Safety Enhancement Plan (PSEP) - High Pressure Distribution | D9: Y | E9: 2024-2027 | G9: Average monthly usage is for all customers (Non-CARE and CARE) based on seasonal usage in | L9: 2023
B10: ='Incremental Rev Req'!A100 -> Cost Allocation Proceeding | D10: Y | E10: 2024-2026 | G10: Summer season | I10: 6 | J10: months
G11: Winter Season | I11: =12-I10 -> 6 | J11: months
B23: Outputs:
D24: (A) | E24: (B) | F24: (C) | G24: (D) | H24: (D)/(A) | I24: (D)/(B) | J24: (D)/(C) | N24: (A) | O24: (B) | P24: (C) | Q24: (D) | R24: (D)/(A) | S24: (D)/(B) | T24: (D)/(C)
B25: Bundled Average Rates - ¢/therm | L25: Total System (Bundled and Unbundled) Average Rates - ¢/th
B26: Customer Group | D26: =BOYEffectiveRateDate -> 2024-01-01 | E26: =CurrentEffectiveRateDate -> 2024-12-01 | F26: =$D$2&" Authorized" -> 2024 Authorized | G26: =$D$2&" w/Pending" -> 2024 w/Pending | H26: =CONCATENATE("% Change over ",TEXT(BOYEffectiveRateDate,"m/d/yyyy")) -> % Change over 1/1/2024 | I26: =CONCATENATE("% Change over ",TEXT(CurrentEffectiveRateDate,"m/d/yyyy")) -> % Change over 12/1/2024 | J26: % Change over Authorized | L26: Customer Group | N26: =$D$26 -> 2024-01-01 | O26: =$E$26 -> 2024-12-01 | P26: =$D$2&" Authorized" -> 2024 Authorized | Q26: =$D$2&" w/Pending" -> 2024 w/Pending | R26: =$H$26 -> % Change over 1/1/2024 | S26: =$I$26 -> % Change over 12/1/2024 | T26: % Change over Authorized
B27: Residential | D27: 227.4929122 | E27: ='SAR and RAR'!G28 -> 229.8418718 | F27: ='SAR and RAR'!H28 -> 229.8418718 | G27: ='SAR and RAR'!I28 -> 285.5772858 | H27: =$G27/D27-1 -> 0.2553238823 | I27: 0.2424946054 | J27: 0.2424946054 | L27: Total Residential (RAR) | N27: 227.1298467 | O27: ='SAR and RAR'!R28 -> 229.4887722 | P27: ='SAR and RAR'!S28 -> 229.4887722 | Q27: ='SAR and RAR'!T28 -> 285.2241862 | R27: =$Q27/N27-1 -> 0.2557758936 | S27: =$Q27/O27-1 -> 0.2428677163 | T27: 0.2428677163
B28: System | D28: 126.3979664 | E28: ='SAR and RAR'!G29 -> 127.7038916 | F28: ='SAR and RAR'!H29 -> 127.7038916 | G28: ='SAR and RAR'!I29 -> 147.2563204 | H28: 0.1650212785 | I28: 0.1531075413 | J28: 0.1531075413 | L28: Total System (SAR) | N28: 94.96309035 | O28: ='SAR and RAR'!R29 -> 96.27915971 | P28: ='SAR and RAR'!S29 -> 96.27915971 | Q28: ='SAR and RAR'!T29 -> 115.8315886 | R28: 0.2197537815 | S28: 0.203080593 | T28: 0.203080593
B31: Basic Bundled Residential Monthly Average Bills
D32: =BOYEffectiveRateDate -> 2024-01-01 | E32: =CurrentEffectiveRateDate -> 2024-12-01 | F32: =$D$2&" Authorized" -> 2024 Authorized | G32: =$D$2&" w/Pending" -> 2024 w/Pending | H32: =CONCATENATE("% Change over ",TEXT(BOYEffectiveRateDate,"m/d/yyyy")) -> % Change over 1/1/2024 | I32: =CONCATENATE("% Change over ",TEXT(CurrentEffectiveRateDate,"m/d/yyyy")) -> % Change over 12/1/2024 | J32: % Change over Authorized
B33: Non-CARE | D33: =((D39*$I$10)+(D45*$I$11))/12 -> 57.877793 | E33: =((E39*$I$10)+(E45*$I$11))/12 -> 58.46786506 | F33: 58.46786506 | G33: 72.66177046 | H33: =$G33/D33-1 -> 0.2554343678 | I33: 0.2427642158 | J33: 0.2427642158
B34: CARE | D34: =((D40*$I$10)+(D46*$I$11))/12 -> 39.24719669 | E34: 39.50500836 | F34: 39.65044344 | G34: 49.27495347 | H34: 0.2555024979 | I34: 0.2473090253 | J34: 0.2427339823
B35: Total | D35: =((D41*$I$10)+(D47*$I$11))/12 -> 54.96264917 | E35: 55.50073218 | F35: 55.52348852 | G35: 69.0024171 | H35: 0.25544198 | I35: 0.2432703927 | J35: 0.2427608375 | M35: ='Res Bill Impact'!P18 -> Basic Bundled
M36: ='Res Bill Impact'!P19 -> 2023 Recorded Data - Average Monthly Usage - ALL-BASIC th
B37: Basic Bundled Residential Monthly Average Bills - Summer | M37: Climate Zone | N37: Summer | O37: Winter | P37: Summer | Q37: Winter
D38: =BOYEffectiveRateDate -> 2024-01-01 | E38: =CurrentEffectiveRateDate -> 2024-12-01 | F38: =$D$2&" Authorized" -> 2024 Authorized | G38: =$D$2&" w/Pending" -> 2024 w/Pending | H38: =CONCATENATE("% Change over ",TEXT(BOYEffectiveRateDate,"m/d/yyyy")) -> % Change over 1/1/2024 | I38: =CONCATENATE("% Change over ",TEXT(CurrentEffectiveRateDate,"m/d/yyyy")) -> % Change over 12/1/2024 | J38: % Change over Authorized | N38: Non-CARE | P38: CARE
B39: Non-CARE | D39: =IF($D$3="All",'Res Bill Impact'!$C$47,(VLOOKUP($D$3,'Res Bill Impact'!$B$43:$J$46,2,FALSE))) -> 37.30494398 | E39: =IF($D$3="All",'Res Bill Impact'!$E$47,(VLOOKUP($D$3,'Res Bill Impact'!$B$43:$J$46,4,FALSE))) -> 37.69034428 | F39: =IF($D$3="All",'Res Bill Impact'!$G$47,(VLOOKUP($D$3,'Res Bill Impact'!$B$43:$J$46,6,FALSE))) -> 37.69034428 | G39: =IF($D$3="All",'Res Bill Impact'!$I$47,(VLOOKUP($D$3,'Res Bill Impact'!$B$43:$J$46,8,FALSE))) -> 46.84026672 | H39: =$G39/D39-1 -> 0.2556047997 | I39: =$G39/E39-1 -> 0.24276569 | J39: =$G39/F39-1 -> 0.24276569 | M39: =Zones -> SDG&E | N39: ='Res Bill Impact'!Q22 -> 15.83333333 | O39: ='Res Bill Impact'!R22 -> 34 | P39: ='Res Bill Impact'!S22 -> 15.5 | Q39: ='Res Bill Impact'!T22 -> 28.16666667
B40: CARE | D40: =IF($D$3="All",'Res Bill Impact'!$C$57,(VLOOKUP($D$3,'Res Bill Impact'!$B$53:$J$56,2,FALSE))) -> 28.57777554 | E40: =IF($D$3="All",'Res Bill Impact'!$E$57,(VLOOKUP($D$3,'Res Bill Impact'!$B$53:$J$56,4,FALSE))) -> 28.8782327 | F40: =IF($D$3="All",'Res Bill Impact'!$G$57,(VLOOKUP($D$3,'Res Bill Impact'!$B$53:$J$56,6,FALSE))) -> 28.8782327 | G40: =IF($D$3="All",'Res Bill Impact'!$I$57,(VLOOKUP($D$3,'Res Bill Impact'!$B$53:$J$56,8,FALSE))) -> 35.88805868 | H40: =$G40/D40-1 -> 0.255803085 | I40: =$G40/E40-1 -> 0.2427373603 | J40: 0.2427373603 | M40: 0 | N40: ='Res Bill Impact'!Q23 -> 0 | O40: ='Res Bill Impact'!R23 -> 0 | P40: ='Res Bill Impact'!S23 -> 0 | Q40: ='Res Bill Impact'!T23 -> 0
B41: Total | D41: =D39*(1-'SAR and RAR'!$AC$15)+D40*'SAR and RAR'!$AC$15 -> 35.93939718 | E41: =E39*(1-'SAR and RAR'!$AC$15)+E40*'SAR and RAR'!$AC$15 -> 36.31150636 | F41: =F39*(1-'SAR and RAR'!$AC$15)+F40*'SAR and RAR'!$AC$15 -> 36.31150636 | G41: =G39*(1-'SAR and RAR'!$AC$15)+G40*'SAR and RAR'!$AC$15 -> 45.12656624 | H41: =$G41/D41-1 -> 0.2556294704 | I41: 0.2427621646 | J41: 0.2427621646 | M41: 0 | N41: ='Res Bill Impact'!Q24 -> 0 | O41: ='Res Bill Impact'!R24 -> 0 | P41: ='Res Bill Impact'!S24 -> 0 | Q41: ='Res Bill Impact'!T24 -> 0
M42: 0 | N42: ='Res Bill Impact'!Q25 -> 0 | O42: ='Res Bill Impact'!R25 -> 0 | P42: ='Res Bill Impact'!S25 -> 0 | Q42: ='Res Bill Impact'!T25 -> 0
B43: Basic Bundled Residential Monthly Average Bills - Winter
D44: =BOYEffectiveRateDate -> 2024-01-01 | E44: =CurrentEffectiveRateDate -> 2024-12-01 | F44: =$D$2&" Authorized" -> 2024 Authorized | G44: =$D$2&" w/Pending" -> 2024 w/Pending | H44: =CONCATENATE("% Change over ",TEXT(BOYEffectiveRateDate,"m/d/yyyy")) -> % Change over 1/1/2024 | I44: =CONCATENATE("% Change over ",TEXT(CurrentEffectiveRateDate,"m/d/yyyy")) -> % Change over 12/1/2024 | J44: % Change over Authorized
B45: Non-CARE | D45: =IF($D$3="All",'Res Bill Impact'!$D$47,(VLOOKUP($D$3,'Res Bill Impact'!$B$43:$J$46,3,FALSE))) -> 78.45064202 | E45: =IF($D$3="All",'Res Bill Impact'!$F$47,(VLOOKUP($D$3,'Res Bill Impact'!$B$43:$J$46,5,FALSE))) -> 79.24538583 | F45: =IF($D$3="All",'Res Bill Impact'!$H$47,(VLOOKUP($D$3,'Res Bill Impact'!$B$43:$J$46,7,FALSE))) -> 79.24538583 | G45: =IF($D$3="All",'Res Bill Impact'!$J$47,(VLOOKUP($D$3,'Res Bill Impact'!$B$43:$J$46,9,FALSE))) -> 98.48327421 | H45: =$G45/D45-1 -> 0.2553533238 | I45: =$G45/E45-1 -> 0.2427635146 | J45: 0.2427635146
B46: CARE | D46: =IF($D$3="All",'Res Bill Impact'!$D$57,(VLOOKUP($D$3,'Res Bill Impact'!$B$53:$J$56,3,FALSE))) -> 49.91661784 | E46: =IF($D$3="All",'Res Bill Impact'!$F$57,(VLOOKUP($D$3,'Res Bill Impact'!$B$53:$J$56,5,FALSE))) -> 50.13178402 | F46: =IF($D$3="All",'Res Bill Impact'!$H$57,(VLOOKUP($D$3,'Res Bill Impact'!$B$53:$J$56,7,FALSE))) -> 50.42265417 | G46: =IF($D$3="All",'Res Bill Impact'!$J$57,(VLOOKUP($D$3,'Res Bill Impact'!$B$53:$J$56,9,FALSE))) -> 62.66184827 | H46: 0.2553304086 | I46: 0.2499425163 | J46: 0.2427320476
B47: Total | D47: =D45*(1-'SAR and RAR'!$AC$15)+D46*'SAR and RAR'!$AC$15 -> 73.98590116 | E47: =E45*(1-'SAR and RAR'!$AC$15)+E46*'SAR and RAR'!$AC$15 -> 74.68995801 | F47: =F45*(1-'SAR and RAR'!$AC$15)+F46*'SAR and RAR'!$AC$15 -> 74.73547069 | G47: =G45*(1-'SAR and RAR'!$AC$15)+G46*'SAR and RAR'!$AC$15 -> 92.87826795 | H47: 0.2553509047 | I47: 0.2435174745 | J47: 0.2427601927
B50: Basic Bundled Essential Use Residential Monthly Average Bills
D51: =BOYEffectiveRateDate -> 2024-01-01 | E51: =CurrentEffectiveRateDate -> 2024-12-01 | F51: =$D$2&" Authorized" -> 2024 Authorized | G51: =$D$2&" w/Pending" -> 2024 w/Pending | H51: =CONCATENATE("% Change over ",TEXT(BOYEffectiveRateDate,"m/d/yyyy")) -> % Change over 1/1/2024 | I51: =CONCATENATE("% Change over ",TEXT(CurrentEffectiveRateDate,"m/d/yyyy")) -> % Change over 12/1/2024 | J51: % Change over Authorized
B52: Essential Use - Non-CARE | D52: =((D58*$I$10)+(D64*$I$11))/12 -> 45.24149898 | E52: =((E58*$I$10)+(E64*$I$11))/12 -> 45.69103173 | F52: 45.69103173 | G52: 56.7830509 | H52: =$G52/D52-1 -> 0.2551098478 | I52: 0.2427614076 | J52: 0.2427614076
B53: Essential Use - CARE | D53: =((D59*$I$10)+(D65*$I$11))/12 -> 35.44375231 | E53: 35.65333016 | F53: 35.80306805 | G53: 44.49362007 | H53: 0.2553304086 | I53: 0.2479513097 | J53: 0.2427320476
B54: Total | D54: =D52*(1-'SAR and RAR'!$AC$15)+D53*'SAR and RAR'!$AC$15 -> 43.70843797 | E54: =E52*(1-'SAR and RAR'!$AC$15)+E53*'SAR and RAR'!$AC$15 -> 44.12042479 | F54: =F52*(1-'SAR and RAR'!$AC$15)+F53*'SAR and RAR'!$AC$15 -> 44.14385439 | G54: =G52*(1-'SAR and RAR'!$AC$15)+G53*'SAR and RAR'!$AC$15 -> 54.86011414 | H54: =$G54/D54-1 -> 0.2551378335 | I54: =$G54/E54-1 -> 0.2434176326 | J54: 0.2427576816
B56: Basic Bundled Essential Use Residential Monthly Average Bills - Summer | M56: Monthly Tier 1 Baseline Allowance -BASIC (th)
D57: =BOYEffectiveRateDate -> 2024-01-01 | E57: =CurrentEffectiveRateDate -> 2024-12-01 | F57: =$D$2&" Authorized" -> 2024 Authorized | G57: =$D$2&" w/Pending" -> 2024 w/Pending | H57: =CONCATENATE("% Change over ",TEXT(BOYEffectiveRateDate,"m/d/yyyy")) -> % Change over 1/1/2024 | I57: =CONCATENATE("% Change over ",TEXT(CurrentEffectiveRateDate,"m/d/yyyy")) -> % Change over 12/1/2024 | J57: % Change over Authorized | M57: Climate Zone | N57: Summer 2021 | O57: Winter 2021
B58: Essential Use - Non-CARE | D58: =IF($D$3="All",'Res Bill Impact'!C67,(VLOOKUP($D$3,'Res Bill Impact'!$B$63:$J$66,2,FALSE))) -> 24.88282444 | E58: =IF($D$3="All",'Res Bill Impact'!E67,(VLOOKUP($D$3,'Res Bill Impact'!$B$63:$J$66,4,FALSE))) -> 25.13006745 | F58: =IF($D$3="All",'Res Bill Impact'!G67,(VLOOKUP($D$3,'Res Bill Impact'!$B$63:$J$66,6,FALSE))) -> 25.13006745 | G58: =IF($D$3="All",'Res Bill Impact'!I67,(VLOOKUP($D$3,'Res Bill Impact'!$B$63:$J$66,8,FALSE))) -> 31.230678 | H58: =$G58/D58-1 -> 0.2551098478 | I58: =$G58/E58-1 -> 0.2427614076 | J58: =$G58/F58-1 -> 0.2427614076 | M58: =Zones -> SDG&E | N58: ='Res Bill Impact'!I22 -> 11 | O58: ='Res Bill Impact'!J22 -> 29
B59: Essential Use - CARE | D59: =IF($D$3="All",'Res Bill Impact'!C77,(VLOOKUP($D$3,'Res Bill Impact'!$B$73:$J$76,2,FALSE))) -> 19.49406377 | E59: =IF($D$3="All",'Res Bill Impact'!E77,(VLOOKUP($D$3,'Res Bill Impact'!$B$73:$J$76,4,FALSE))) -> 19.69168743 | F59: =IF($D$3="All",'Res Bill Impact'!G77,(VLOOKUP($D$3,'Res Bill Impact'!$B$73:$J$76,6,FALSE))) -> 19.69168743 | G59: =IF($D$3="All",'Res Bill Impact'!I77,(VLOOKUP($D$3,'Res Bill Impact'!$B$73:$J$76,8,FALSE))) -> 24.47149104 | H59: =$G59/D59-1 -> 0.2553304086 | I59: 0.2427320476 | J59: 0.2427320476 | M59: 0 | N59: ='Res Bill Impact'!I23 -> 0 | O59: ='Res Bill Impact'!J23 -> 0
B60: Total | D60: =D58*(1-'SAR and RAR'!$AC$15)+D59*'SAR and RAR'!$AC$15 -> 24.03964089 | E60: =E58*(1-'SAR and RAR'!$AC$15)+E59*'SAR and RAR'!$AC$15 -> 24.27911992 | F60: =F58*(1-'SAR and RAR'!$AC$15)+F59*'SAR and RAR'!$AC$15 -> 24.27911992 | G60: =G58*(1-'SAR and RAR'!$AC$15)+G59*'SAR and RAR'!$AC$15 -> 30.17306278 | H60: =$G60/D60-1 -> 0.2551378335 | I60: =$G60/E60-1 -> 0.2427576816 | J60: 0.2427576816 | M60: 0 | N60: ='Res Bill Impact'!I24 -> 0 | O60: ='Res Bill Impact'!J24 -> 0
M61: 0 | N61: ='Res Bill Impact'!I25 -> 0 | O61: ='Res Bill Impact'!J25 -> 0
B62: Basic Bundled Essential Use Residential Monthly Average Bills - Winter
D63: =BOYEffectiveRateDate -> 2024-01-01 | E63: =CurrentEffectiveRateDate -> 2024-12-01 | F63: =$D$2&" Authorized" -> 2024 Authorized | G63: =$D$2&" w/Pending" -> 2024 w/Pending | H63: =CONCATENATE("% Change over ",TEXT(BOYEffectiveRateDate,"m/d/yyyy")) -> % Change over 1/1/2024 | I63: =CONCATENATE("% Change over ",TEXT(CurrentEffectiveRateDate,"m/d/yyyy")) -> % Change over 12/1/2024 | J63: % Change over Authorized
B64: Essential Use - Non-CARE | D64: =IF($D$3="All",'Res Bill Impact'!D67,(VLOOKUP($D$3,'Res Bill Impact'!$B$63:$J$66,3,FALSE))) -> 65.60017353 | E64: =IF($D$3="All",'Res Bill Impact'!F67,(VLOOKUP($D$3,'Res Bill Impact'!$B$63:$J$66,5,FALSE))) -> 66.25199601 | F64: =IF($D$3="All",'Res Bill Impact'!H67,(VLOOKUP($D$3,'Res Bill Impact'!$B$63:$J$66,7,FALSE))) -> 66.25199601 | G64: =IF($D$3="All",'Res Bill Impact'!J67,(VLOOKUP($D$3,'Res Bill Impact'!$B$63:$J$66,9,FALSE))) -> 82.33542381 | H64: =$G64/D64-1 -> 0.2551098478 | I64: =$G64/E64-1 -> 0.2427614076 | J64: =$G64/F64-1 -> 0.2427614076
B65: Essential Use - CARE | D65: =IF($D$3="All",'Res Bill Impact'!D77,(VLOOKUP($D$3,'Res Bill Impact'!$B$73:$J$76,3,FALSE))) -> 51.39344085 | E65: =IF($D$3="All",'Res Bill Impact'!F77,(VLOOKUP($D$3,'Res Bill Impact'!$B$73:$J$76,5,FALSE))) -> 51.6149729 | F65: =IF($D$3="All",'Res Bill Impact'!H77,(VLOOKUP($D$3,'Res Bill Impact'!$B$73:$J$76,7,FALSE))) -> 51.91444868 | G65: =IF($D$3="All",'Res Bill Impact'!J77,(VLOOKUP($D$3,'Res Bill Impact'!$B$73:$J$76,9,FALSE))) -> 64.5157491 | H65: =$G65/D65-1 -> 0.2553304086 | I65: 0.2499425163 | J65: 0.2427320476
B66: Total | D66: =D64*(1-'SAR and RAR'!$AC$15)+D65*'SAR and RAR'!$AC$15 -> 63.37723506 | E66: =E64*(1-'SAR and RAR'!$AC$15)+E65*'SAR and RAR'!$AC$15 -> 63.96172966 | F66: =F64*(1-'SAR and RAR'!$AC$15)+F65*'SAR and RAR'!$AC$15 -> 64.00858887 | G66: =G64*(1-'SAR and RAR'!$AC$15)+G65*'SAR and RAR'!$AC$15 -> 79.54716551 | H66: 0.2551378335 | I66: 0.2436681423 | J66: 0.2427576816
B69: Basic Bundled Typical Residential Monthly Average Bills
D70: =BOYEffectiveRateDate -> 2024-01-01 | E70: =CurrentEffectiveRateDate -> 2024-12-01 | F70: =$D$2&" Authorized" -> 2024 Authorized | G70: =$D$2&" w/Pending" -> 2024 w/Pending | H70: =CONCATENATE("% Change over ",TEXT(BOYEffectiveRateDate,"m/d/yyyy")) -> % Change over 1/1/2024 | I70: =CONCATENATE("% Change over ",TEXT(CurrentEffectiveRateDate,"m/d/yyyy")) -> % Change over 12/1/2024 | J70: % Change over Authorized
B71: 5-Year Average Usage - Non-CARE | D71: =((D77*$I$10)+(D83*$I$11))/12 -> 57.74631375 | E71: =((E77*$I$10)+(E83*$I$11))/12 -> 58.33492351 | F71: 58.33492351 | G71: 72.49655413 | H71: =$G71/D71-1 -> 0.2554317224 | I71: 0.2427641929 | J71: 0.2427641929
C72: 5-Year Average Usage - CARE | D72: =((D78*$I$10)+(D84*$I$11))/12 -> 36.99617432 | E72: 37.2369169 | F72: 37.37535795 | G72: 46.44761408 | H72: =$G72/D72-1 -> 0.2554707329 | I72: =$G72/E72-1 -> 0.2473539152 | J72: =$G72/F72-1 -> 0.2427336252
B73: Total | D73: =((D79*$I$10)+(D85*$I$11))/12 -> 54.49952336 | E73: 55.03370207 | F73: 55.05536405 | G73: 68.42065631 | H73: 0.255435866 | I73: 0.2432501127 | J73: 0.2427609459 | M73: ='Res Bill Impact'!P27 -> Typical Bundled
M74: ='Res Bill Impact'!P28 -> 2019-2023 Recorded Data - Average Monthly Usage - ALL-BASIC th
B75: Basic Bundled Typical Residential Monthly Average Bills - Summer | M75: Climate Zone | N75: Summer | O75: Winter | P75: Summer | Q75: Winter
D76: =BOYEffectiveRateDate -> 2024-01-01 | E76: =CurrentEffectiveRateDate -> 2024-12-01 | F76: =$D$2&" Authorized" -> 2024 Authorized | G76: =$D$2&" w/Pending" -> 2024 w/Pending | H76: =CONCATENATE("% Change over ",TEXT(BOYEffectiveRateDate,"m/d/yyyy")) -> % Change over 1/1/2024 | I76: =CONCATENATE("% Change over ",TEXT(CurrentEffectiveRateDate,"m/d/yyyy")) -> % Change over 12/1/2024 | J76: % Change over Authorized | N76: Non-CARE | P76: CARE
B77: 5-Year Average Usage - Non-CARE | D77: =IF($D$3="All",'Res Bill Impact'!C87,(VLOOKUP($D$3,'Res Bill Impact'!$B$83:$J$86,2,FALSE))) -> 36.86393151 | E77: =IF($D$3="All",'Res Bill Impact'!E87,(VLOOKUP($D$3,'Res Bill Impact'!$B$83:$J$86,4,FALSE))) -> 37.24442693 | F77: =IF($D$3="All",'Res Bill Impact'!G87,(VLOOKUP($D$3,'Res Bill Impact'!$B$83:$J$86,6,FALSE))) -> 37.24442693 | G77: =IF($D$3="All",'Res Bill Impact'!I87,(VLOOKUP($D$3,'Res Bill Impact'!$B$83:$J$86,8,FALSE))) -> 46.28609211 | H77: =$G77/D77-1 -> 0.2555929388 | I77: 0.2427655874 | J77: 0.2427655874 | M77: =Zones -> SDG&E | N77: ='Res Bill Impact'!Q31 -> 15.66173941 | O77: ='Res Bill Impact'!R31 -> 34.06927917 | P77: ='Res Bill Impact'!S31 -> 14.45891468 | Q77: ='Res Bill Impact'!T31 -> 26.81212205
C78: 5-Year Average Usage - CARE | D78: =IF($D$3="All",'Res Bill Impact'!C97,(VLOOKUP($D$3,'Res Bill Impact'!$B$93:$J$96,2,FALSE))) -> 26.47623799 | E78: =IF($D$3="All",'Res Bill Impact'!E97,(VLOOKUP($D$3,'Res Bill Impact'!$B$93:$J$96,4,FALSE))) -> 26.75290439 | F78: =IF($D$3="All",'Res Bill Impact'!G97,(VLOOKUP($D$3,'Res Bill Impact'!$B$93:$J$96,6,FALSE))) -> 26.75290439 | G78: =IF($D$3="All",'Res Bill Impact'!I97,(VLOOKUP($D$3,'Res Bill Impact'!$B$93:$J$96,8,FALSE))) -> 33.24680958 | H78: =$G78/D78-1 -> 0.2557225687 | I78: =$G78/E78-1 -> 0.2427364556 | J78: =$G78/F78-1 -> 0.2427364556 | M78: 0 | N78: ='Res Bill Impact'!Q32 -> 0 | O78: ='Res Bill Impact'!R32 -> 0 | P78: ='Res Bill Impact'!S32 -> 0 | Q78: ='Res Bill Impact'!T32 -> 0
B79: Total | D79: =D77*(1-'SAR and RAR'!$AC$15)+D78*'SAR and RAR'!$AC$15 -> 35.23856106 | E79: =E77*(1-'SAR and RAR'!$AC$15)+E78*'SAR and RAR'!$AC$15 -> 35.60281027 | F79: =F77*(1-'SAR and RAR'!$AC$15)+F78*'SAR and RAR'!$AC$15 -> 35.60281027 | G79: =G77*(1-'SAR and RAR'!$AC$15)+G78*'SAR and RAR'!$AC$15 -> 44.24582547 | H79: 0.2556081785 | I79: 0.2427621622 | J79: 0.2427621622 | M79: 0 | N79: ='Res Bill Impact'!Q33 -> 0 | O79: ='Res Bill Impact'!R33 -> 0 | P79: ='Res Bill Impact'!S33 -> 0 | Q79: ='Res Bill Impact'!T33 -> 0
M80: 0 | N80: ='Res Bill Impact'!Q34 -> 0 | O80: ='Res Bill Impact'!R34 -> 0 | P80: ='Res Bill Impact'!S34 -> 0 | Q80: ='Res Bill Impact'!T34 -> 0
B81: Basic Bundled Typical Residential Monthly Average Bills - Winter
D82: =BOYEffectiveRateDate -> 2024-01-01 | E82: =CurrentEffectiveRateDate -> 2024-12-01 | F82: =$D$2&" Authorized" -> 2024 Authorized | G82: =$D$2&" w/Pending" -> 2024 w/Pending | H82: =CONCATENATE("% Change over ",TEXT(BOYEffectiveRateDate,"m/d/yyyy")) -> % Change over 1/1/2024 | I82: =CONCATENATE("% Change over ",TEXT(CurrentEffectiveRateDate,"m/d/yyyy")) -> % Change over 12/1/2024 | J82: % Change over Authorized
B83: 5-Year Average Usage - Non-CARE | D83: =IF($D$3="All",'Res Bill Impact'!D87,(VLOOKUP($D$3,'Res Bill Impact'!$B$83:$J$86,3,FALSE))) -> 78.62869598 | E83: =IF($D$3="All",'Res Bill Impact'!F87,(VLOOKUP($D$3,'Res Bill Impact'!$B$83:$J$86,5,FALSE))) -> 79.42542009 | F83: =IF($D$3="All",'Res Bill Impact'!H87,(VLOOKUP($D$3,'Res Bill Impact'!$B$83:$J$86,7,FALSE))) -> 79.42542009 | G83: =IF($D$3="All",'Res Bill Impact'!J87,(VLOOKUP($D$3,'Res Bill Impact'!$B$83:$J$86,9,FALSE))) -> 98.70701615 | H83: =$G83/D83-1 -> 0.2553561383 | I83: 0.2427635389 | J83: 0.2427635389
C84: 5-Year Average Usage - CARE | D84: =IF($D$3="All",'Res Bill Impact'!D97,(VLOOKUP($D$3,'Res Bill Impact'!$B$93:$J$96,3,FALSE))) -> 47.51611064 | E84: =IF($D$3="All",'Res Bill Impact'!F97,(VLOOKUP($D$3,'Res Bill Impact'!$B$93:$J$96,5,FALSE))) -> 47.72092941 | F84: =IF($D$3="All",'Res Bill Impact'!H97,(VLOOKUP($D$3,'Res Bill Impact'!$B$93:$J$96,7,FALSE))) -> 47.99781152 | G84: =IF($D$3="All",'Res Bill Impact'!J97,(VLOOKUP($D$3,'Res Bill Impact'!$B$93:$J$96,9,FALSE))) -> 59.64841859 | H84: =$G84/D84-1 -> 0.2553304086 | I84: =$G84/E84-1 -> 0.2499425163 | J84: =$G84/F84-1 -> 0.2427320476
B85: Total | D85: =D83*(1-'SAR and RAR'!$AC$15)+D84*'SAR and RAR'!$AC$15 -> 73.76048566 | E85: =E83*(1-'SAR and RAR'!$AC$15)+E84*'SAR and RAR'!$AC$15 -> 74.46459388 | F85: =F83*(1-'SAR and RAR'!$AC$15)+F84*'SAR and RAR'!$AC$15 -> 74.50791784 | G85: =G83*(1-'SAR and RAR'!$AC$15)+G84*'SAR and RAR'!$AC$15 -> 92.59548714 | H85: 0.2553535449 | I85: 0.2434834103 | J85: 0.2427603647

Sheet Authorized Rev Req
A1: Annual Period 2024
A2: Reporting Date: Quarter Ended December 31
B4: Revenue Requirement Date: | C4: 2022-01-01 | D4: 2023-01-01 | E4: 2023-03-01 | F4: 2023-08-01 | G4: 2023-11-01 | H4: 2024-01-01 | I4: 2024-07-01 | J4: 2024-10-01
B5: Advice Letter: | C5: AL 3046-G | D5: AL 3149-G | E5: AL 3163-G | F5: AL 3213-G | G5: AL 3244-G | H5: AL 3261-G | I5: AL 3312-G | J5: AL-3345
A6: Filing Description | B6: Authority for Revenue Requirement as of 10/1/2024 | C6: Authorized Revenue Requirement ($000) | D6: Authorized Revenue Requirement ($000) | E6: Authorized Revenue Requirement ($000) | F6: Authorized Revenue Requirement ($000) | G6: Authorized Revenue Requirement ($000) | H6: Authorized Revenue Requirement ($000) | I6: Authorized Revenue Requirement ($000) | J6: Authorized Revenue Requirement ($000) | K6: Revenue Recovery Mechanism | L6: Balancing Account
A7: Safety Affordability Reliability Proceedings
A8: Total Allocated Base Margin | B8: D.19-09-051, A.22-05-016 | C8: 412393.9278 | D8: 412992.2744 | E8: 412992.2744 | F8: 412992.2744 | G8: 412992.2744 | H8: 417772.1395 | I8: 417344.7414 | J8: 417344.7414 | K8: Allocated Base Margin | L8: N
A9: SCG Transport excl Core Storge & Load Balance $000 | B9: D.20-02-045, AL 3149-G, AL 3129-G-A and AL 3129-G, 3247-G-B | C9: 10101.54873 | D9: 18927.30151 | E9: 18927.30151 | F9: 19163.89443 | G9: 16390.05907 | H9: 59110.52143 | I9: 59221.34654 | J9: 59221.22817 | K9: ECPT | L9: N
A10: SCG Core Seasonal Storage | B10: D.20-02-045, AL 3149-G, AL 3129-G-A and AL 3129-G, 3247-G-B | C10: 14374.70092 | D10: 18907.65713 | E10: 18907.65713 | F10: 18907.65713 | G10: 17001.41011 | H10: 17001.41011 | I10: 17001.41011 | J10: 17001.41011 | K10: Seasonal Storage | L10: N
A11: SCG Load Balancing Allocated to ALL SDGE $000 | B11: D.20-02-045, AL 3149-G, AL 3129-G-A and AL 3129-G, 3247-G-B | C11: 9102.083783 | D11: 11569.31898 | E11: 11569.31898 | F11: 11569.31898 | G11: 11389.10272 | H11: 11389.10272 | I11: 11389.10272 | J11: 11389.10272 | K11: ECPT | L11: N
A12: Pipeline Safety Enhancement Plan (PSEP) -Local T (subtracted from Base Margin and allocated here) | B12: D.19-09-051 | C12: 2576.6109 | D12: 2698.4484 | E12: 2698.4484 | F12: 2698.4484 | G12: 2698.4484 | H12: 2698.4484 | I12: 2698.4484 | J12: 2698.4484 | K12: Local Transmission | L12: N
A13: LUAF | B13: D.20-02-045, AL 3149-G, AL 3129-G-A and AL 3129-G, 3247-G-B | C13: 3180.230322 | D13: 4359.515855 | E13: 4359.515855 | F13: 4359.515855 | G13: 4359.515855 | H13: 3607.524927 | I13: 3722.57939 | J13: 3722.57939 | K13: 46% Res (LUAF, Other) | L13: N
A14: Company Use Gas: Other | B14: D.20-02-045, AL 3149-G, AL 3129-G-A and AL 3129-G, 3247-G-B | C14: 234.7866005 | D14: 321.8496159 | E14: 321.8496159 | F14: 321.8496159 | G14: 321.8496159 | H14: 266.332444 | I14: 274.8265603 | J14: 274.8265603 | K14: ECPT | L14: N
A15: SDG&E NGLAPBA | B15: AL 3149-G, AL 3071-G-B, 3247-G-B | C15: 983.2214892 | D15: 734.7831749 | E15: 734.7831749 | F15: 143.9157346 | G15: 143.9157346 | H15: 666.3843293 | I15: 666.3843293 | J15: 666.3843293 | K15: EPAM | L15: N
A16: SDG&ENERBA - NGLAP Subacct | B16: AL 3149-G, AL 3071-G-B,3247-G-B | C16: 1620.035133 | D16: 5725.637359 | E16: 5725.637359 | F16: 6792.859114 | G16: 6792.859114 | H16: 4950.435699 | I16: 4967.07272 | J16: 4967.07272 | K16: EPAM | L16: N
A17: SDG&E PSEP - 2017 Forecast Application RevReq Capital Cost - Local Transmission | B17: D.20-02-045, AL 3149-G, AL 3129-G-A and AL 3129-G, 3247-G-B | C17: 52.10801562 | D17: 47.13168485 | E17: 47.13168485 | F17: 47.13168485 | G17: 47.13168485 | H17: 48.34878876 | I17: 48.34878876 | J17: 48.34878876 | K17: Local Transmission | L17: N
A18: CFCA | B18: D.20-02-045, AL 3149-G, AL 3129-G-A and AL 3129-G, 3247-G-B | C18: 37541.47962 | D18: 55563.79773 | E18: 55563.79773 | F18: 55563.79773 | G18: 55563.79773 | H18: 25794.18927 | I18: 25794.18927 | J18: 32720.48408 | K18: CFCA | L18: Y
A19: CFCA -NGV only | B19: D.20-02-045, AL 3149-G, AL 3129-G-A and AL 3129-G, 3247-G-B | C19: -210.7232916 | D19: 3011.743206 | E19: 3011.743206 | F19: 3011.743206 | G19: 3011.743206 | H19: 2805.095065 | I19: 2805.095065 | J19: 2805.095065 | K19: Non-Residential | L19: Y
A20: CFCA - C&I shortfall only | B20: D.20-02-045, AL 3149-G, AL 3129-G-A and AL 3129-G, 3247-G-B | C20: 5444.026009 | D20: 40.920424 | E20: 40.920424 | F20: 40.920424 | G20: 40.920424 | H20: 37.8513922 | I20: 37.8513922 | J20: 37.8513922 | K20: Non-Residential | L20: Y
A21: Hazardous Substance Cleanup Cost Acct HSCCA | B21: D.20-02-045, AL 3149-G, AL 3129-G-A and AL 3129-G, 3247-G-B | C21: 290.5117224 | D21: 122.761272 | E21: 122.761272 | F21: 122.761272 | G21: 122.761272 | H21: 72.6337526 | I21: 72.6337526 | J21: 72.6337526 | K21: ECPT | L21: Y
A22: Master Meter Balancing Account (MMBA) | B22: D.20-02-045, AL 3149-G, AL 3129-G-A and AL 3129-G, 3247-G-B | C22: 10311.12029 | D22: 11907.84338 | E22: 11907.84338 | F22: 11907.84338 | G22: 11907.84338 | H22: 15931.34407 | I22: 15931.34407 | J22: 15931.34407 | K22: EPAM | L22: Y
A23: PBOPBA | B23: D.20-02-045, AL 3149-G, AL 3129-G-A and AL 3129-G, 3247-G-B | C23: -623.5169218 | D23: -531.2391745 | E23: -531.2391745 | F23: -531.2391745 | G23: -531.2391745 | H23: -354.9846782 | I23: -354.9846782 | J23: -354.9846782 | K23: EPAM | L23: Y
A24: Pension BA | B24: D.20-02-045, AL 3149-G, AL 3129-G-A and AL 3129-G, 3247-G-B | C24: -575.9313062 | D24: -298.791729 | E24: -298.791729 | F24: -298.791729 | G24: -298.791729 | H24: 51.15053 | I24: 51.15053 | J24: 51.15053 | K24: EPAM | L24: Y
A25: Safety Enhancement Balancing Account - Local Transmission | B25: D.20-02-045, AL 3149-G, AL 3129-G-A and AL 3129-G, 3247-G-B | C25: 3036.463065 | D25: 3084.238556 | E25: 3084.238556 | F25: 3084.238556 | G25: 3084.238556 | H25: 3321.440476 | I25: 3321.440476 | J25: 3321.440476 | K25: Local Transmission | L25: Y
A26: Safety Enhancement Balancing Account - Distribution | B26: D.20-02-045, AL 3149-G, AL 3129-G-A and AL 3129-G, 3247-G-B | C26: 38688.93341 | D26: 39079.21463 | E26: 39079.21463 | F26: 39079.21463 | G26: 39079.21463 | H26: 48957.41731 | I26: 49368.17838 | J26: 49368.17838 | K26: Distribution | L26: Y
A27: Rewards & Penalties Bal Acct RPBA | B27: D.20-02-045, AL 3149-G, AL 3129-G-A and AL 3129-G, 3247-G-B | C27: -127.866075 | D27: 310.9952224 | E27: 310.9952224 | F27: 310.9952224 | G27: 310.9952224 | H27: -119.6922402 | I27: -119.6922402 | J27: -119.6922402 | K27: EPAM | L27: Y
A28: SGPMA - Rev Req for NEXT Year | B28: D.20-02-045, AL 3149-G, AL 3129-G-A and AL 3129-G, 3247-G-B | C28: 1545.235943 | D28: 1545.359812 | E28: 1545.359812 | F28: 1545.359812 | G28: 1545.359812 | H28: 1696.151575 | I28: 1696.151575 | J28: 1696.151575 | K28: ECPT | L28: Y
A29: Integrated Transmission Margin ITBA | B29: D.20-02-045, AL 3149-G, AL 3129-G-A and AL 3129-G, 3247-G-B | C29: 24.5502864 | D29: 704.3505167 | E29: 704.3505167 | F29: 704.3505167 | G29: 704.3505167 | H29: -289.5119998 | I29: -289.5119998 | J29: -289.5119998 | K29: ECPT | L29: Y
A30: Liability Insurance Premium Balancing Account (LIPBA) | B30: D.20-02-045, AL 3149-G, AL 3129-G-A and AL 3129-G, 3247-G-B | C30: 3038.097942 | D30: 4285.391403 | E30: 4285.391403 | F30: 4285.391403 | G30: 4285.391403 | H30: 4093.065411 | I30: 4093.065411 | J30: 4093.065411 | K30: EPAM | L30: Y
A31: Residential Uncollectible Balancing Account | B31: D.20-02-045, AL 3149-G, AL 3129-G-A and AL 3129-G, 3247-G-B | C31: 5629.176086 | D31: 10487.90467 | E31: 10487.90467 | F31: 10487.90467 | G31: 10487.90467 | H31: 26260.6821 | I31: 26260.6821 | J31: 26260.6821 | K31: EPAM | L31: Y
A32: NFCA -Margin Only | B32: D.20-02-045, AL 3149-G, AL 3129-G-A and AL 3129-G, 3247-G-B | C32: -7128.789413 | D32: 3046.525567 | E32: 3046.525567 | F32: 3046.525567 | G32: 3046.525567 | H32: 4377.462357 | I32: 4377.462357 | J32: 4377.462357 | K32: Non-Residential | L32: Y
A33: NFCA -Nonmargin Other | B33: D.20-02-045, AL 3149-G, AL 3129-G-A and AL 3129-G, 3247-G-B | C33: 1705.221976 | D33: 794.8792362 | E33: 794.8792362 | F33: 794.8792362 | G33: 794.8792362 | H33: 6588.188264 | I33: 6588.188264 | J33: 6784.093254 | K33: Non-Residential | L33: Y
A34: NFCA -Nonmargin SCG | B34: D.20-02-045, AL 3149-G, AL 3129-G-A and AL 3129-G, 3247-G-B | C34: -100.2470028 | D34: 132.991378 | E34: 132.991378 | F34: 132.991378 | G34: 132.991378 | H34: -1020.964579 | I34: -1020.964579 | J34: -1020.964579 | K34: Non-Residential | L34: Y
A35: Minimum Bil/Customer Charge Revenue | B35: D.20-02-045, AL 3149-G, AL 3129-G-A and AL 3129-G, 3247-G-B | C35: 1816.44096 | D35: 1816.44096 | E35: 1816.44096 | F35: 1816.44096 | G35: 1816.44096 | H35: 1816.44096 | I35: 1816.44096 | J35: 1816.44096 | K35: All Residential | L35: N
A36: Borrego Revenue | B36: D.20-02-045, AL 3149-G, AL 3129-G-A and AL 3129-G, 3247-G-B | C36: 64.57174233 | D36: 64.57174233 | E36: 64.57174233 | F36: 64.57174233 | G36: 64.57174233 | H36: 64.57174233 | I36: 64.57174233 | J36: 64.57174233 | K36: All Residential | L36: N
A37: Employee Discount (Schd GR) | B37: D.20-02-045, AL 3149-G, AL 3129-G-A and AL 3129-G, 3247-G-B | C37: -367.20947 | D37: -367.20947 | E37: -367.20947 | F37: -367.20947 | G37: -367.20947 | H37: -367.20947 | I37: -367.20947 | J37: -367.20947 | K37: All Residential | L37: N
A38: SDFFD | B38: D.20-02-045, AL 3149-G, AL 3129-G-A and AL 3129-G, 3247-G-B | C38: 1986.901219 | D38: 2243.525796 | E38: 2243.525796 | F38: 2243.525796 | G38: 2235.276485 | H38: 2098.334067 | I38: 2112.139648 | J38: 2130.670784 | K38: All Residential | L38: N
A39: Customer Information System Account - CISBA | B39: D.20-02-045, AL 3149-G, AL 3129-G-A and AL 3129-G, 3247-G-B | C39: =0 -> 0 | D39: 28619.67293 | E39: 28619.67293 | F39: 28619.67293 | G39: 28619.67293 | H39: 0 | I39: 0 | J39: 0 | K39: EPAM | L39: Y
A40: Transition, Stabilization and OCM Balancing Account - TSOBA-G | B40: AL 3039-G, 3247-G-B | C40: =0 -> 0 | D40: 10830.8434 | E40: 10830.8434 | F40: 10830.8434 | G40: 10830.8434 | H40: 0 | I40: 0 | J40: 0 | K40: EPAM | L40: Y
A41: Percentage of Income Payment Plan Balancing Account (PIPPBA) | B41: D. 21-10-012, 3247-G-B | C41: 0 | D41: 0 | E41: 0 | F41: 0 | G41: 0 | H41: 113.5541766 | I41: 113.5541766 | J41: 113.5541766 | K41: ECPT | L41: Y
A42: GRC 2024 Track 2-Wildfire Mitigation Plan Memo Acct | B42: D.24-02-010 | C42: 0 | D42: 0 | E42: 0 | F42: 0 | G42: 0 | H42: 0 | I42: 0 | J42: 0 | K42: ECPT | L42: Y
A43: Gain/Loss on Sale Memo Acct GLOSMA | B43: D.20-02-045, 3247-G-B | C43: 0 | D43: 0 | E43: 0 | F43: 0 | G43: 0 | H43: -1.0230106 | I43: -1.0230106 | J43: -1.0230106 | K43: EPAM | L43: Y
A44: Transmission Integrity Management Program Memorandum Account (TIMPBA) | B44: AL 3312-G | C44: 0 | D44: 0 | E44: 0 | F44: 0 | G44: 0 | H44: 0 | I44: 7280.408127 | J44: 7280.408127 | K44: Local Transmission | L44: Y
A46: Subtotal Safety Affordability Reliability | C46: =SUM(C8:C45) -> 556607.7005 | D46: 652780.6495 | E46: 652780.6495 | F46: 653493.5968 | G46: 648625.0488 | H46: 659436.8349 | I46: =SUM(I8:I45) -> 666965.4223 | J46: =SUM(J8:J45) -> 674106.0348
A50: Public Policy Proceedings
A51: Green House Gas Balancing Account (GHGBA) - End User Revenue Requirement | B51: D.20-02-045, AL 3149-G, AL 3129-G-A and AL 3129-G , 3247-G-B | C51: 62728.32324 | D51: 62672.95409 | E51: 62672.95409 | F51: 62672.95409 | G51: 62672.95409 | H51: 86283.78593 | I51: 86283.78593 | J51: 86283.78593 | K51: GHG End User | L51: N
A52: Green House Gas Balancing Account (GHGBA) - LUAF Revenue Requirement | B52: D.20-02-045, AL 3149-G, AL 3129-G-A and AL 3129-G , 3247-G-B | C52: 830.7284995 | D52: 809.2332175 | E52: 809.2332175 | F52: 809.2332175 | G52: 809.2332175 | H52: 1046.127972 | I52: 1046.127972 | J52: 1046.127972 | K52: 46% Res (LUAF, Other) | L52: N
A53: AB32 Fees (subtracted from base margin and allocated here) | B53: D.19-09-051 | C53: 528.8540862 | D53: 528.8964802 | E53: 528.8964802 | F53: 528.8964802 | G53: 528.8964802 | H53: 528.8964802 | I53: 528.8964802 | J53: 528.8964802 | K53: 46% Res (LUAF, Other) | L53: N
A54: Green House Gas Balancing Account (GHGBA) - Company Gas Compressor | B54: D.20-02-045, AL 3149-G, AL 3129-G-A and AL 3129-G , 3247-G-B | C54: -138.095361 | D54: 1354.208041 | E54: 1354.208041 | F54: 1354.208041 | G54: 1354.208041 | H54: -27046.35424 | I54: -27046.35424 | J54: -27046.35424 | K54: ECPT | L54: Y
A55: Green House Gas Balancing Account (GHGBA) - End User | B55: D.20-02-045, AL 3149-G, AL 3129-G-A and AL 3129-G , 3247-G-B | C55: -5290.586719 | D55: -7069.472736 | E55: -7069.472736 | F55: -7069.472736 | G55: -7069.472736 | H55: 17577.15682 | I55: 17577.15682 | J55: 17577.15682 | K55: GHG End User | L55: Y
A56: Green House Gas Balancing Account (GHGBA) - LUAF | B56: D.20-02-045, AL 3149-G, AL 3129-G-A and AL 3129-G , 3247-G-B | C56: -11.2522146 | D56: -248.0416462 | E56: -248.0416462 | F56: -248.0416462 | G56: -248.0416462 | H56: -899.2263174 | I56: -899.2263174 | J56: -899.2263174 | K56: 46% Res (LUAF, Other) | L56: Y
A57: FERC Settlement Proceeds MA | B57: D.20-02-045, AL 3149-G, AL 3129-G-A and AL 3129-G , 3247-G-B | C57: 1.0229286 | D57: 0 | E57: 0 | F57: 0 | G57: 0 | H57: 0 | I57: 0 | J57: 0 | K57: Non-Residential | L57: Y
A58: New Environmental Regulation Balancing Account (NERBA) - Admin Fees Subaccount | B58: D.20-02-045, AL 3149-G, AL 3129-G-A and AL 3129-G , 3071-G-B, 3247-G-B | C58: 413.2631544 | D58: 2305.865892 | E58: 2305.865892 | F58: 2305.865892 | G58: 2305.865892 | H58: -801.0172998 | I58: -801.0172998 | J58: -801.0172998 | K58: 46% Res (LUAF, Other) | L58: Y
A59: New Environmental Regulation Balancing Account (NERBA) - EPAM | B59: D.20-02-045, AL 3149-G, AL 3129-G-A and AL 3129-G ,AL 3071-G-B, 3247-G-B | C59: 105.3616458 | D59: 864.443957 | E59: 864.443957 | F59: 864.443957 | G59: 864.443957 | H59: 2678.241751 | I59: 2678.241751 | J59: 2678.241751 | K59: EPAM | L59: Y
A60: TLS Adjustment | B60: D.20-02-045, AL 3149-G, AL 3129-G-A and AL 3129-G , 3247-G-B | C60: 6681.993182 | D60: -10406.77744 | E60: -10437.81056 | F60: -10411.00546 | G60: -10207.82818 | H60: -9118.614285 | I60: -8863.971146 | J60: -9300.986108 | K60: Non-Residential | L60: N
A61: CSI Thermal Program memoradum Account | B61: D.20-02-045, AL 3149-G, AL 3129-G-A and AL 3129-G , 3247-G-B | C61: 806.0677368 | D61: 333.5014556 | E61: 333.5014556 | F61: 333.5014556 | G61: 333.5014556 | H61: 95.1399858 | I61: 95.1399858 | J61: 95.1399858 | K61: 46% Res (LUAF, Other) | L61: Y
A62: Biomethane Cost Incentive Pgm Balancing Acct (BCIPBA) | B62: D. 16-12-043, AL 3129-G-A and AL 3129-G , 3247-G-B | C62: =0 -> 0 | D62: 2813.27915 | E62: 2813.27915 | F62: 2813.27915 | G62: 2813.27915 | H62: 37.8513922 | I62: 37.8513922 | J62: 37.8513922 | K62: ECPT | L62: Y
A63: Biomethane Procurement and Pilot Costs Balancing Account (BPPCBA) - Program Admin Subaccount (EPAM) | B63: D.22-02-025, 3247-G-B | C63: 0 | D63: 0 | E63: 0 | F63: 0 | G63: 0 | H63: 29.6673074 | I63: 29.6673074 | J63: 29.6673074 | K63: EPAM | L63: y
A67: PPPS Programs
A68: California Alternate Rates for Energy (CARE) - Funding | B68: AL 3137-G, D.21-06-015, 3245-G | C68: 25613.072 | D68: 22795.559 | E68: 22795.559 | F68: 22795.559 | G68: 22795.559 | H68: 21383.37754 | I68: 21383.37754 | J68: 21383.37754 | K68: Public Purpose Programs | L68: N
A69: California Alternate Rates for Energy (CARE) - Admin Expenses | B69: AL 3137-G, D.21-06-015, 3245-G | C69: 727.283 | D69: 761.47 | E69: 761.47 | F69: 761.47 | G69: 761.47 | H69: 771.47048 | I69: 771.47048 | J69: 771.47048 | K69: Public Purpose Programs | L69: N
A70: California Alternate Rates for Energy (CARE) - Amortization | B70: AL 3137-G, AL 3245-G, AL 3247-G-B | C70: 1000 | D70: -1000 | E70: -1000 | F70: -1000 | G70: -1000 | H70: 7000 | I70: 7000 | J70: 7000 | K70: Public Purpose Programs | L70: Y
A71: Energy Savings Assistance (ESA/LIEE/DAP) | B71: AL 3137-G, D.21-06-015, AL 3247-G-B | C71: 8041.195 | D71: 10315.642 | E71: 10315.642 | F71: 10315.642 | G71: 10315.642 | H71: 7005.588 | I71: 7005.588 | J71: 7005.588 | K71: Public Purpose Programs | L71: N
A72: Energy Efficiency | B72: D.23-06-055 AL 3137-G, AL 3035-G, AL 3245-G | C72: 15368.68175 | D72: 12089.109 | E72: 12089.109 | F72: 12089.109 | G72: 12089.109 | H72: 25981.63 | I72: 25981.63 | J72: 25981.63 | K72: Public Purpose Programs | L72: N
A73: RD&D | B73: AL 3137-G, AL 3245-G | C73: 1929.78072 | D73: 2278.96046 | E73: 2278.96046 | F73: 2278.96046 | G73: 2278.96046 | H73: 2183.73199 | I73: 2183.73199 | J73: 2183.73199 | K73: Public Purpose Programs | L73: N
A74: Bureau Of Equalization BOE | B74: AL 3137-G, AL 3245-G | C74: 56.15999 | D74: 55.36833 | E74: 55.36833 | F74: 55.36833 | G74: 55.36833 | H74: 47.05335 | I74: 47.05335 | J74: 47.05335 | K74: Public Purpose Programs | L74: N
A80: Subtotal Public Policy | C80: =SUM(C51:C79) -> 119391.8526 | D80: =SUM(D51:D79) -> 101254.1992 | E80: =SUM(E51:E79) -> 101223.1661 | F80: =SUM(F51:F79) -> 101249.9712 | G80: =SUM(G51:G79) -> 101453.1485 | H80: =SUM(H51:H74) -> 134784.5068 | I80: =SUM(I51:I74) -> 135039.15 | J80: =SUM(J51:J74) -> 134602.135
A83: Procurement
A84: Procurement | B84: D.97-07-061 | C84: 372042.5758 | D84: 475248.5763 | E84: 475248.5763 | F84: 475248.5763 | G84: 475248.5763 | H84: 259331.3198 | I84: 259331.3198 | J84: =TotalCoreVolume*SetUp!K5 -> 259331.3198 | K84: Core Procurement
A90: Subtotal Procurement | C90: =SUM(C84:C89) -> 372042.5758 | D90: =SUM(D84:D89) -> 475248.5763 | E90: 475248.5763 | F90: 475248.5763 | G90: 475248.5763 | H90: 259331.3198 | I90: 259331.3198 | J90: 259331.3198
A92: Total Authorized Revenue | C92: =C46+C80+C90 -> 1048042.129 | D92: 1229283.425 | E92: 1229252.392 | F92: 1229992.144 | G92: 1225326.774 | H92: 1053552.662 | I92: 1061335.892 | J92: 1068039.49

Sheet Incremental Rev Req
A1: ='Authorized Rev Req'!A1 -> Annual Period 2024
A2: ='Authorized Rev Req'!A2 -> Reporting Date: Quarter Ended December 31
A4: Current Revenue Requirement ($000): | B4: ='Authorized Rev Req'!J92 -> 1068039.49
A5: Current Revenue Requirement Effective: | B5: ='Authorized Rev Req'!J4 -> 2024-10-01
A6: Approved Application(s), Implemented Since Jan 1 or To Be Implemented | N6: Authorized
A7: Filing Description | B7: Proceeding | C7: Authority for Revenue Requirement | D7: Authorized Revenue Requirement with FF&U ($000) | E7: Revenue Recovery Mechanism | F7: Authorized Revenue Requirement with FF&U ($000) - Breakout by Year | K7: Existing or New Item (if existing, use delta from prior for rate impact) | O7: =TRANSPOSE(YearsForRateImpact) -> 2024 | P7: 2025 | Q7: 2026 | R7: 2027 | S7: 2028
A8: Safety Affordability Reliability Proceedings | D8: =B5 -> 2024-10-01 | F8: =TRANSPOSE(YearsForRateImpact) -> 2024 | G8: 2025 | H8: 2026 | I8: 2027 | J8: 2028 | N8: =RevRecoveryMechanisms -> Core Procurement | O8: =SUMIF($E$9:$E$83,N8,$F$9:$F$83) -> 259331.3198 | P8: =SUMIF($E$9:$E$83,N8,$G$9:$G$83) -> 259331.3198 | Q8: =SUMIF($E$9:$E$83,N8,$H$9:$H$83) -> 259331.3198 | R8: =SUMIF($E$9:$E$83,N8,$I$9:$I$83) -> 259331.3198 | S8: =SUMIF($E$9:$E$83,N8,$J$9:$J$83) -> 259331.3198
A9: ='Authorized Rev Req'!A8 -> Total Allocated Base Margin | C9: ='Authorized Rev Req'!B8 -> D.19-09-051, A.22-05-016 | D9: =F9 -> 417344.7414 | E9: ='Authorized Rev Req'!K8 -> Allocated Base Margin | F9: ='Authorized Rev Req'!J8 -> 417344.7414 | G9: =F9 -> 417344.7414 | H9: =F9 -> 417344.7414 | I9: =F9 -> 417344.7414 | J9: 0 | K9: Existing | N9: Allocated Base Margin | O9: 417344.7414 | P9: 417344.7414 | Q9: 417344.7414 | R9: 417344.7414 | S9: 0
A10: ='Authorized Rev Req'!A9 -> SCG Transport excl Core Storge & Load Balance $000 | C10: ='Authorized Rev Req'!B9 -> D.20-02-045, AL 3149-G, AL 3129-G-A and AL 3129-G, 3247-G-B | D10: 59221.22817 | E10: ='Authorized Rev Req'!K9 -> ECPT | F10: ='Authorized Rev Req'!J9 -> 59221.22817 | G10: =0 -> 0 | H10: =0 -> 0 | I10: =0 -> 0 | J10: 0 | K10: Existing | N10: Distribution | O10: 49368.17838 | P10: 0 | Q10: 0 | R10: 0 | S10: 0
A11: ='Authorized Rev Req'!A10 -> SCG Core Seasonal Storage | C11: ='Authorized Rev Req'!B10 -> D.20-02-045, AL 3149-G, AL 3129-G-A and AL 3129-G, 3247-G-B | D11: 17001.41011 | E11: ='Authorized Rev Req'!K10 -> Seasonal Storage | F11: ='Authorized Rev Req'!J10 -> 17001.41011 | G11: =0 -> 0 | H11: =0 -> 0 | I11: =0 -> 0 | J11: 0 | K11: Existing | N11: All Residential | O11: 3644.474016 | P11: 0 | Q11: 0 | R11: 0 | S11: 0
A12: ='Authorized Rev Req'!A11 -> SCG Load Balancing Allocated to ALL SDGE $000 | C12: ='Authorized Rev Req'!B11 -> D.20-02-045, AL 3149-G, AL 3129-G-A and AL 3129-G, 3247-G-B | D12: 11389.10272 | E12: ='Authorized Rev Req'!K11 -> ECPT | F12: ='Authorized Rev Req'!J11 -> 11389.10272 | G12: =0 -> 0 | H12: =0 -> 0 | I12: =0 -> 0 | J12: 0 | K12: Existing | N12: Local Transmission | O12: 13348.64579 | P12: 0 | Q12: 0 | R12: 0 | S12: 0
A13: ='Authorized Rev Req'!A12 -> Pipeline Safety Enhancement Plan (PSEP) -Local T (subtracted from Base Margin and allocated here) | C13: ='Authorized Rev Req'!B12 -> D.19-09-051 | D13: 2698.4484 | E13: ='Authorized Rev Req'!K12 -> Local Transmission | F13: ='Authorized Rev Req'!J12 -> 2698.4484 | G13: =0 -> 0 | H13: =0 -> 0 | I13: =0 -> 0 | J13: 0 | K13: Existing | N13: Seasonal Storage | O13: 17001.41011 | P13: 0 | Q13: 0 | R13: 0 | S13: 0
A14: ='Authorized Rev Req'!A13 -> LUAF | C14: ='Authorized Rev Req'!B13 -> D.20-02-045, AL 3149-G, AL 3129-G-A and AL 3129-G, 3247-G-B | D14: 3722.57939 | E14: ='Authorized Rev Req'!K13 -> 46% Res (LUAF, Other) | F14: ='Authorized Rev Req'!J13 -> 3722.57939 | G14: =0 -> 0 | H14: =0 -> 0 | I14: =0 -> 0 | J14: 0 | K14: Existing | N14: GHG End User | O14: 103860.9427 | P14: 0 | Q14: 0 | R14: 0 | S14: 0
A15: ='Authorized Rev Req'!A14 -> Company Use Gas: Other | C15: ='Authorized Rev Req'!B14 -> D.20-02-045, AL 3149-G, AL 3129-G-A and AL 3129-G, 3247-G-B | D15: 274.8265603 | E15: ='Authorized Rev Req'!K14 -> ECPT | F15: ='Authorized Rev Req'!J14 -> 274.8265603 | G15: =0 -> 0 | H15: =0 -> 0 | I15: =0 -> 0 | J15: 0 | K15: Existing | N15: Public Purpose Programs | O15: 64372.85136 | P15: 52461.613 | Q15: 53377.255 | R15: 37424.365 | S15: 26310.181
A16: ='Authorized Rev Req'!A15 -> SDG&E NGLAPBA | C16: ='Authorized Rev Req'!B15 -> AL 3149-G, AL 3071-G-B, 3247-G-B | D16: 666.3843293 | E16: ='Authorized Rev Req'!K15 -> EPAM | F16: ='Authorized Rev Req'!J15 -> 666.3843293 | G16: =0 -> 0 | H16: =0 -> 0 | I16: =0 -> 0 | J16: 0 | K16: Existing | N16: - | O16: 0 | P16: 0 | Q16: 0 | R16: 0 | S16: 0
A17: ='Authorized Rev Req'!A16 -> SDG&ENERBA - NGLAP Subacct | C17: ='Authorized Rev Req'!B16 -> AL 3149-G, AL 3071-G-B,3247-G-B | D17: 4967.07272 | E17: ='Authorized Rev Req'!K16 -> EPAM | F17: ='Authorized Rev Req'!J16 -> 4967.07272 | G17: =0 -> 0 | H17: =0 -> 0 | I17: =0 -> 0 | J17: 0 | K17: Existing | N17: 46% Res (LUAF, Other) | O17: 3692.500211 | P17: 0 | Q17: 0 | R17: 0 | S17: 0
A18: ='Authorized Rev Req'!A17 -> SDG&E PSEP - 2017 Forecast Application RevReq Capital Cost - Local Transmission | C18: ='Authorized Rev Req'!B17 -> D.20-02-045, AL 3149-G, AL 3129-G-A and AL 3129-G, 3247-G-B | D18: 48.34878876 | E18: ='Authorized Rev Req'!K17 -> Local Transmission | F18: ='Authorized Rev Req'!J17 -> 48.34878876 | G18: =0 -> 0 | H18: =0 -> 0 | I18: =0 -> 0 | J18: 0 | K18: Existing | N18: ECPT | O18: 45469.48211 | P18: 12271.01694 | Q18: 3233.737771 | R18: 1786.177206 | S18: 0
A19: ='Authorized Rev Req'!A18 -> CFCA | C19: ='Authorized Rev Req'!B18 -> D.20-02-045, AL 3149-G, AL 3129-G-A and AL 3129-G, 3247-G-B | D19: 32720.48408 | E19: ='Authorized Rev Req'!K18 -> CFCA | F19: ='Authorized Rev Req'!J18 -> 32720.48408 | G19: =0 -> 0 | H19: =0 -> 0 | I19: =0 -> 0 | J19: 0 | K19: Existing | N19: EPAM | O19: 54201.90829 | P19: 21791.8616 | Q19: 24855.4471 | R19: 0 | S19: 0
A20: ='Authorized Rev Req'!A19 -> CFCA -NGV only | C20: ='Authorized Rev Req'!B19 -> D.20-02-045, AL 3149-G, AL 3129-G-A and AL 3129-G, 3247-G-B | D20: 2805.095065 | E20: ='Authorized Rev Req'!K19 -> Non-Residential | F20: ='Authorized Rev Req'!J19 -> 2805.095065 | G20: =0 -> 0 | H20: =0 -> 0 | I20: =0 -> 0 | J20: 0 | K20: Existing | N20: CFCA | O20: 32720.48408 | P20: 0 | Q20: 0 | R20: 0 | S20: 0
A21: ='Authorized Rev Req'!A20 -> CFCA - C&I shortfall only | C21: ='Authorized Rev Req'!B20 -> D.20-02-045, AL 3149-G, AL 3129-G-A and AL 3129-G, 3247-G-B | D21: 37.8513922 | E21: ='Authorized Rev Req'!K20 -> Non-Residential | F21: ='Authorized Rev Req'!J20 -> 37.8513922 | G21: =0 -> 0 | H21: =0 -> 0 | I21: =0 -> 0 | J21: 0 | K21: Existing | N21: Non-Residential | O21: 3682.551382 | P21: 0 | Q21: 0 | R21: 0 | S21: 0
A22: ='Authorized Rev Req'!A21 -> Hazardous Substance Cleanup Cost Acct HSCCA | C22: ='Authorized Rev Req'!B21 -> D.20-02-045, AL 3149-G, AL 3129-G-A and AL 3129-G, 3247-G-B | D22: 72.6337526 | E22: ='Authorized Rev Req'!K21 -> ECPT | F22: ='Authorized Rev Req'!J21 -> 72.6337526 | G22: =0 -> 0 | H22: =0 -> 0 | I22: =0 -> 0 | J22: 0 | K22: Existing | N22: Total | O22: =SUM(O8:O21) -> 1068039.49 | P22: =SUM(P8:P21) -> 763200.5528 | Q22: =SUM(Q8:Q21) -> 758142.5011 | R22: =SUM(R8:R21) -> 715886.6034 | S22: =SUM(S8:S21) -> 285641.5008
A23: ='Authorized Rev Req'!A22 -> Master Meter Balancing Account (MMBA) | C23: ='Authorized Rev Req'!B22 -> D.20-02-045, AL 3149-G, AL 3129-G-A and AL 3129-G, 3247-G-B | D23: 15931.34407 | E23: ='Authorized Rev Req'!K22 -> EPAM | F23: ='Authorized Rev Req'!J22 -> 15931.34407 | G23: 21791.8616 | H23: 24855.4471 | I23: =0 -> 0 | J23: 0 | K23: Existing | N23: CPUC Fee | O23: =RegulatoryFee -> 0.001
A24: ='Authorized Rev Req'!A23 -> PBOPBA | C24: ='Authorized Rev Req'!B23 -> D.20-02-045, AL 3149-G, AL 3129-G-A and AL 3129-G, 3247-G-B | D24: -354.9846782 | E24: ='Authorized Rev Req'!K23 -> EPAM | F24: ='Authorized Rev Req'!J23 -> -354.9846782 | G24: =0 -> 0 | H24: =0 -> 0 | I24: =0 -> 0 | J24: 0 | K24: Existing | N24: Check | O24: =O22-F84 -> 0 | P24: =P22-G84 -> 0 | Q24: =Q22-H84 -> 0 | R24: =R22-I84 -> 0 | S24: =S22-J84 -> 0
A25: ='Authorized Rev Req'!A24 -> Pension BA | C25: ='Authorized Rev Req'!B24 -> D.20-02-045, AL 3149-G, AL 3129-G-A and AL 3129-G, 3247-G-B | D25: 51.15053 | E25: ='Authorized Rev Req'!K24 -> EPAM | F25: ='Authorized Rev Req'!J24 -> 51.15053 | G25: =0 -> 0 | H25: =0 -> 0 | I25: =0 -> 0 | J25: 0 | K25: Existing
A26: ='Authorized Rev Req'!A25 -> Safety Enhancement Balancing Account - Local Transmission | C26: ='Authorized Rev Req'!B25 -> D.20-02-045, AL 3149-G, AL 3129-G-A and AL 3129-G, 3247-G-B | D26: 3321.440476 | E26: ='Authorized Rev Req'!K25 -> Local Transmission | F26: ='Authorized Rev Req'!J25 -> 3321.440476 | G26: =0 -> 0 | H26: =0 -> 0 | I26: =0 -> 0 | J26: 0 | K26: Existing
A27: ='Authorized Rev Req'!A26 -> Safety Enhancement Balancing Account - Distribution | C27: ='Authorized Rev Req'!B26 -> D.20-02-045, AL 3149-G, AL 3129-G-A and AL 3129-G, 3247-G-B | D27: 49368.17838 | E27: ='Authorized Rev Req'!K26 -> Distribution | F27: ='Authorized Rev Req'!J26 -> 49368.17838 | G27: =0 -> 0 | H27: =0 -> 0 | I27: =0 -> 0 | J27: 0 | K27: Existing
A28: ='Authorized Rev Req'!A27 -> Rewards & Penalties Bal Acct RPBA | C28: ='Authorized Rev Req'!B27 -> D.20-02-045, AL 3149-G, AL 3129-G-A and AL 3129-G, 3247-G-B | D28: -119.6922402 | E28: ='Authorized Rev Req'!K27 -> EPAM | F28: ='Authorized Rev Req'!J27 -> -119.6922402 | G28: =0 -> 0 | H28: =0 -> 0 | I28: =0 -> 0 | J28: 0 | K28: Existing
A29: ='Authorized Rev Req'!A28 -> SGPMA - Rev Req for NEXT Year | C29: ='Authorized Rev Req'!B28 -> D.20-02-045, AL 3149-G, AL 3129-G-A and AL 3129-G, 3247-G-B | D29: 1696.151575 | E29: ='Authorized Rev Req'!K28 -> ECPT | F29: ='Authorized Rev Req'!J28 -> 1696.151575 | G29: =0 -> 0 | H29: =0 -> 0 | I29: =0 -> 0 | J29: 0 | K29: Existing
A30: ='Authorized Rev Req'!A29 -> Integrated Transmission Margin ITBA | C30: ='Authorized Rev Req'!B29 -> D.20-02-045, AL 3149-G, AL 3129-G-A and AL 3129-G, 3247-G-B | D30: -289.5119998 | E30: ='Authorized Rev Req'!K29 -> ECPT | F30: ='Authorized Rev Req'!J29 -> -289.5119998 | G30: =0 -> 0 | H30: =0 -> 0 | I30: =0 -> 0 | J30: 0 | K30: Existing
A31: ='Authorized Rev Req'!A30 -> Liability Insurance Premium Balancing Account (LIPBA) | C31: ='Authorized Rev Req'!B30 -> D.20-02-045, AL 3149-G, AL 3129-G-A and AL 3129-G, 3247-G-B | D31: 4093.065411 | E31: ='Authorized Rev Req'!K30 -> EPAM | F31: ='Authorized Rev Req'!J30 -> 4093.065411 | G31: =0 -> 0 | H31: =0 -> 0 | I31: =0 -> 0 | J31: 0 | K31: Existing
A32: ='Authorized Rev Req'!A31 -> Residential Uncollectible Balancing Account | C32: ='Authorized Rev Req'!B31 -> D.20-02-045, AL 3149-G, AL 3129-G-A and AL 3129-G, 3247-G-B | D32: 26260.6821 | E32: ='Authorized Rev Req'!K31 -> EPAM | F32: ='Authorized Rev Req'!J31 -> 26260.6821 | G32: =0 -> 0 | H32: =0 -> 0 | I32: =0 -> 0 | J32: 0 | K32: Existing
A33: ='Authorized Rev Req'!A32 -> NFCA -Margin Only | C33: ='Authorized Rev Req'!B32 -> D.20-02-045, AL 3149-G, AL 3129-G-A and AL 3129-G, 3247-G-B | D33: 4377.462357 | E33: ='Authorized Rev Req'!K32 -> Non-Residential | F33: ='Authorized Rev Req'!J32 -> 4377.462357 | G33: =0 -> 0 | H33: =0 -> 0 | I33: =0 -> 0 | J33: 0 | K33: Existing
A34: ='Authorized Rev Req'!A33 -> NFCA -Nonmargin Other | C34: ='Authorized Rev Req'!B33 -> D.20-02-045, AL 3149-G, AL 3129-G-A and AL 3129-G, 3247-G-B | D34: 6784.093254 | E34: ='Authorized Rev Req'!K33 -> Non-Residential | F34: ='Authorized Rev Req'!J33 -> 6784.093254 | G34: =0 -> 0 | H34: =0 -> 0 | I34: =0 -> 0 | J34: 0 | K34: Existing
A35: ='Authorized Rev Req'!A34 -> NFCA -Nonmargin SCG | C35: ='Authorized Rev Req'!B34 -> D.20-02-045, AL 3149-G, AL 3129-G-A and AL 3129-G, 3247-G-B | D35: -1020.964579 | E35: ='Authorized Rev Req'!K34 -> Non-Residential | F35: ='Authorized Rev Req'!J34 -> -1020.964579 | G35: =0 -> 0 | H35: =0 -> 0 | I35: =0 -> 0 | J35: 0 | K35: Existing
A36: ='Authorized Rev Req'!A35 -> Minimum Bil/Customer Charge Revenue | C36: ='Authorized Rev Req'!B35 -> D.20-02-045, AL 3149-G, AL 3129-G-A and AL 3129-G, 3247-G-B | D36: 1816.44096 | E36: ='Authorized Rev Req'!K35 -> All Residential | F36: ='Authorized Rev Req'!J35 -> 1816.44096 | G36: =0 -> 0 | H36: =0 -> 0 | I36: =0 -> 0 | J36: 0 | K36: Existing
A37: ='Authorized Rev Req'!A36 -> Borrego Revenue | C37: ='Authorized Rev Req'!B36 -> D.20-02-045, AL 3149-G, AL 3129-G-A and AL 3129-G, 3247-G-B | D37: 64.57174233 | E37: ='Authorized Rev Req'!K36 -> All Residential | F37: ='Authorized Rev Req'!J36 -> 64.57174233 | G37: =0 -> 0 | H37: =0 -> 0 | I37: =0 -> 0 | J37: 0 | K37: Existing
A38: ='Authorized Rev Req'!A37 -> Employee Discount (Schd GR) | C38: ='Authorized Rev Req'!B37 -> D.20-02-045, AL 3149-G, AL 3129-G-A and AL 3129-G, 3247-G-B | D38: -367.20947 | E38: ='Authorized Rev Req'!K37 -> All Residential | F38: ='Authorized Rev Req'!J37 -> -367.20947 | G38: =0 -> 0 | H38: =0 -> 0 | I38: =0 -> 0 | J38: 0 | K38: Existing
A39: ='Authorized Rev Req'!A38 -> SDFFD | C39: ='Authorized Rev Req'!B38 -> D.20-02-045, AL 3149-G, AL 3129-G-A and AL 3129-G, 3247-G-B | D39: 2130.670784 | E39: ='Authorized Rev Req'!K38 -> All Residential | F39: ='Authorized Rev Req'!J38 -> 2130.670784 | G39: =0 -> 0 | H39: =0 -> 0 | I39: =0 -> 0 | J39: 0 | K39: Existing
A40: ='Authorized Rev Req'!A39 -> Customer Information System Account - CISBA | C40: ='Authorized Rev Req'!B39 -> D.20-02-045, AL 3149-G, AL 3129-G-A and AL 3129-G, 3247-G-B | D40: 0 | E40: ='Authorized Rev Req'!K39 -> EPAM | F40: ='Authorized Rev Req'!J39 -> 0 | G40: =0 -> 0 | H40: =0 -> 0 | I40: =0 -> 0 | J40: 0 | K40: Existing
A41: ='Authorized Rev Req'!A40 -> Transition, Stabilization and OCM Balancing Account - TSOBA-G | C41: ='Authorized Rev Req'!B40 -> AL 3039-G, 3247-G-B | D41: 0 | E41: ='Authorized Rev Req'!K40 -> EPAM | F41: ='Authorized Rev Req'!J40 -> 0 | G41: =0 -> 0 | H41: =0 -> 0 | I41: =0 -> 0 | J41: 0 | K41: Existing
A42: ='Authorized Rev Req'!A42 -> GRC 2024 Track 2-Wildfire Mitigation Plan Memo Acct | C42: ='Authorized Rev Req'!B42 -> D.24-02-010 | D42: 113.5541766 | E42: ECPT | F42: ='Authorized Rev Req'!J41 -> 113.5541766 | G42: =11995*1.023011 -> 12271.01694 | H42: =3161*1.023011 -> 3233.737771 | I42: =1746*1.023011 -> 1786.177206 | J42: 0 | K42: Existing
A43: ='Authorized Rev Req'!A41 -> Percentage of Income Payment Plan Balancing Account (PIPPBA) | C43: ='Authorized Rev Req'!B41 -> D. 21-10-012, 3247-G-B | D43: 0 | E43: ECPT | F43: ='Authorized Rev Req'!J42 -> 0 | G43: 0 | H43: 0 | I43: 0 | J43: 0 | K43: Existing
A44: ='Authorized Rev Req'!A43 -> Gain/Loss on Sale Memo Acct GLOSMA | C44: ='Authorized Rev Req'!B43 -> D.20-02-045, 3247-G-B | D44: -1.0230106 | E44: EPAM | F44: ='Authorized Rev Req'!J43 -> -1.0230106 | G44: 0 | H44: 0 | I44: 0 | J44: 0 | K44: Existing
A45: ='Authorized Rev Req'!A44 -> Transmission Integrity Management Program Memorandum Account (TIMPBA) | C45: ='Authorized Rev Req'!B44 -> AL 3312-G | D45: =F45 -> 7280.408127 | E45: Local Transmission | F45: ='Authorized Rev Req'!J44 -> 7280.408127 | G45: 0 | H45: 0 | I45: 0 | J45: 0 | K45: Existing
A47: ='Authorized Rev Req'!A50 -> Public Policy Proceedings
A48: ='Authorized Rev Req'!A51 -> Green House Gas Balancing Account (GHGBA) - End User Revenue Requirement | C48: ='Authorized Rev Req'!B51 -> D.20-02-045, AL 3149-G, AL 3129-G-A and AL 3129-G , 3247-G-B | D48: =F48 -> 86283.78593 | E48: ='Authorized Rev Req'!K51 -> GHG End User | F48: ='Authorized Rev Req'!J51 -> 86283.78593 | G48: =0 -> 0 | H48: =0 -> 0 | I48: =0 -> 0 | J48: 0 | K48: Existing
A49: ='Authorized Rev Req'!A52 -> Green House Gas Balancing Account (GHGBA) - LUAF Revenue Requirement | C49: ='Authorized Rev Req'!B52 -> D.20-02-045, AL 3149-G, AL 3129-G-A and AL 3129-G , 3247-G-B | D49: 1046.127972 | E49: ='Authorized Rev Req'!K52 -> 46% Res (LUAF, Other) | F49: ='Authorized Rev Req'!J52 -> 1046.127972 | G49: =0 -> 0 | H49: =0 -> 0 | I49: =0 -> 0 | J49: 0 | K49: Existing
A50: ='Authorized Rev Req'!A53 -> AB32 Fees (subtracted from base margin and allocated here) | C50: ='Authorized Rev Req'!B53 -> D.19-09-051 | D50: 528.8964802 | E50: ='Authorized Rev Req'!K53 -> 46% Res (LUAF, Other) | F50: ='Authorized Rev Req'!J53 -> 528.8964802 | G50: =0 -> 0 | H50: =0 -> 0 | I50: =0 -> 0 | J50: 0 | K50: Existing
A51: ='Authorized Rev Req'!A54 -> Green House Gas Balancing Account (GHGBA) - Company Gas Compressor | C51: ='Authorized Rev Req'!B54 -> D.20-02-045, AL 3149-G, AL 3129-G-A and AL 3129-G , 3247-G-B | D51: -27046.35424 | E51: ='Authorized Rev Req'!K54 -> ECPT | F51: ='Authorized Rev Req'!J54 -> -27046.35424 | G51: =0 -> 0 | H51: =0 -> 0 | I51: =0 -> 0 | J51: 0 | K51: Existing
A52: ='Authorized Rev Req'!A55 -> Green House Gas Balancing Account (GHGBA) - End User | C52: ='Authorized Rev Req'!B55 -> D.20-02-045, AL 3149-G, AL 3129-G-A and AL 3129-G , 3247-G-B | D52: 17577.15682 | E52: ='Authorized Rev Req'!K55 -> GHG End User | F52: ='Authorized Rev Req'!J55 -> 17577.15682 | G52: =0 -> 0 | H52: =0 -> 0 | I52: =0 -> 0 | J52: 0 | K52: Existing
A53: ='Authorized Rev Req'!A56 -> Green House Gas Balancing Account (GHGBA) - LUAF | C53: ='Authorized Rev Req'!B56 -> D.20-02-045, AL 3149-G, AL 3129-G-A and AL 3129-G , 3247-G-B | D53: -899.2263174 | E53: ='Authorized Rev Req'!K56 -> 46% Res (LUAF, Other) | F53: ='Authorized Rev Req'!J56 -> -899.2263174 | G53: =0 -> 0 | H53: =0 -> 0 | I53: =0 -> 0 | J53: 0 | K53: Existing
A54: ='Authorized Rev Req'!A57 -> FERC Settlement Proceeds MA | C54: ='Authorized Rev Req'!B57 -> D.20-02-045, AL 3149-G, AL 3129-G-A and AL 3129-G , 3247-G-B | D54: 0 | E54: ='Authorized Rev Req'!K57 -> Non-Residential | F54: ='Authorized Rev Req'!J57 -> 0 | G54: =0 -> 0 | H54: =0 -> 0 | I54: =0 -> 0 | J54: 0 | K54: Existing
A55: ='Authorized Rev Req'!A58 -> New Environmental Regulation Balancing Account (NERBA) - Admin Fees Subaccount | C55: ='Authorized Rev Req'!B58 -> D.20-02-045, AL 3149-G, AL 3129-G-A and AL 3129-G , 3071-G-B, 3247-G-B | D55: -801.0172998 | E55: ='Authorized Rev Req'!K58 -> 46% Res (LUAF, Other) | F55: ='Authorized Rev Req'!J58 -> -801.0172998 | G55: =0 -> 0 | H55: =0 -> 0 | I55: =0 -> 0 | J55: 0 | K55: Existing
A56: ='Authorized Rev Req'!A59 -> New Environmental Regulation Balancing Account (NERBA) - EPAM | C56: ='Authorized Rev Req'!B59 -> D.20-02-045, AL 3149-G, AL 3129-G-A and AL 3129-G ,AL 3071-G-B, 3247-G-B | D56: 2678.241751 | E56: ='Authorized Rev Req'!K59 -> EPAM | F56: ='Authorized Rev Req'!J59 -> 2678.241751 | G56: =0 -> 0 | H56: =0 -> 0 | I56: =0 -> 0 | J56: 0 | K56: Existing
A57: ='Authorized Rev Req'!A60 -> TLS Adjustment | C57: ='Authorized Rev Req'!B60 -> D.20-02-045, AL 3149-G, AL 3129-G-A and AL 3129-G , 3247-G-B | D57: -9300.986108 | E57: ='Authorized Rev Req'!K60 -> Non-Residential | F57: ='Authorized Rev Req'!J60 -> -9300.986108 | G57: =0 -> 0 | H57: =0 -> 0 | I57: =0 -> 0 | J57: 0 | K57: Existing
A58: ='Authorized Rev Req'!A61 -> CSI Thermal Program memoradum Account | C58: ='Authorized Rev Req'!B61 -> D.20-02-045, AL 3149-G, AL 3129-G-A and AL 3129-G , 3247-G-B | D58: 95.1399858 | E58: ='Authorized Rev Req'!K61 -> 46% Res (LUAF, Other) | F58: ='Authorized Rev Req'!J61 -> 95.1399858 | G58: =0 -> 0 | H58: =0 -> 0 | I58: =0 -> 0 | J58: 0 | K58: Existing
A59: ='Authorized Rev Req'!A62 -> Biomethane Cost Incentive Pgm Balancing Acct (BCIPBA) | C59: ='Authorized Rev Req'!B62 -> D. 16-12-043, AL 3129-G-A and AL 3129-G , 3247-G-B | D59: 37.8513922 | E59: ECPT | F59: ='Authorized Rev Req'!J62 -> 37.8513922 | G59: =0 -> 0 | H59: =0 -> 0 | I59: =0 -> 0 | J59: 0 | K59: Existing
A60: ='Authorized Rev Req'!A63 -> Biomethane Procurement and Pilot Costs Balancing Account (BPPCBA) - Program Admin Subaccount (EPAM) | C60: ='Authorized Rev Req'!B63 -> D.22-02-025, 3247-G-B | D60: 29.6673074 | E60: EPAM | F60: ='Authorized Rev Req'!J63 -> 29.6673074 | G60: 0 | H60: 0 | I60: 0 | J60: =0 -> 0 | K60: Existing
A63: PPPS Programs
A64: ='Authorized Rev Req'!A68 -> California Alternate Rates for Energy (CARE) - Funding | C64: ='Authorized Rev Req'!B68 -> AL 3137-G, D.21-06-015, 3245-G | D64: =F64 -> 21383.37754 | E64: ='Authorized Rev Req'!K68 -> Public Purpose Programs | F64: ='Authorized Rev Req'!J68 -> 21383.37754 | G64: 11769.36 | H64: 11887.054 | I64: 11887.054 | J64: 0 | K64: Existing
A65: ='Authorized Rev Req'!A69 -> California Alternate Rates for Energy (CARE) - Admin Expenses | C65: ='Authorized Rev Req'!B69 -> AL 3137-G, D.21-06-015, 3245-G | D65: 771.47048 | E65: ='Authorized Rev Req'!K69 -> Public Purpose Programs | F65: ='Authorized Rev Req'!J69 -> 771.47048 | G65: =813953/1000 -> 813.953 | H65: =814181/1000 -> 814.181 | I65: 0 | J65: 0 | K65: Existing | L65: approved admin budget 2021-2026 provided by Edith Nieves
A66: ='Authorized Rev Req'!A70 -> California Alternate Rates for Energy (CARE) - Amortization | C66: ='Authorized Rev Req'!B70 -> AL 3137-G, AL 3245-G, AL 3247-G-B | D66: 7000 | E66: ='Authorized Rev Req'!K70 -> Public Purpose Programs | F66: ='Authorized Rev Req'!J70 -> 7000 | G66: =0 -> 0 | H66: =0 -> 0 | I66: =0 -> 0 | J66: 0 | K66: Existing
A67: ='Authorized Rev Req'!A71 -> Energy Savings Assistance (ESA/LIEE/DAP) | C67: ='Authorized Rev Req'!B71 -> AL 3137-G, D.21-06-015, AL 3247-G-B | D67: 7005.588 | E67: ='Authorized Rev Req'!K71 -> Public Purpose Programs | F67: ='Authorized Rev Req'!J71 -> 7005.588 | G67: =14340989/1000 -> 14340.989 | H67: =15138709/1000 -> 15138.709 | I67: 0 | J67: 0 | K67: Existing | L67: approved budgets for ESA 2021-2026 provided by Edith Nieves
A68: ='Authorized Rev Req'!A72 -> Energy Efficiency | C68: ='Authorized Rev Req'!B72 -> D.23-06-055 AL 3137-G, AL 3035-G, AL 3245-G | D68: 25981.63 | E68: ='Authorized Rev Req'!K72 -> Public Purpose Programs | F68: ='Authorized Rev Req'!J72 -> 25981.63 | G68: =25537311/1000 -> 25537.311 | H68: =G68 -> 25537.311 | I68: =H68 -> 25537.311 | J68: =26310181/1000 -> 26310.181 | K68: Existing | L68: approved budget for EE 2024-2028 provided by Edith Nieves
A69: ='Authorized Rev Req'!A73 -> RD&D | C69: ='Authorized Rev Req'!B73 -> AL 3137-G, AL 3245-G | D69: 2183.73199 | E69: ='Authorized Rev Req'!K73 -> Public Purpose Programs | F69: ='Authorized Rev Req'!J73 -> 2183.73199 | G69: =0 -> 0 | H69: =0 -> 0 | I69: =0 -> 0 | J69: 0 | K69: Existing
A70: ='Authorized Rev Req'!A74 -> Bureau Of Equalization BOE | C70: ='Authorized Rev Req'!B74 -> AL 3137-G, AL 3245-G | D70: 47.05335 | E70: ='Authorized Rev Req'!K74 -> Public Purpose Programs | F70: ='Authorized Rev Req'!J74 -> 47.05335 | G70: =0 -> 0 | H70: =0 -> 0 | I70: =0 -> 0 | J70: 0 | K70: Existing
A80: Procurement | C80: ='Authorized Rev Req'!B84 -> D.97-07-061 | D80: =F80 -> 259331.3198 | E80: ='Authorized Rev Req'!K84 -> Core Procurement | F80: ='Authorized Rev Req'!J84 -> 259331.3198 | G80: =F80 -> 259331.3198 | H80: 259331.3198 | I80: 259331.3198 | J80: 259331.3198 | K80: Existing
A84: Total Approved, Implemented Since Jan 1 or To Be Implemented | D84: =SUM(D9:D83) -> 1068039.49 | F84: =SUM(F9:F83) -> 1068039.49 | G84: =SUM(G9:G83) -> 763200.5528 | H84: =SUM(H9:H83) -> 758142.5011 | I84: =SUM(I9:I83) -> 715886.6034 | J84: =SUM(J9:J83) -> 285641.5008
A86: CPUC Fee | E86: CPUC Fee | F86: =RegulatoryFee -> 0.001
A89: Pending Application(s) Not Yet Approved
A90: Filing Description | B90: Proceeding | C90: Basis of Revenue Requirement Forecast: Application, Amended Application , Amended Testimony, Proposed Settlement Agreement, Proposed Decision | D90: Proposed Revenue Requirement with FF&U ($000) | E90: Proposed Revenue Recovery Mechanism | F90: Incremental Revenue Requirement with FF&U ($000) - Breakout by Year | K90: Existing or New Item (if existing, use delta from prior for rate impact)
A91: Safety Affordability Reliability Proceedings | F91: =TRANSPOSE(YearsForRateImpact) -> 2024 | G91: 2025 | H91: 2026 | I91: 2027 | J91: 2028 | L91: Include in Impact | N91: Authorized + Pending
A92: 2024 GRC Application | B92: A.22-05-016 | C92: PD | D92: =SUM(F92:J92) -> 859950.7875 | E92: Allocated Base Margin | F92: 178307.6022 | G92: 202105.992 | H92: 226884.0214 | I92: 252653.1719 | K92: Existing | L92: =IFERROR(VLOOKUP(A92,Summary!$B$7:$D$18,3,FALSE),"-") -> Y | O92: =TRANSPOSE(YearsForRateImpact) -> 2024 | P92: 2025 | Q92: 2026 | R92: 2027 | S92: 2028
A93: Pipeline Safety Enhancement Plan (PSEP) -Local T | B93: A.22-05-016 | C93: PD | D93: 5907.69464 | E93: Local Transmission | F93: -624.51024 | G93: 2156.97836 | H93: 2158.36656 | I93: 2216.85996 | K93: Existing | L93: =IFERROR(VLOOKUP(A93,Summary!$B$7:$D$18,3,FALSE),"-") -> Y | N93: =RevRecoveryMechanisms -> Core Procurement | O93: =SUM(O8,SUMIFS(F$92:F$119,$E$92:$E$119,$N93,$L$92:$L$119,"y")) -> 259331.3198 | P93: =SUM(P8,SUMIFS(G$92:G$119,$E$92:$E$119,$N93,$L$92:$L$119,"y")) -> 259331.3198 | Q93: =SUM(Q8,SUMIFS(H$92:H$119,$E$92:$E$119,$N93,$L$92:$L$119,"y")) -> 259331.3198 | R93: =SUM(R8,SUMIFS(I$92:I$119,$E$92:$E$119,$N93,$L$92:$L$119,"y")) -> 259331.3198 | S93: =SUM(S8,SUMIFS(J$92:J$119,$E$92:$E$119,$N93,$L$92:$L$119,"y")) -> 259331.3198
A94: Pipeline Safety Enhancement Plan (PSEP) - High Pressure Distribution | B94: A.22-05-016 | C94: PD | D94: 166778.7895 | E94: Distribution | F94: 39215.001 | G94: 40781.47152 | H94: 42540.35144 | I94: 44241.96549 | K94: Existing | L94: =IFERROR(VLOOKUP(A94,Summary!$B$7:$D$18,3,FALSE),"-") -> Y | N94: Allocated Base Margin | O94: 595652.3436 | P94: 619450.7334 | Q94: 644228.7628 | R94: 669997.9133 | S94: 0
A95: Natural Gas Leak Abatement | B95: 3285-G-A | C95: Advice Letter | D95: 16435.80188 | E95: EPAM | G95: 8124.525508 | H95: 8311.276368 | K95: New | L95: Y | N95: Distribution | O95: 88583.17938 | P95: 40781.47152 | Q95: 42540.35144 | R95: 44241.96549 | S95: 0
L96: =IFERROR(VLOOKUP(A96,Summary!$B$7:$D$18,3,FALSE),"-") -> - | N96: All Residential | O96: 3644.474016 | P96: 0 | Q96: 0 | R96: 0 | S96: 0
L97: =IFERROR(VLOOKUP(A97,Summary!$B$7:$D$18,3,FALSE),"-") -> - | N97: Local Transmission | O97: 12724.13555 | P97: 2156.97836 | Q97: 2158.36656 | R97: 2216.85996 | S97: 0
A98: Public Policy Proceedings | L98: =IFERROR(VLOOKUP(A98,Summary!$B$7:$D$18,3,FALSE),"-") -> - | N98: Seasonal Storage | O98: 17001.41011 | P98: 0 | Q98: 0 | R98: 0 | S98: 0
L99: =IFERROR(VLOOKUP(A99,Summary!$B$7:$D$18,3,FALSE),"-") -> - | N99: GHG End User | O99: 103860.9427 | P99: 0 | Q99: 0 | R99: 0 | S99: 0
A100: Cost Allocation Proceeding | B100: A. 22-09-015 | C100: Settlment Agreement | D100: 0 | E100: EPAM | F100: 0 | G100: 0 | K100: Existing | L100: =IFERROR(VLOOKUP(A100,Summary!$B$7:$D$18,3,FALSE),"-") -> Y | N100: Public Purpose Programs | O100: 64372.85136 | P100: 52461.613 | Q100: 53377.255 | R100: 37424.365 | S100: 26310.181
L101: =IFERROR(VLOOKUP(A101,Summary!$B$7:$D$18,3,FALSE),"-") -> - | N101: - | O101: 0 | P101: 0 | Q101: 0 | R101: 0 | S101: 0
L102: =IFERROR(VLOOKUP(A102,Summary!$B$7:$D$18,3,FALSE),"-") -> - | N102: 46% Res (LUAF, Other) | O102: 3692.500211 | P102: 0 | Q102: 0 | R102: 0 | S102: 0
L103: =IFERROR(VLOOKUP(A103,Summary!$B$7:$D$18,3,FALSE),"-") -> - | N103: ECPT | O103: 45469.48211 | P103: 12271.01694 | Q103: 3233.737771 | R103: 1786.177206 | S103: 0
D104: 0 | L104: =IFERROR(VLOOKUP(A104,Summary!$B$7:$D$18,3,FALSE),"-") -> - | N104: EPAM | O104: 54201.90829 | P104: 29916.38711 | Q104: 33166.72347 | R104: 0 | S104: 0
D105: 0 | L105: =IFERROR(VLOOKUP(A105,Summary!$B$7:$D$18,3,FALSE),"-") -> - | N105: CFCA | O105: 32720.48408 | P105: 0 | Q105: 0 | R105: 0 | S105: 0
D106: 0 | L106: =IFERROR(VLOOKUP(A106,Summary!$B$7:$D$18,3,FALSE),"-") -> - | N106: Non-Residential | O106: 3682.551382 | P106: 0 | Q106: 0 | R106: 0 | S106: 0
L107: =IFERROR(VLOOKUP(A107,Summary!$B$7:$D$18,3,FALSE),"-") -> - | N107: Total | O107: =SUM(O93:O106) -> 1284937.583 | P107: =SUM(P93:P106) -> 1016369.52 | Q107: =SUM(Q93:Q106) -> 1038036.517 | R107: =SUM(R93:R106) -> 1014998.601 | S107: =SUM(S93:S106) -> 285641.5008
L108: =IFERROR(VLOOKUP(A108,Summary!$B$7:$D$18,3,FALSE),"-") -> - | N108: Incremental Revenues | O108: =O107-O22 -> 216898.093 | P108: =P107-P22 -> 253168.9674 | Q108: =Q107-Q22 -> 279894.0157 | R108: =R107-R22 -> 299111.9973 | S108: =S107-S22 -> 0
L109: =IFERROR(VLOOKUP(A109,Summary!$B$7:$D$18,3,FALSE),"-") -> - | N109: CPUC Fee | O109: =RegulatoryFee -> 0.001
L110: =IFERROR(VLOOKUP(A110,Summary!$B$7:$D$18,3,FALSE),"-") -> - | N110: Check Figure | O110: =ROUND(O108,6)-ROUND(F120,6) -> 0 | P110: =ROUND(P108,6)-SUM(G92:G119) -> -4.630419426e-07 | Q110: =ROUND(Q108,6)-SUM(H92:H119) -> 3.913301043e-07 | R110: =ROUND(R108,6)-SUM(I92:I119) -> 1.306179911e-07 | S110: =ROUND(S108,6)-SUM(J92:J119) -> 0
L111: =IFERROR(VLOOKUP(A111,Summary!$B$7:$D$18,3,FALSE),"-") -> -
L112: =IFERROR(VLOOKUP(A112,Summary!$B$7:$D$18,3,FALSE),"-") -> -
L113: =IFERROR(VLOOKUP(A113,Summary!$B$7:$D$18,3,FALSE),"-") -> -
L114: =IFERROR(VLOOKUP(A114,Summary!$B$7:$D$18,3,FALSE),"-") -> -
L115: =IFERROR(VLOOKUP(A115,Summary!$B$7:$D$18,3,FALSE),"-") -> -
L116: =IFERROR(VLOOKUP(A116,Summary!$B$7:$D$18,3,FALSE),"-") -> -
L117: =IFERROR(VLOOKUP(A117,Summary!$B$7:$D$18,3,FALSE),"-") -> -
L118: =IFERROR(VLOOKUP(A118,Summary!$B$7:$D$18,3,FALSE),"-") -> -
D119: =SUM(F119:J119) -> 0 | L119: =IFERROR(VLOOKUP(A119,Summary!$B$7:$D$18,3,FALSE),"-") -> -
A120: Total Pending, Filed but not Approved | D120: =SUM(D92:D119) -> 1049073.073 | F120: =SUM(F92:F119) -> 216898.093 | G120: =SUM(G92:G119) -> 253168.9674 | H120: =SUM(H92:H119) -> 279894.0157 | I120: =SUM(I92:I119) -> 299111.9973 | J120: =SUM(J92:J119) -> 0
A122: Applications Projected to be Filed, Next 12 Months
A123: Filing Description | B123: Estimated Filing Date | C123: Filing Basis | D123: Proposed Revenue Requirement ($000) | E123: Proposed Revenue Recovery Mechanism | F123: Projected Authorized Revenue Requirement ($000) - Breakout by Year | K123: Existing or New Item (if existing, use delta from prior for rate impact)
A124: Safety Affordability Reliability Proceedings | F124: =TRANSPOSE(YearsForRateImpact) -> 2024 | G124: 2025 | H124: 2026 | I124: 2027 | J124: 2028
A129: Public Policy Proceedings

Sheet SAR and RAR
C1: Revenue Change ($000)
C2: Authorized | D2: w/ Pending
B3: =RevRecoveryMechanisms -> Core Procurement | C3: =INDEX('Incremental Rev Req'!$N$8:$S$21,MATCH(B3,'Incremental Rev Req'!$N$8:$N$21,0),MATCH(Summary!$D$2,'Incremental Rev Req'!$N$7:$S$7,0)) -> 259331.3198 | D3: =INDEX('Incremental Rev Req'!$N$93:$S$106,MATCH(B3,'Incremental Rev Req'!$N$93:$N$106,0),MATCH(Summary!$D$2,'Incremental Rev Req'!$N$92:$S$92,0)) -> 259331.3198 | G3: Allocation | P3: Other Revenues and Balancing Accounts
B4: Allocated Base Margin | C4: =INDEX('Incremental Rev Req'!$N$8:$S$21,MATCH(B4,'Incremental Rev Req'!$N$8:$N$21,0),MATCH(Summary!$D$2,'Incremental Rev Req'!$N$7:$S$7,0)) -> 417344.7414 | D4: =INDEX('Incremental Rev Req'!$N$93:$S$106,MATCH(B4,'Incremental Rev Req'!$N$93:$N$106,0),MATCH(Summary!$D$2,'Incremental Rev Req'!$N$92:$S$92,0)) -> 595652.3436 | G4: =TRANSPOSE(RevRecoveryMechanisms) -> Core Procurement | H4: Allocated Base Margin | I4: Distribution | J4: All Residential | K4: Local Transmission | L4: Seasonal Storage | M4: GHG End User | N4: Public Purpose Programs | O4: - | P4: 46% Res (LUAF, Other) | Q4: ECPT | R4: EPAM | S4: CFCA | T4: Non-Residential | U4: CPUC Fee
B5: Distribution | C5: =INDEX('Incremental Rev Req'!$N$8:$S$21,MATCH(B5,'Incremental Rev Req'!$N$8:$N$21,0),MATCH(Summary!$D$2,'Incremental Rev Req'!$N$7:$S$7,0)) -> 49368.17838 | D5: =INDEX('Incremental Rev Req'!$N$93:$S$106,MATCH(B5,'Incremental Rev Req'!$N$93:$N$106,0),MATCH(Summary!$D$2,'Incremental Rev Req'!$N$92:$S$92,0)) -> 88583.17938 | F5: Residential | G5: 0.588631244 | H5: 0.8281360555 | I5: 0.6930742196 | J5: 1 | K5: 0.4153105798 | L5: 0.7428982671 | M5: 0.5237519402 | N5: 0.474391856 | P5: 0.46 | Q5: 0.2823673283 | R5: 0.8281360555 | S5: 0.6165889671 | T5: 0 | U5: =RegulatoryFee -> 0.001
B6: All Residential | C6: =INDEX('Incremental Rev Req'!$N$8:$S$21,MATCH(B6,'Incremental Rev Req'!$N$8:$N$21,0),MATCH(Summary!$D$2,'Incremental Rev Req'!$N$7:$S$7,0)) -> 3644.474016 | D6: =INDEX('Incremental Rev Req'!$N$93:$S$106,MATCH(B6,'Incremental Rev Req'!$N$93:$N$106,0),MATCH(Summary!$D$2,'Incremental Rev Req'!$N$92:$S$92,0)) -> 3644.474016
B7: Local Transmission | C7: =INDEX('Incremental Rev Req'!$N$8:$S$21,MATCH(B7,'Incremental Rev Req'!$N$8:$N$21,0),MATCH(Summary!$D$2,'Incremental Rev Req'!$N$7:$S$7,0)) -> 13348.64579 | D7: =INDEX('Incremental Rev Req'!$N$93:$S$106,MATCH(B7,'Incremental Rev Req'!$N$93:$N$106,0),MATCH(Summary!$D$2,'Incremental Rev Req'!$N$92:$S$92,0)) -> 12724.13555 | G7: Revenue Change ($000) - System
B8: Seasonal Storage | C8: =INDEX('Incremental Rev Req'!$N$8:$S$21,MATCH(B8,'Incremental Rev Req'!$N$8:$N$21,0),MATCH(Summary!$D$2,'Incremental Rev Req'!$N$7:$S$7,0)) -> 17001.41011 | D8: =INDEX('Incremental Rev Req'!$N$93:$S$106,MATCH(B8,'Incremental Rev Req'!$N$93:$N$106,0),MATCH(Summary!$D$2,'Incremental Rev Req'!$N$92:$S$92,0)) -> 17001.41011 | F8: Authorized | G8: =TRANSPOSE(RevRecoveryMechanisms) -> Core Procurement | H8: Allocated Base Margin | I8: Distribution | J8: All Residential | K8: Local Transmission | L8: Seasonal Storage | M8: GHG End User | N8: Public Purpose Programs | O8: - | P8: 46% Res (LUAF, Other) | Q8: ECPT | R8: EPAM | S8: CFCA | T8: Non-Residential
B9: GHG End User | C9: =INDEX('Incremental Rev Req'!$N$8:$S$21,MATCH(B9,'Incremental Rev Req'!$N$8:$N$21,0),MATCH(Summary!$D$2,'Incremental Rev Req'!$N$7:$S$7,0)) -> 103860.9427 | D9: =INDEX('Incremental Rev Req'!$N$93:$S$106,MATCH(B9,'Incremental Rev Req'!$N$93:$N$106,0),MATCH(Summary!$D$2,'Incremental Rev Req'!$N$92:$S$92,0)) -> 103860.9427 | F9: Residential | G9: =G5*G10 -> 152650.5174 | H9: =H5*H10 -> 345618.2279 | I9: =I5*I10 -> 34215.8117 | J9: 3644.474016 | K9: 5543.833824 | L9: 12630.31811 | M9: 54397.37027 | N9: 30537.95644 | O9: =O5*O10 -> 0 | P9: 1698.550097 | Q9: =Q5*Q10 -> 12839.09618 | R9: =R5*R10 -> 44886.55453 | S9: =S5*S10 -> 20175.08948 | T9: =T5*T10 -> 0 | U9: =SUM(G9:T9) -> 718837.8 | V9: Check | W9: CPUC Fee
B10: Public Purpose Programs | C10: =INDEX('Incremental Rev Req'!$N$8:$S$21,MATCH(B10,'Incremental Rev Req'!$N$8:$N$21,0),MATCH(Summary!$D$2,'Incremental Rev Req'!$N$7:$S$7,0)) -> 64372.85136 | D10: =INDEX('Incremental Rev Req'!$N$93:$S$106,MATCH(B10,'Incremental Rev Req'!$N$93:$N$106,0),MATCH(Summary!$D$2,'Incremental Rev Req'!$N$92:$S$92,0)) -> 64372.85136 | F10: Total System | G10: =C3 -> 259331.3198 | H10: =C4 -> 417344.7414 | I10: =C5 -> 49368.17838 | J10: =C6 -> 3644.474016 | K10: =C7 -> 13348.64579 | L10: =C8 -> 17001.41011 | M10: =C9 -> 103860.9427 | N10: =C10 -> 64372.85136 | O10: =C11 -> 0 | P10: =C12 -> 3692.500211 | Q10: =C13 -> 45469.48211 | R10: =C14 -> 54201.90829 | S10: =C15 -> 32720.48408 | T10: =C16 -> 3682.551382 | U10: =SUM(G10:T10) -> 1068039.49 | V10: =U10-C17 -> 0 | W10: =RegulatoryFee -> 0.001
B11: - | C11: =INDEX('Incremental Rev Req'!$N$8:$S$21,MATCH(B11,'Incremental Rev Req'!$N$8:$N$21,0),MATCH(Summary!$D$2,'Incremental Rev Req'!$N$7:$S$7,0)) -> 0 | D11: =INDEX('Incremental Rev Req'!$N$93:$S$106,MATCH(B11,'Incremental Rev Req'!$N$93:$N$106,0),MATCH(Summary!$D$2,'Incremental Rev Req'!$N$92:$S$92,0)) -> 0 | F11: w/Pending
B12: 46% Res (LUAF, Other) | C12: =INDEX('Incremental Rev Req'!$N$8:$S$21,MATCH(B12,'Incremental Rev Req'!$N$8:$N$21,0),MATCH(Summary!$D$2,'Incremental Rev Req'!$N$7:$S$7,0)) -> 3692.500211 | D12: =INDEX('Incremental Rev Req'!$N$93:$S$106,MATCH(B12,'Incremental Rev Req'!$N$93:$N$106,0),MATCH(Summary!$D$2,'Incremental Rev Req'!$N$92:$S$92,0)) -> 3692.500211 | F12: Residential | G12: =G5*G13 -> 152650.5174 | H12: =H5*H13 -> 493281.1822 | I12: 61394.71792 | J12: 3644.474016 | K12: 5284.468114 | L12: 12630.31811 | M12: 54397.37027 | N12: 30537.95644 | O12: =O5*O13 -> 0 | P12: 1698.550097 | Q12: =Q5*Q13 -> 12839.09618 | R12: =R5*R13 -> 44886.55453 | S12: =S5*S13 -> 20175.08948 | T12: =T5*T13 -> 0 | U12: =SUM(G12:T12) -> 893420.2948 | V12: Check | W12: CPUC Fee
B13: ECPT | C13: =INDEX('Incremental Rev Req'!$N$8:$S$21,MATCH(B13,'Incremental Rev Req'!$N$8:$N$21,0),MATCH(Summary!$D$2,'Incremental Rev Req'!$N$7:$S$7,0)) -> 45469.48211 | D13: =INDEX('Incremental Rev Req'!$N$93:$S$106,MATCH(B13,'Incremental Rev Req'!$N$93:$N$106,0),MATCH(Summary!$D$2,'Incremental Rev Req'!$N$92:$S$92,0)) -> 45469.48211 | F13: Total System | G13: =D3 -> 259331.3198 | H13: =D4 -> 595652.3436 | I13: =D5 -> 88583.17938 | J13: =D6 -> 3644.474016 | K13: =D7 -> 12724.13555 | L13: =D8 -> 17001.41011 | M13: =D9 -> 103860.9427 | N13: =D10 -> 64372.85136 | O13: =D11 -> 0 | P13: =D12 -> 3692.500211 | Q13: =D13 -> 45469.48211 | R13: =D14 -> 54201.90829 | S13: =D15 -> 32720.48408 | T13: =D16 -> 3682.551382 | U13: =SUM(G13:T13) -> 1284937.583 | V13: =U13-D17 -> 0 | W13: =RegulatoryFee -> 0.001
B14: EPAM | C14: =INDEX('Incremental Rev Req'!$N$8:$S$21,MATCH(B14,'Incremental Rev Req'!$N$8:$N$21,0),MATCH(Summary!$D$2,'Incremental Rev Req'!$N$7:$S$7,0)) -> 54201.90829 | D14: =INDEX('Incremental Rev Req'!$N$93:$S$106,MATCH(B14,'Incremental Rev Req'!$N$93:$N$106,0),MATCH(Summary!$D$2,'Incremental Rev Req'!$N$92:$S$92,0)) -> 54201.90829 | AC14: Authorized | AD14: w/Pending
B15: CFCA | C15: =INDEX('Incremental Rev Req'!$N$8:$S$21,MATCH(B15,'Incremental Rev Req'!$N$8:$N$21,0),MATCH(Summary!$D$2,'Incremental Rev Req'!$N$7:$S$7,0)) -> 32720.48408 | D15: =INDEX('Incremental Rev Req'!$N$93:$S$106,MATCH(B15,'Incremental Rev Req'!$N$93:$N$106,0),MATCH(Summary!$D$2,'Incremental Rev Req'!$N$92:$S$92,0)) -> 32720.48408 | AB15: % of CARE Sales (Bundled) | AC15: 0.1564707744 | AD15: =AC15 -> 0.1564707744
B16: Non-Residential | C16: =INDEX('Incremental Rev Req'!$N$8:$S$21,MATCH(B16,'Incremental Rev Req'!$N$8:$N$21,0),MATCH(Summary!$D$2,'Incremental Rev Req'!$N$7:$S$7,0)) -> 3682.551382 | D16: =INDEX('Incremental Rev Req'!$N$93:$S$106,MATCH(B16,'Incremental Rev Req'!$N$93:$N$106,0),MATCH(Summary!$D$2,'Incremental Rev Req'!$N$92:$S$92,0)) -> 3682.551382 | U16: Authorized | W16: w/Pending Total UDC | Y16: Commodity | Z16: w/Pending Commodity
B17: Total Revenue Requirement | C17: =SUM(C3:C16) -> 1068039.49 | D17: =SUM(D3:D16) -> 1284937.583 | G17: Revenue Split - Bundled Customer | U17: Bundled Revenue Change | W17: Bundled Revenue Change
B18: CPUC Fee | C18: =RegulatoryFee -> 0.001 | D18: =C18 -> 0.001 | G18: =TRANSPOSE(RevRecoveryMechanisms) -> Core Procurement | H18: Allocated Base Margin | I18: Distribution | J18: All Residential | K18: Local Transmission | L18: Seasonal Storage | M18: GHG End User | N18: Public Purpose Programs | O18: - | P18: 46% Res (LUAF, Other) | Q18: ECPT | R18: EPAM | S18: CFCA | T18: Non-Residential | U18: Total | W18: Total | Y18: Core Procurement | Z18: Core Procurement
F19: Residential | G19: 1 | H19: 1 | I19: 1 | J19: 1 | K19: 1 | L19: 1 | M19: 1 | N19: 1 | O19: 1 | P19: 1 | Q19: 1 | R19: 1 | S19: 1 | T19: 1 | U19: =SUMPRODUCT(H9:T9,H19:T19) -> 566187.2825 | W19: =SUMPRODUCT(H12:T12,H19:T19) -> 740769.7774 | Y19: =SUMPRODUCT(G9,G19) -> 152650.5174 | Z19: =SUMPRODUCT(G12,G19) -> 152650.5174
F20: Total System | G20: 1 | H20: 1 | I20: 1 | J20: 1 | K20: 1 | L20: 1 | M20: 1 | N20: 1 | O20: 1 | P20: 1 | Q20: 1 | R20: 1 | S20: 1 | T20: 1 | U20: =SUMPRODUCT(H10:T10,H20:T20) -> 808708.1699 | W20: =SUMPRODUCT(H13:T13,H20:T20) -> 1025606.263 | Y20: =SUMPRODUCT(G10,G20) -> 259331.3198 | Z20: =SUMPRODUCT(G13,G20) -> 259331.3198
C22: TCAP D.20-02-045 SALES DETERMINANTS SYSTEM NET | D22: TCAP D.20-02-045 SALES DETERMINANTS BUNDLED
B23: Residential | C23: 313234.4093 | D23: 310981.1947
B24: Total System | C24: 1109315.342 | D24: 473212.1866
F26: Bundled | P26: System (Bundled and Unbundled)
B27: CARE Discount | F27: TCAP D.20-02-045 SALES DETERMINANTS BUNDLED | G27: =CONCATENATE(TEXT(CurrentEffectiveRateDate,"mm/dd/yyyy")," Avg Rates"&"(sales adj.)") -> 12/01/2024 Avg Rates(sales adj.) | H27: Proposed Avg Rates (Authorized) | I27: Proposed Avg Rates (w/Pending) | J27: % Change (Authorized) | K27: % Change (w/Pending) | Q27: =F27 -> TCAP D.20-02-045 SALES DETERMINANTS BUNDLED | R27: =G27 -> 12/01/2024 Avg Rates(sales adj.) | S27: Proposed Avg Rates (Authorized) | T27: Proposed Avg Rates (w/Pending) | U27: % Change (Authorized) | V27: % Change (w/Pending)
B28: 2020 | C28: 14643.43625 | E28: Residential | F28: =D23 -> 310981.1947 | G28: 229.8418718 | H28: =(U19/C23*100)+(Y19/D23*100) -> 229.8418718 | I28: =(W19/C23*100)+(Z19/D23*100) -> 285.5772858 | J28: =H28/G28-1 -> 0 | K28: =I28/G28-1 -> 0.2424946054 | P28: Residential | Q28: =C23 -> 313234.4093 | R28: 229.4887722 | S28: =U9/Q28*100 -> 229.4887722 | T28: =U12/Q28*100 -> 285.2241862 | U28: =S28/R28-1 -> 0 | V28: =T28/R28-1 -> 0.2428677163
B29: 2021 | C29: 23945.84284 | E29: Total System | F29: =D24 -> 473212.1866 | G29: 127.7038916 | H29: =(U20/C24*100)+(Y20/D24*100) -> 127.7038916 | I29: =(W20/C24*100)+(Z20/D24*100) -> 147.2563204 | J29: =H29/G29-1 -> 0 | K29: =I29/G29-1 -> 0.1531075413 | P29: Total System | Q29: =C24 -> 1109315.342 | R29: 96.27915971 | S29: =U10/Q29*100 -> 96.27915971 | T29: =U13/Q29*100 -> 115.8315886 | U29: =S29/R29-1 -> 0 | V29: =T29/R29-1 -> 0.203080593
B30: 2022 | C30: 25613.07214 | H30: cents/therm
B31: 2023 | C31: 22795.55934
B32: 2024 | C32: 21383.37754

Sheet Res Bill Impact
E3: Schedule GR | P3: Schedule GR [CARE]
E4: =SalesForecastYear -> 2024 | F4: =CurrentEffectiveRateDate -> 2024-12-01 | G4: =CurrentEffectiveRateDate -> 2024-12-01 | H4: Proposed | I4: Proposed | J4: Proposed | K4: Proposed | P4: =SalesForecastYear -> 2024 | Q4: =CurrentEffectiveRateDate -> 2024-12-01 | R4: =CurrentEffectiveRateDate -> 2024-12-01 | S4: Proposed | T4: Proposed | U4: Proposed | V4: Proposed
E5: System Sales Forecast | F5: Rates | G5: Revenue | H5: Authorized Rates | I5: Authorized Revenue | J5: w/Pending Rates | K5: w/Pending Revenue | P5: Sales Forecast | Q5: Rates | R5: Revenue | S5: Authorized Rates | T5: Authorized Revenue | U5: w/Pending Rates | V5: w/Pending Revenue
D7: Baseline | E7: 187959.3296 | F7: 2.218370213 | G7: =F7*E7 -> 416963.378 | H7: =((Y10-I12-T12)/SUM(E7,F9/F7*E9,P7*((Q7/F7)),P9*((Q9/F7)))) -> 2.283551586 | I7: =E7*H7 -> 429214.8252 | J7: =((Y13-K12-V12)/SUM(SUM(E7),F9/F7*SUM(E9),SUM(P7)*((Q7/F7)),SUM(P9)*(Q9/F7))) -> 2.838152545 | K7: =E7*J7 -> 533457.2496 | O7: =D7 -> Baseline | P7: 34568.65952 | Q7: 1.738084061 | R7: =Q7*P7 -> 60083.23612 | S7: =H7*(1+(Q7/F7-1)) -> 1.789153403 | T7: =P7*S7 -> 61848.63481 | U7: =J7*(1+(Q7/F7-1)) -> 2.223681004 | V7: =P7*U7 -> 76869.6715 | X7: Bundled Residential Rev Req
X8: Current | Y8: =(SUM(G7:G9)+SUM(R7:R9)) -> 698319.3955
D9: non-Baseline | E9: 76615.61141 | F9: 2.523530213 | G9: =F9*E9 -> 193341.8102 | H9: =F9/F$7*H$7 -> 2.597677965 | I9: =E9*H9 -> 199022.6855 | J9: =F9/F$7*J$7 -> 3.22857008 | K9: 247358.8707 | O9: =D9 -> non-Baseline | P9: 14090.80885 | Q9: 1.982212061 | R9: =Q9*P9 -> 27930.97125 | S9: =H9*(1+(Q9/F9-1)) -> 2.040454506 | T9: =P9*S9 -> 28751.65441 | U9: =J9*(1+(Q9/F9-1)) -> 2.536015032 | V9: =P9*U9 -> 35734.50306 | X9: Change (Authorized) | Y9: =Y10-Y8 -> 20518.40446
X10: Proposed (Authorized) | Y10: ='SAR and RAR'!U9 -> 718837.8
E11: Non-CARE customers | P11: CARE Customers
D12: Fixed Charge | E12: =E13-P12 -> 664014.4092 | F12: 0 | G12: =F12*12*E12/1000 -> 0 | H12: =SetUp!D7 -> 0 | I12: =(H12*12*E12)/1000 -> 0 | J12: =H12 -> 0 | K12: =I12 -> 0 | O12: Fixed Charge | P12: 210053 | Q12: =F12*(1-CAREDiscountPercent) -> 0 | R12: =Q12*12*P12/1000 -> 0 | S12: =SetUp!D7*(1-CAREDiscountPercent) -> 0 | T12: =(S12*12*P12)/1000 -> 0 | U12: =S12 -> 0 | V12: =T12 -> 0 | X12: Change (w/Pending) | Y12: =Y13-Y8 -> 195100.8993
D13: Total Customers | E13: 874067.4092 | X13: Proposed (w/Pending) | Y13: ='SAR and RAR'!U12 -> 893420.2948
P18: Basic Bundled
E19: =Summary!D2 -> 2024 | F19: =Summary!D2 -> 2024 | H19: Essential Usage | P19: 2023 Recorded Data - Average Monthly Usage - ALL-BASIC th
B20: SCHEDULE GR RATES ($/therm) | E20: Proposed | F20: Proposed | H20: Monthly Tier 1 Baseline Allowance -BASIC (th) | P20: Climate Zone | Q20: Summer | R20: Winter | S20: Summer | T20: Winter | U20: Population Weight
B21: Rates | C21: =BOYEffectiveRateDate -> 2024-01-01 | D21: =CurrentEffectiveRateDate -> 2024-12-01 | E21: Authorized | F21: w/Pending | H21: Climate Zone | I21: Summer 2023 | J21: Winter 2023 | Q21: Non-CARE | S21: CARE | U21: Non-CARE | V21: CARE
A22: Summer | B22: Tier 1 | C22: 2.261074949 | D22: 2.283551586 | E22: =H7 -> 2.283551586 | F22: =J7 -> 2.838152545 | H22: =Zones -> SDG&E | I22: 11 | J22: 29 | P22: =Zones -> SDG&E | Q22: 15.83333333 | R22: 34 | S22: 15.5 | T22: 28.16666667 | U22: =SUM(Q22:R22)/SUM($Q$22:$R$25) -> 1 | V22: =SUM(S22:T22)/SUM($S$22:$T$25) -> 1
B23: Tier 2 | C23: 2.569093698 | D23: 2.597677965 | E23: =H9 -> 2.597677965 | F23: =J9 -> 3.22857008 | H23: 0 | P23: 0 | U23: =SUM(Q23:R23)/SUM($Q$22:$R$25) -> 0 | V23: =SUM(S23:T23)/SUM($S$22:$T$25) -> 0
H24: 0 | P24: 0 | U24: =SUM(Q24:R24)/SUM($Q$22:$R$25) -> 0 | V24: =SUM(S24:T24)/SUM($S$22:$T$25) -> 0
A25: Winter | B25: Tier 1 | C25: =C22 -> 2.261074949 | D25: =D22 -> 2.283551586 | E25: =E22 -> 2.283551586 | F25: 2.838152545 | H25: 0 | P25: 0 | U25: =SUM(Q25:R25)/SUM($Q$22:$R$25) -> 0 | V25: =SUM(S25:T25)/SUM($S$22:$T$25) -> 0
B26: Tier 2 | C26: =C23 -> 2.569093698 | D26: =D23 -> 2.597677965 | E26: =E23 -> 2.597677965 | F26: 3.22857008
P27: Typical Bundled
E28: =Summary!D2 -> 2024 | F28: =Summary!D2 -> 2024 | P28: 2019-2023 Recorded Data - Average Monthly Usage - ALL-BASIC th
B29: SCHEDULE GR-LI [CARE] ($/therm) | E29: Proposed | F29: Proposed | P29: Climate Zone | Q29: Summer | R29: Winter | S29: Summer | T29: Winter | U29: Population Weight
B30: Rates | C30: =BOYEffectiveRateDate -> 2024-01-01 | D30: =CurrentEffectiveRateDate -> 2024-12-01 | E30: Authorized | F30: w/Pending | Q30: Non-CARE | S30: CARE | U30: Non-CARE | V30: CARE
A31: Summer | B31: Tier 1 | C31: 1.771187616 | D31: 1.789153403 | E31: =S7 -> 1.789153403 | F31: =U7 -> 2.223681004 | P31: =Zones -> SDG&E | Q31: 15.66173941 | R31: 34.06927917 | S31: 14.45891468 | T31: 26.81212205 | U31: =SUM(Q31:R31)/SUM($Q$31:$R$34) -> 1 | V31: =SUM(S31:T31)/SUM($S$31:$T$34) -> 1
B32: Tier 2 | C32: 2.017602615 | D32: 2.040454506 | E32: =S9 -> 2.040454506 | F32: =U9 -> 2.536015032 | P32: 0 | U32: =SUM(Q32:R32)/SUM($Q$31:$R$34) -> 0 | V32: =SUM(S32:T32)/SUM($S$31:$T$34) -> 0
P33: 0 | U33: =SUM(Q33:R33)/SUM($Q$31:$R$34) -> 0 | V33: =SUM(S33:T33)/SUM($S$31:$T$34) -> 0
A34: Winter | B34: Tier 1 | C34: =C31 -> 1.771187616 | D34: 1.778826652 | E34: =E31 -> 1.789153403 | F34: 2.223681004 | P34: 0 | U34: =SUM(Q34:R34)/SUM($Q$31:$R$34) -> 0 | V34: =SUM(S34:T34)/SUM($S$31:$T$34) -> 0
B35: Tier 2 | C35: =C32 -> 2.017602615 | D35: 2.026304426 | E35: =E32 -> 2.040454506 | F35: 2.536015032
C39: Note: Bill inserts include CPUC fee in the calculations
C40: 2023 Recorded Average Basic Bundled Non-CARE Customer Bill
C41: =C30 -> 2024-01-01 | E41: =D30 -> 2024-12-01 | G41: =E21 -> Authorized | I41: =F21 -> w/Pending
C42: Summer | D42: Winter | E42: Summer | F42: Winter | G42: Summer | H42: Winter | I42: Summer | J42: Winter
B43: =Zones -> SDG&E | C43: =IF($Q22>$I22,C$22*$I22+C$23*($Q22-$I22),$Q22*C$22)+('Incremental Rev Req'!$F$86*$Q22)+IF(Q22>0,$F$12,0) -> 37.30494398 | D43: =IF($R22>$J22,C$25*$J22+C$26*($R22-$J22),$R22*C$25)+('Incremental Rev Req'!$F$86*$R22)+IF(R22>0,$F$12,0) -> 78.45064202 | E43: =IF($Q22>$I22,D$22*$I22+D$23*($Q22-$I22),$Q22*D$22)+('Incremental Rev Req'!$F$86*$Q22)+IF(Q22>0,$F$12,0) -> 37.69034428 | F43: =IF($R22>$J22,D$25*$J22+D$26*($R22-$J22),$R22*D$25)+('Incremental Rev Req'!$F$86*$R22)+IF(R22>0,$F$12,0) -> 79.24538583 | G43: =IF($Q22>$I22,E$22*$I22+E$23*($Q22-$I22),$Q22*E$22)+('Incremental Rev Req'!$F$86*$Q22)+IF(Q22>0,$H$12,0) -> 37.69034428 | H43: =IF($R22>$J22,E$25*$J22+E$26*($R22-$J22),$R22*E$25)+('Incremental Rev Req'!$F$86*$R22)+IF(R22>0,$H$12,0) -> 79.24538583 | I43: =IF($Q22>$I22,F$22*$I22+F$23*($Q22-$I22),$Q22*F$22)+('Incremental Rev Req'!$F$86*$Q22)+IF(Q22>0,$J$12,0) -> 46.84026672 | J43: =IF($R22>$J22,F$25*$J22+F$26*($R22-$J22),$R22*F$25)+('Incremental Rev Req'!$F$86*$R22)+IF(R22>0,$J$12,0) -> 98.48327421
B44: 0 | C44: =IF($Q23>$I23,C$22*$I23+C$23*($Q23-$I23),$Q23*C$22)+('Incremental Rev Req'!$F$86*$Q23)+IF(Q23>0,$F$12,0) -> 0 | D44: =IF($R23>$J23,C$25*$J23+C$26*($R23-$J23),$R23*C$25)+('Incremental Rev Req'!$F$86*$R23)+IF(R23>0,$F$12,0) -> 0 | E44: =IF($Q23>$I23,D$22*$I23+D$23*($Q23-$I23),$Q23*D$22)+('Incremental Rev Req'!$F$86*$Q23)+IF(Q23>0,$F$12,0) -> 0 | F44: =IF($R23>$J23,D$25*$J23+D$26*($R23-$J23),$R23*D$25)+('Incremental Rev Req'!$F$86*$R23)+IF(R23>0,$F$12,0) -> 0 | G44: =IF($Q23>$I23,E$22*$I23+E$23*($Q23-$I23),$Q23*E$22)+('Incremental Rev Req'!$F$86*$Q23)+IF(Q23>0,$H$12,0) -> 0 | H44: =IF($R23>$J23,E$25*$J23+E$26*($R23-$J23),$R23*E$25)+('Incremental Rev Req'!$F$86*$R23)+IF(R23>0,$H$12,0) -> 0 | I44: =IF($Q23>$I23,F$22*$I23+F$23*($Q23-$I23),$Q23*F$22)+('Incremental Rev Req'!$F$86*$Q23)+IF(Q23>0,$J$12,0) -> 0 | J44: =IF($R23>$J23,F$25*$J23+F$26*($R23-$J23),$R23*F$25)+('Incremental Rev Req'!$F$86*$R23)+IF(R23>0,$J$12,0) -> 0
B45: 0 | C45: =IF($Q24>$I24,C$22*$I24+C$23*($Q24-$I24),$Q24*C$22)+('Incremental Rev Req'!$F$86*$Q24)+IF(Q24>0,$F$12,0) -> 0 | D45: =IF($R24>$J24,C$25*$J24+C$26*($R24-$J24),$R24*C$25)+('Incremental Rev Req'!$F$86*$R24)+IF(R24>0,$F$12,0) -> 0 | E45: =IF($Q24>$I24,D$22*$I24+D$23*($Q24-$I24),$Q24*D$22)+('Incremental Rev Req'!$F$86*$Q24)+IF(Q24>0,$F$12,0) -> 0 | F45: =IF($R24>$J24,D$25*$J24+D$26*($R24-$J24),$R24*D$25)+('Incremental Rev Req'!$F$86*$R24)+IF(R24>0,$F$12,0) -> 0 | G45: =IF($Q24>$I24,E$22*$I24+E$23*($Q24-$I24),$Q24*E$22)+('Incremental Rev Req'!$F$86*$Q24)+IF(Q24>0,$H$12,0) -> 0 | H45: =IF($R24>$J24,E$25*$J24+E$26*($R24-$J24),$R24*E$25)+('Incremental Rev Req'!$F$86*$R24)+IF(R24>0,$H$12,0) -> 0 | I45: =IF($Q24>$I24,F$22*$I24+F$23*($Q24-$I24),$Q24*F$22)+('Incremental Rev Req'!$F$86*$Q24)+IF(Q24>0,$J$12,0) -> 0 | J45: =IF($R24>$J24,F$25*$J24+F$26*($R24-$J24),$R24*F$25)+('Incremental Rev Req'!$F$86*$R24)+IF(R24>0,$J$12,0) -> 0
B46: 0 | C46: =IF($Q25>$I25,C$22*$I25+C$23*($Q25-$I25),$Q25*C$22)+('Incremental Rev Req'!$F$86*$Q25)+IF(Q25>0,$F$12,0) -> 0 | D46: =IF($R25>$J25,C$25*$J25+C$26*($R25-$J25),$R25*C$25)+('Incremental Rev Req'!$F$86*$R25)+IF(R25>0,$F$12,0) -> 0 | E46: =IF($Q25>$I25,D$22*$I25+D$23*($Q25-$I25),$Q25*D$22)+('Incremental Rev Req'!$F$86*$Q25)+IF(Q25>0,$F$12,0) -> 0 | F46: =IF($R25>$J25,D$25*$J25+D$26*($R25-$J25),$R25*D$25)+('Incremental Rev Req'!$F$86*$R25)+IF(R25>0,$F$12,0) -> 0 | G46: =IF($Q25>$I25,E$22*$I25+E$23*($Q25-$I25),$Q25*E$22)+('Incremental Rev Req'!$F$86*$Q25)+IF(Q25>0,$H$12,0) -> 0 | H46: =IF($R25>$J25,E$25*$J25+E$26*($R25-$J25),$R25*E$25)+('Incremental Rev Req'!$F$86*$R25)+IF(R25>0,$H$12,0) -> 0 | I46: =IF($Q25>$I25,F$22*$I25+F$23*($Q25-$I25),$Q25*F$22)+('Incremental Rev Req'!$F$86*$Q25)+IF(Q25>0,$J$12,0) -> 0 | J46: =IF($R25>$J25,F$25*$J25+F$26*($R25-$J25),$R25*F$25)+('Incremental Rev Req'!$F$86*$R25)+IF(R25>0,$J$12,0) -> 0
B47: Total | C47: =SUMPRODUCT(C43:C46,$U$22:$U$25) -> 37.30494398 | D47: =SUMPRODUCT(D43:D46,$U$22:$U$25) -> 78.45064202 | E47: 37.69034428 | F47: 79.24538583 | G47: 37.69034428 | H47: 79.24538583 | I47: 46.84026672 | J47: 98.48327421
C50: 2023 Recorded Average Basic Bundled CARE Customer Bill
C51: =C30 -> 2024-01-01 | E51: =D30 -> 2024-12-01 | G51: =E30 -> Authorized | I51: =F30 -> w/Pending
C52: Summer | D52: Winter | E52: Summer | F52: Winter | G52: Summer | H52: Winter | I52: Summer | J52: Winter
B53: =Zones -> SDG&E | C53: =IF($S22>$I22,C$31*$I22+C$32*($S22-$I22),$S22*C$31)+('Incremental Rev Req'!$F$86*$S22)+IF(S22>0,$Q$12,0) -> 28.57777554 | D53: =IF($T22>$J22,C$34*$J22+C$35*($T22-$J22),$T22*C$34)+('Incremental Rev Req'!$F$86*$T22)+IF(T22>0,$Q$12,0) -> 49.91661784 | E53: =IF($S22>$I22,D$31*$I22+D$32*($S22-$I22),$S22*D$31)+('Incremental Rev Req'!$F$86*$S22)+IF(S22>0,$Q$12,0) -> 28.8782327 | F53: =IF($T22>$J22,D$34*$J22+D$35*($T22-$J22),$T22*D$34)+('Incremental Rev Req'!$F$86*$T22)+IF(T22>0,$Q$12,0) -> 50.13178402 | G53: =IF($S22>$I22,E$31*$I22+E$32*($S22-$I22),$S22*E$31)+('Incremental Rev Req'!$F$86*$S22)+IF(S22>0,$S$12,0) -> 28.8782327 | H53: =IF($T22>$J22,E$34*$J22+E$35*($T22-$J22),$T22*E$34)+('Incremental Rev Req'!$F$86*$T22)+IF(T22>0,$S$12,0) -> 50.42265417 | I53: =IF($S22>$I22,F$31*$I22+F$32*($S22-$I22),$S22*F$31)+('Incremental Rev Req'!$F$86*$S22)+IF(S22>0,$U$12,0) -> 35.88805868 | J53: =IF($T22>$J22,F$34*$J22+F$35*($T22-$J22),$T22*F$34)+('Incremental Rev Req'!$F$86*$T22)+IF(T22>0,$U$12,0) -> 62.66184827
B54: 0 | C54: =IF($S23>$I23,C$31*$I23+C$32*($S23-$I23),$S23*C$31)+('Incremental Rev Req'!$F$86*$S23)+IF(S23>0,$Q$12,0) -> 0 | D54: =IF($T23>$J23,C$34*$J23+C$35*($T23-$J23),$T23*C$34)+('Incremental Rev Req'!$F$86*$T23)+IF(T23>0,$Q$12,0) -> 0 | E54: =IF($S23>$I23,D$31*$I23+D$32*($S23-$I23),$S23*D$31)+('Incremental Rev Req'!$F$86*$S23)+IF(S23>0,$Q$12,0) -> 0 | F54: =IF($T23>$J23,D$34*$J23+D$35*($T23-$J23),$T23*D$34)+('Incremental Rev Req'!$F$86*$T23)+IF(T23>0,$Q$12,0) -> 0 | G54: =IF($S23>$I23,E$31*$I23+E$32*($S23-$I23),$S23*E$31)+('Incremental Rev Req'!$F$86*$S23)+IF(S23>0,$S$12,0) -> 0 | H54: =IF($T23>$J23,E$34*$J23+E$35*($T23-$J23),$T23*E$34)+('Incremental Rev Req'!$F$86*$T23)+IF(T23>0,$S$12,0) -> 0 | I54: =IF($S23>$I23,F$31*$I23+F$32*($S23-$I23),$S23*F$31)+('Incremental Rev Req'!$F$86*$S23)+IF(S23>0,$U$12,0) -> 0 | J54: =IF($T23>$J23,F$34*$J23+F$35*($T23-$J23),$T23*F$34)+('Incremental Rev Req'!$F$86*$T23)+IF(T23>0,$U$12,0) -> 0
B55: 0 | C55: =IF($S24>$I24,C$31*$I24+C$32*($S24-$I24),$S24*C$31)+('Incremental Rev Req'!$F$86*$S24)+IF(S24>0,$Q$12,0) -> 0 | D55: =IF($T24>$J24,C$34*$J24+C$35*($T24-$J24),$T24*C$34)+('Incremental Rev Req'!$F$86*$T24)+IF(T24>0,$Q$12,0) -> 0 | E55: =IF($S24>$I24,D$31*$I24+D$32*($S24-$I24),$S24*D$31)+('Incremental Rev Req'!$F$86*$S24)+IF(S24>0,$Q$12,0) -> 0 | F55: =IF($T24>$J24,D$34*$J24+D$35*($T24-$J24),$T24*D$34)+('Incremental Rev Req'!$F$86*$T24)+IF(T24>0,$Q$12,0) -> 0 | G55: =IF($S24>$I24,E$31*$I24+E$32*($S24-$I24),$S24*E$31)+('Incremental Rev Req'!$F$86*$S24)+IF(S24>0,$S$12,0) -> 0 | H55: =IF($T24>$J24,E$34*$J24+E$35*($T24-$J24),$T24*E$34)+('Incremental Rev Req'!$F$86*$T24)+IF(T24>0,$S$12,0) -> 0 | I55: =IF($S24>$I24,F$31*$I24+F$32*($S24-$I24),$S24*F$31)+('Incremental Rev Req'!$F$86*$S24)+IF(S24>0,$U$12,0) -> 0 | J55: =IF($T24>$J24,F$34*$J24+F$35*($T24-$J24),$T24*F$34)+('Incremental Rev Req'!$F$86*$T24)+IF(T24>0,$U$12,0) -> 0
B56: 0 | C56: =IF($S25>$I25,C$31*$I25+C$32*($S25-$I25),$S25*C$31)+('Incremental Rev Req'!$F$86*$S25)+IF(S25>0,$Q$12,0) -> 0 | D56: =IF($T25>$J25,C$34*$J25+C$35*($T25-$J25),$T25*C$34)+('Incremental Rev Req'!$F$86*$T25)+IF(T25>0,$Q$12,0) -> 0 | E56: =IF($S25>$I25,D$31*$I25+D$32*($S25-$I25),$S25*D$31)+('Incremental Rev Req'!$F$86*$S25)+IF(S25>0,$Q$12,0) -> 0 | F56: =IF($T25>$J25,D$34*$J25+D$35*($T25-$J25),$T25*D$34)+('Incremental Rev Req'!$F$86*$T25)+IF(T25>0,$Q$12,0) -> 0 | G56: =IF($S25>$I25,E$31*$I25+E$32*($S25-$I25),$S25*E$31)+('Incremental Rev Req'!$F$86*$S25)+IF(S25>0,$S$12,0) -> 0 | H56: =IF($T25>$J25,E$34*$J25+E$35*($T25-$J25),$T25*E$34)+('Incremental Rev Req'!$F$86*$T25)+IF(T25>0,$S$12,0) -> 0 | I56: =IF($S25>$I25,F$31*$I25+F$32*($S25-$I25),$S25*F$31)+('Incremental Rev Req'!$F$86*$S25)+IF(S25>0,$U$12,0) -> 0 | J56: =IF($T25>$J25,F$34*$J25+F$35*($T25-$J25),$T25*F$34)+('Incremental Rev Req'!$F$86*$T25)+IF(T25>0,$U$12,0) -> 0
B57: Total | C57: =SUMPRODUCT(C53:C56,$V$22:$V$25) -> 28.57777554 | D57: =SUMPRODUCT(D53:D56,$V$22:$V$25) -> 49.91661784 | E57: 28.8782327 | F57: 50.13178402 | G57: 28.8782327 | H57: 50.42265417 | I57: 35.88805868 | J57: 62.66184827
C60: Essential Usage Basic Bundled Non-CARE Customer Bill
C61: =C51 -> 2024-01-01 | E61: =E51 -> 2024-12-01 | G61: =G51 -> Authorized | I61: =I51 -> w/Pending
C62: Summer | D62: Winter | E62: Summer | F62: Winter | G62: Summer | H62: Winter | I62: Summer | J62: Winter
B63: =Zones -> SDG&E | C63: =($C$22*$I22)+('Incremental Rev Req'!$F$86*$I22)+IF(I22>0,$F$12,0) -> 24.88282444 | D63: =($C$25*$J22)+('Incremental Rev Req'!$F$86*$J22)+IF(J22>0,$F$12,0) -> 65.60017353 | E63: =($D$22*$I22)+('Incremental Rev Req'!$F$86*$I22)+IF(I22>0,$F$12,0) -> 25.13006745 | F63: =($D$25*$J22)+('Incremental Rev Req'!$F$86*$J22)+IF(J22>0,$F$12,0) -> 66.25199601 | G63: =($E$22*$I22)+('Incremental Rev Req'!$F$86*$I22)+IF(I22>0,$H$12,0) -> 25.13006745 | H63: =($E$25*$J22)+('Incremental Rev Req'!$F$86*$J22)+IF(J22>0,$H$12,0) -> 66.25199601 | I63: =($F$22*$I22)+('Incremental Rev Req'!$F$86*$I22)+IF(I22>0,$J$12,0) -> 31.230678 | J63: =($F$25*$J22)+('Incremental Rev Req'!$F$86*$J22)+IF(J22>0,$J$12,0) -> 82.33542381
B64: 0 | C64: =($C$22*$I23)+('Incremental Rev Req'!$F$86*$I23)+IF(I23>0,$F$12,0) -> 0 | D64: =($C$25*$J23)+('Incremental Rev Req'!$F$86*$J23)+IF(J23>0,$F$12,0) -> 0 | E64: =($D$22*$I23)+('Incremental Rev Req'!$F$86*$I23)+IF(I23>0,$F$12,0) -> 0 | F64: =($D$25*$J23)+('Incremental Rev Req'!$F$86*$J23)+IF(J23>0,$F$12,0) -> 0 | G64: =($E$22*$I23)+('Incremental Rev Req'!$F$86*$I23)+IF(I23>0,$H$12,0) -> 0 | H64: =($E$25*$J23)+('Incremental Rev Req'!$F$86*$J23)+IF(J23>0,$H$12,0) -> 0 | I64: =($F$22*$I23)+('Incremental Rev Req'!$F$86*$I23)+IF(I23>0,$J$12,0) -> 0 | J64: =($F$25*$J23)+('Incremental Rev Req'!$F$86*$J23)+IF(J23>0,$J$12,0) -> 0
B65: 0 | C65: =($C$22*$I24)+('Incremental Rev Req'!$F$86*$I24)+IF(I24>0,$F$12,0) -> 0 | D65: =($C$25*$J24)+('Incremental Rev Req'!$F$86*$J24)+IF(J24>0,$F$12,0) -> 0 | E65: =($D$22*$I24)+('Incremental Rev Req'!$F$86*$I24)+IF(I24>0,$F$12,0) -> 0 | F65: =($D$25*$J24)+('Incremental Rev Req'!$F$86*$J24)+IF(J24>0,$F$12,0) -> 0 | G65: =($E$22*$I24)+('Incremental Rev Req'!$F$86*$I24)+IF(I24>0,$H$12,0) -> 0 | H65: =($E$25*$J24)+('Incremental Rev Req'!$F$86*$J24)+IF(J24>0,$H$12,0) -> 0 | I65: =($F$22*$I24)+('Incremental Rev Req'!$F$86*$I24)+IF(I24>0,$J$12,0) -> 0 | J65: =($F$25*$J24)+('Incremental Rev Req'!$F$86*$J24)+IF(J24>0,$J$12,0) -> 0
B66: 0 | C66: =($C$22*$I25)+('Incremental Rev Req'!$F$86*$I25)+IF(I25>0,$F$12,0) -> 0 | D66: =($C$25*$J25)+('Incremental Rev Req'!$F$86*$J25)+IF(J25>0,$F$12,0) -> 0 | E66: =($D$22*$I25)+('Incremental Rev Req'!$F$86*$I25)+IF(I25>0,$F$12,0) -> 0 | F66: =($D$25*$J25)+('Incremental Rev Req'!$F$86*$J25)+IF(J25>0,$F$12,0) -> 0 | G66: =($E$22*$I25)+('Incremental Rev Req'!$F$86*$I25)+IF(I25>0,$H$12,0) -> 0 | H66: =($E$25*$J25)+('Incremental Rev Req'!$F$86*$J25)+IF(J25>0,$H$12,0) -> 0 | I66: =($F$22*$I25)+('Incremental Rev Req'!$F$86*$I25)+IF(I25>0,$J$12,0) -> 0 | J66: =($F$25*$J25)+('Incremental Rev Req'!$F$86*$J25)+IF(J25>0,$J$12,0) -> 0
B67: Total | C67: =SUMPRODUCT(C63:C66,$U$22:$U$25) -> 24.88282444 | D67: =SUMPRODUCT(D63:D66,$U$22:$U$25) -> 65.60017353 | E67: =SUMPRODUCT(E63:E66,$U$22:$U$25) -> 25.13006745 | F67: =SUMPRODUCT(F63:F66,$U$22:$U$25) -> 66.25199601 | G67: 25.13006745 | H67: 66.25199601 | I67: 31.230678 | J67: 82.33542381
C70: Essential Usage Basic Bundled CARE Customer Bill
C71: =C61 -> 2024-01-01 | E71: =E61 -> 2024-12-01 | G71: =G61 -> Authorized | I71: =I61 -> w/Pending
C72: Summer | D72: Winter | E72: Summer | F72: Winter | G72: Summer | H72: Winter | I72: Summer | J72: Winter
B73: =Zones -> SDG&E | C73: =($C$31*$I22)+('Incremental Rev Req'!$F$86*$I22)+IF(I22>0,$Q$12,0) -> 19.49406377 | D73: =($C$34*$J22)+('Incremental Rev Req'!$F$86*$J22)+IF(J22>0,$Q$12,0) -> 51.39344085 | E73: =($D$31*$I22)+('Incremental Rev Req'!$F$86*$I22)+IF(I22>0,$Q$12,0) -> 19.69168743 | F73: =($D$34*$J22)+('Incremental Rev Req'!$F$86*$J22)+IF(J22>0,$Q$12,0) -> 51.6149729 | G73: =($E$31*$I22)+('Incremental Rev Req'!$F$86*$I22)+IF(I22>0,$S$12,0) -> 19.69168743 | H73: =($E$34*$J22)+('Incremental Rev Req'!$F$86*$J22)+IF(J22>0,$S$12,0) -> 51.91444868 | I73: =($F$31*$I22)+('Incremental Rev Req'!$F$86*$I22)+IF(I22>0,$U$12,0) -> 24.47149104 | J73: =($F$34*$J22)+('Incremental Rev Req'!$F$86*$J22)+IF(J22>0,$U$12,0) -> 64.5157491
B74: 0 | C74: =($C$31*$I23)+('Incremental Rev Req'!$F$86*$I23)+IF(I23>0,$Q$12,0) -> 0 | D74: =($C$34*$J23)+('Incremental Rev Req'!$F$86*$J23)+IF(J23>0,$Q$12,0) -> 0 | E74: =($D$31*$I23)+('Incremental Rev Req'!$F$86*$I23)+IF(I23>0,$Q$12,0) -> 0 | F74: =($D$34*$J23)+('Incremental Rev Req'!$F$86*$J23)+IF(J23>0,$Q$12,0) -> 0 | G74: =($E$31*$I23)+('Incremental Rev Req'!$F$86*$I23)+IF(I23>0,$S$12,0) -> 0 | H74: =($E$34*$J23)+('Incremental Rev Req'!$F$86*$J23)+IF(J23>0,$S$12,0) -> 0 | I74: =($F$31*$I23)+('Incremental Rev Req'!$F$86*$I23)+IF(I23>0,$U$12,0) -> 0 | J74: =($F$34*$J23)+('Incremental Rev Req'!$F$86*$J23)+IF(J23>0,$U$12,0) -> 0
B75: 0 | C75: =($C$31*$I24)+('Incremental Rev Req'!$F$86*$I24)+IF(I24>0,$Q$12,0) -> 0 | D75: =($C$34*$J24)+('Incremental Rev Req'!$F$86*$J24)+IF(J24>0,$Q$12,0) -> 0 | E75: =($D$31*$I24)+('Incremental Rev Req'!$F$86*$I24)+IF(I24>0,$Q$12,0) -> 0 | F75: =($D$34*$J24)+('Incremental Rev Req'!$F$86*$J24)+IF(J24>0,$Q$12,0) -> 0 | G75: =($E$31*$I24)+('Incremental Rev Req'!$F$86*$I24)+IF(I24>0,$S$12,0) -> 0 | H75: =($E$34*$J24)+('Incremental Rev Req'!$F$86*$J24)+IF(J24>0,$S$12,0) -> 0 | I75: =($F$31*$I24)+('Incremental Rev Req'!$F$86*$I24)+IF(I24>0,$U$12,0) -> 0 | J75: =($F$34*$J24)+('Incremental Rev Req'!$F$86*$J24)+IF(J24>0,$U$12,0) -> 0
B76: 0 | C76: =($C$31*$I25)+('Incremental Rev Req'!$F$86*$I25)+IF(I25>0,$Q$12,0) -> 0 | D76: =($C$34*$J25)+('Incremental Rev Req'!$F$86*$J25)+IF(J25>0,$Q$12,0) -> 0 | E76: =($D$31*$I25)+('Incremental Rev Req'!$F$86*$I25)+IF(I25>0,$Q$12,0) -> 0 | F76: =($D$34*$J25)+('Incremental Rev Req'!$F$86*$J25)+IF(J25>0,$Q$12,0) -> 0 | G76: =($E$31*$I25)+('Incremental Rev Req'!$F$86*$I25)+IF(I25>0,$S$12,0) -> 0 | H76: =($E$34*$J25)+('Incremental Rev Req'!$F$86*$J25)+IF(J25>0,$S$12,0) -> 0 | I76: =($F$31*$I25)+('Incremental Rev Req'!$F$86*$I25)+IF(I25>0,$U$12,0) -> 0 | J76: =($F$34*$J25)+('Incremental Rev Req'!$F$86*$J25)+IF(J25>0,$U$12,0) -> 0
B77: Total | C77: =SUMPRODUCT(C73:C76,$V$22:$V$25) -> 19.49406377 | D77: =SUMPRODUCT(D73:D76,$V$22:$V$25) -> 51.39344085 | E77: 19.69168743 | F77: 51.6149729 | G77: 19.69168743 | H77: 51.91444868 | I77: 24.47149104 | J77: 64.5157491
C80: Typical Monthly Basic Bundled Non-CARE Customer
C81: =C71 -> 2024-01-01 | E81: =E71 -> 2024-12-01 | G81: =G71 -> Authorized | I81: =I71 -> w/Pending
C82: Summer | D82: Winter | E82: Summer | F82: Winter | G82: Summer | H82: Winter | I82: Summer | J82: Winter
B83: =Zones -> SDG&E | C83: =IF($Q31>$I22,C$22*$I22+C$23*($Q31-$I22),$Q31*C$22)+('Incremental Rev Req'!$F$86*$Q31)+IF(Q31>0,$F$12,0) -> 36.86393151 | D83: =IF($R31>$J22,C$25*$J22+C$26*($R31-$J22),$R31*C$25)+('Incremental Rev Req'!$F$86*$R31)+IF(R31>0,$F$12,0) -> 78.62869598 | E83: =IF($Q31>$I22,D$22*$I22+D$23*($Q31-$I22),$Q31*D$22)+('Incremental Rev Req'!$F$86*$Q31)+IF(Q31>0,$F$12,0) -> 37.24442693 | F83: =IF($R31>$J22,D$25*$J22+D$26*($R31-$J22),$R31*D$25)+('Incremental Rev Req'!$F$86*$R31)+IF(R31>0,$F$12,0) -> 79.42542009 | G83: =IF($Q31>$I22,E$22*$I22+E$23*($Q31-$I22),$Q31*E$22)+('Incremental Rev Req'!$F$86*$Q31)+IF(Q31>0,$H$12,0) -> 37.24442693 | H83: =IF($R31>$J22,E$25*$J22+E$26*($R31-$J22),$R31*E$25)+('Incremental Rev Req'!$F$86*$R31)+IF(R31>0,$H$12,0) -> 79.42542009 | I83: =IF($Q31>$I22,F$22*$I22+F$23*($Q31-$I22),$Q31*F$22)+('Incremental Rev Req'!$F$86*$Q31)+IF(Q31>0,$J$12,0) -> 46.28609211 | J83: =IF($R31>$J22,F$25*$J22+F$26*($R31-$J22),$R31*F$25)+('Incremental Rev Req'!$F$86*$R31)+IF(R31>0,$J$12,0) -> 98.70701615
B84: 0 | C84: =IF($Q32>$I23,C$22*$I23+C$23*($Q32-$I23),$Q32*C$22)+('Incremental Rev Req'!$F$86*$Q32)+IF(Q32>0,$F$12,0) -> 0 | D84: =IF($R32>$J23,C$25*$J23+C$26*($R32-$J23),$R32*C$25)+('Incremental Rev Req'!$F$86*$R32)+IF(R32>0,$F$12,0) -> 0 | E84: =IF($Q32>$I23,D$22*$I23+D$23*($Q32-$I23),$Q32*D$22)+('Incremental Rev Req'!$F$86*$Q32)+IF(Q32>0,$F$12,0) -> 0 | F84: =IF($R32>$J23,D$25*$J23+D$26*($R32-$J23),$R32*D$25)+('Incremental Rev Req'!$F$86*$R32)+IF(R32>0,$F$12,0) -> 0 | G84: =IF($Q32>$I23,E$22*$I23+E$23*($Q32-$I23),$Q32*E$22)+('Incremental Rev Req'!$F$86*$Q32)+IF(Q32>0,$H$12,0) -> 0 | H84: =IF($R32>$J23,E$25*$J23+E$26*($R32-$J23),$R32*E$25)+('Incremental Rev Req'!$F$86*$R32)+IF(R32>0,$H$12,0) -> 0 | I84: =IF($Q32>$I23,F$22*$I23+F$23*($Q32-$I23),$Q32*F$22)+('Incremental Rev Req'!$F$86*$Q32)+IF(Q32>0,$J$12,0) -> 0 | J84: =IF($R32>$J23,F$25*$J23+F$26*($R32-$J23),$R32*F$25)+('Incremental Rev Req'!$F$86*$R32)+IF(R32>0,$J$12,0) -> 0
B85: 0 | C85: =IF($Q33>$I24,C$22*$I24+C$23*($Q33-$I24),$Q33*C$22)+('Incremental Rev Req'!$F$86*$Q33)+IF(Q33>0,$F$12,0) -> 0 | D85: =IF($R33>$J24,C$25*$J24+C$26*($R33-$J24),$R33*C$25)+('Incremental Rev Req'!$F$86*$R33)+IF(R33>0,$F$12,0) -> 0 | E85: =IF($Q33>$I24,D$22*$I24+D$23*($Q33-$I24),$Q33*D$22)+('Incremental Rev Req'!$F$86*$Q33)+IF(Q33>0,$F$12,0) -> 0 | F85: =IF($R33>$J24,D$25*$J24+D$26*($R33-$J24),$R33*D$25)+('Incremental Rev Req'!$F$86*$R33)+IF(R33>0,$F$12,0) -> 0 | G85: =IF($Q33>$I24,E$22*$I24+E$23*($Q33-$I24),$Q33*E$22)+('Incremental Rev Req'!$F$86*$Q33)+IF(Q33>0,$H$12,0) -> 0 | H85: =IF($R33>$J24,E$25*$J24+E$26*($R33-$J24),$R33*E$25)+('Incremental Rev Req'!$F$86*$R33)+IF(R33>0,$H$12,0) -> 0 | I85: =IF($Q33>$I24,F$22*$I24+F$23*($Q33-$I24),$Q33*F$22)+('Incremental Rev Req'!$F$86*$Q33)+IF(Q33>0,$J$12,0) -> 0 | J85: =IF($R33>$J24,F$25*$J24+F$26*($R33-$J24),$R33*F$25)+('Incremental Rev Req'!$F$86*$R33)+IF(R33>0,$J$12,0) -> 0
B86: 0 | C86: =IF($Q34>$I25,C$22*$I25+C$23*($Q34-$I25),$Q34*C$22)+('Incremental Rev Req'!$F$86*$Q34)+IF(Q34>0,$F$12,0) -> 0 | D86: =IF($R34>$J25,C$25*$J25+C$26*($R34-$J25),$R34*C$25)+('Incremental Rev Req'!$F$86*$R34)+IF(R34>0,$F$12,0) -> 0 | E86: =IF($Q34>$I25,D$22*$I25+D$23*($Q34-$I25),$Q34*D$22)+('Incremental Rev Req'!$F$86*$Q34)+IF(Q34>0,$F$12,0) -> 0 | F86: =IF($R34>$J25,D$25*$J25+D$26*($R34-$J25),$R34*D$25)+('Incremental Rev Req'!$F$86*$R34)+IF(R34>0,$F$12,0) -> 0 | G86: =IF($Q34>$I25,E$22*$I25+E$23*($Q34-$I25),$Q34*E$22)+('Incremental Rev Req'!$F$86*$Q34)+IF(Q34>0,$H$12,0) -> 0 | H86: =IF($R34>$J25,E$25*$J25+E$26*($R34-$J25),$R34*E$25)+('Incremental Rev Req'!$F$86*$R34)+IF(R34>0,$H$12,0) -> 0 | I86: =IF($Q34>$I25,F$22*$I25+F$23*($Q34-$I25),$Q34*F$22)+('Incremental Rev Req'!$F$86*$Q34)+IF(Q34>0,$J$12,0) -> 0 | J86: =IF($R34>$J25,F$25*$J25+F$26*($R34-$J25),$R34*F$25)+('Incremental Rev Req'!$F$86*$R34)+IF(R34>0,$J$12,0) -> 0
B87: Total | C87: =SUMPRODUCT(C83:C86,$U$22:$U$25) -> 36.86393151 | D87: =SUMPRODUCT(D83:D86,$U$22:$U$25) -> 78.62869598 | E87: =SUMPRODUCT(E83:E86,$U$22:$U$25) -> 37.24442693 | F87: 79.42542009 | G87: 37.24442693 | H87: 79.42542009 | I87: 46.28609211 | J87: 98.70701615
C90: Typical Average Monthly Basic Bundled CARE Customer
C91: =C81 -> 2024-01-01 | E91: =E81 -> 2024-12-01 | G91: =G81 -> Authorized | I91: =I81 -> w/Pending
C92: Summer | D92: Winter | E92: Summer | F92: Winter | G92: Summer | H92: Winter | I92: Summer | J92: Winter
B93: =Zones -> SDG&E | C93: =IF($S31>$I22,C$31*$I22+C$32*($S31-$I22),$S31*C$31)+('Incremental Rev Req'!$F$86*$S31)+IF(S31>0,$Q$12,0) -> 26.47623799 | D93: =IF($T31>$J22,C$34*$J22+C$35*($T31-$J22),$T31*C$34)+('Incremental Rev Req'!$F$86*$T31)+IF(T31>0,$Q$12,0) -> 47.51611064 | E93: =IF($S31>$I22,D$31*$I22+D$32*($S31-$I22),$S31*D$31)+('Incremental Rev Req'!$F$86*$S31)+IF(S31>0,$Q$12,0) -> 26.75290439 | F93: =IF($T31>$J22,D$34*$J22+D$35*($T31-$J22),$T31*D$34)+('Incremental Rev Req'!$F$86*$T31)+IF(T31>0,$Q$12,0) -> 47.72092941 | G93: =IF($S31>$I22,E$31*$I22+E$32*($S31-$I22),$S31*E$31)+('Incremental Rev Req'!$F$86*$S31)+IF(S31>0,$S$12,0) -> 26.75290439 | H93: =IF($T31>$J22,E$34*$J22+E$35*($T31-$J22),$T31*E$34)+('Incremental Rev Req'!$F$86*$T31)+IF(T31>0,$S$12,0) -> 47.99781152 | I93: =IF($S31>$I22,F$31*$I22+F$32*($S31-$I22),$S31*F$31)+('Incremental Rev Req'!$F$86*$S31)+IF(S31>0,$U$12,0) -> 33.24680958 | J93: =IF($T31>$J22,F$34*$J22+F$35*($T31-$J22),$T31*F$34)+('Incremental Rev Req'!$F$86*$T31)+IF(T31>0,$U$12,0) -> 59.64841859
B94: 0 | C94: =IF($S32>$I23,C$31*$I23+C$32*($S32-$I23),$S32*C$31)+('Incremental Rev Req'!$F$86*$S32)+IF(S32>0,$Q$12,0) -> 0 | D94: =IF($T32>$J23,C$34*$J23+C$35*($T32-$J23),$T32*C$34)+('Incremental Rev Req'!$F$86*$T32)+IF(T32>0,$Q$12,0) -> 0 | E94: =IF($S32>$I23,D$31*$I23+D$32*($S32-$I23),$S32*D$31)+('Incremental Rev Req'!$F$86*$S32)+IF(S32>0,$Q$12,0) -> 0 | F94: =IF($T32>$J23,D$34*$J23+D$35*($T32-$J23),$T32*D$34)+('Incremental Rev Req'!$F$86*$T32)+IF(T32>0,$Q$12,0) -> 0 | G94: =IF($S32>$I23,E$31*$I23+E$32*($S32-$I23),$S32*E$31)+('Incremental Rev Req'!$F$86*$S32)+IF(S32>0,$S$12,0) -> 0 | H94: =IF($T32>$J23,E$34*$J23+E$35*($T32-$J23),$T32*E$34)+('Incremental Rev Req'!$F$86*$T32)+IF(T32>0,$S$12,0) -> 0 | I94: =IF($S32>$I23,F$31*$I23+F$32*($S32-$I23),$S32*F$31)+('Incremental Rev Req'!$F$86*$S32)+IF(S32>0,$U$12,0) -> 0 | J94: =IF($T32>$J23,F$34*$J23+F$35*($T32-$J23),$T32*F$34)+('Incremental Rev Req'!$F$86*$T32)+IF(T32>0,$U$12,0) -> 0
B95: 0 | C95: =IF($S33>$I24,C$31*$I24+C$32*($S33-$I24),$S33*C$31)+('Incremental Rev Req'!$F$86*$S33)+IF(S33>0,$Q$12,0) -> 0 | D95: =IF($T33>$J24,C$34*$J24+C$35*($T33-$J24),$T33*C$34)+('Incremental Rev Req'!$F$86*$T33)+IF(T33>0,$Q$12,0) -> 0 | E95: =IF($S33>$I24,D$31*$I24+D$32*($S33-$I24),$S33*D$31)+('Incremental Rev Req'!$F$86*$S33)+IF(S33>0,$Q$12,0) -> 0 | F95: =IF($T33>$J24,D$34*$J24+D$35*($T33-$J24),$T33*D$34)+('Incremental Rev Req'!$F$86*$T33)+IF(T33>0,$Q$12,0) -> 0 | G95: =IF($S33>$I24,E$31*$I24+E$32*($S33-$I24),$S33*E$31)+('Incremental Rev Req'!$F$86*$S33)+IF(S33>0,$S$12,0) -> 0 | H95: =IF($T33>$J24,E$34*$J24+E$35*($T33-$J24),$T33*E$34)+('Incremental Rev Req'!$F$86*$T33)+IF(T33>0,$S$12,0) -> 0 | I95: =IF($S33>$I24,F$31*$I24+F$32*($S33-$I24),$S33*F$31)+('Incremental Rev Req'!$F$86*$S33)+IF(S33>0,$U$12,0) -> 0 | J95: =IF($T33>$J24,F$34*$J24+F$35*($T33-$J24),$T33*F$34)+('Incremental Rev Req'!$F$86*$T33)+IF(T33>0,$U$12,0) -> 0
B96: 0 | C96: =IF($S34>$I25,C$31*$I25+C$32*($S34-$I25),$S34*C$31)+('Incremental Rev Req'!$F$86*$S34)+IF(S34>0,$Q$12,0) -> 0 | D96: =IF($T34>$J25,C$34*$J25+C$35*($T34-$J25),$T34*C$34)+('Incremental Rev Req'!$F$86*$T34)+IF(T34>0,$Q$12,0) -> 0 | E96: =IF($S34>$I25,D$31*$I25+D$32*($S34-$I25),$S34*D$31)+('Incremental Rev Req'!$F$86*$S34)+IF(S34>0,$Q$12,0) -> 0 | F96: =IF($T34>$J25,D$34*$J25+D$35*($T34-$J25),$T34*D$34)+('Incremental Rev Req'!$F$86*$T34)+IF(T34>0,$Q$12,0) -> 0 | G96: =IF($S34>$I25,E$31*$I25+E$32*($S34-$I25),$S34*E$31)+('Incremental Rev Req'!$F$86*$S34)+IF(S34>0,$S$12,0) -> 0 | H96: =IF($T34>$J25,E$34*$J25+E$35*($T34-$J25),$T34*E$34)+('Incremental Rev Req'!$F$86*$T34)+IF(T34>0,$S$12,0) -> 0 | I96: =IF($S34>$I25,F$31*$I25+F$32*($S34-$I25),$S34*F$31)+('Incremental Rev Req'!$F$86*$S34)+IF(S34>0,$U$12,0) -> 0 | J96: =IF($T34>$J25,F$34*$J25+F$35*($T34-$J25),$T34*F$34)+('Incremental Rev Req'!$F$86*$T34)+IF(T34>0,$U$12,0) -> 0
B97: Total | C97: =SUMPRODUCT(C93:C96,$V$22:$V$25) -> 26.47623799 | D97: =SUMPRODUCT(D93:D96,$V$22:$V$25) -> 47.51611064 | E97: 26.75290439 | F97: 47.72092941 | G97: 26.75290439 | H97: 47.99781152 | I97: 33.24680958 | J97: 59.64841859

Sheet Hypothetical Summary
B1: Inputs: | F1: Assumptions:
F2: Current Effective Rates | H2: =SetUp!D4 -> 2024-12-01
C3: Baseline Region - (Residential bill) | D3: SDG&E | F3: Sales Forecast | H3: =Summary!I3 -> 2024
F4: Residential bill calculated using | H4: =Summary!I4 -> Schedule GR, Basic, Bundled, Single Family
D5: Revenue Change ($000) | F5: Non-CARE bill impact calculated with average summer usage of | J5: =IF($D$3="ALL",SUMPRODUCT('Hypothetical Res Bill Impact'!Q22:Q25,'Hypothetical Res Bill Impact'!U22:U25),VLOOKUP($D$3,'Hypothetical Res Bill Impact'!$P$22:$T$25,2,FALSE)) -> 15.83333333 | K5: therms per month
C6: Procurement | F6: Non-CARE bill impact calculated with average winter usage of | J6: =IF($D$3="ALL",SUMPRODUCT('Hypothetical Res Bill Impact'!R22:R25,'Hypothetical Res Bill Impact'!U22:U25),VLOOKUP(D$3,'Hypothetical Res Bill Impact'!$P$22:$T$25,3,FALSE)) -> 34 | K6: therms per month
C7: Customer Costs | F7: CARE bill impact calculated with average summer usage of | J7: =IF($D$3="ALL",SUMPRODUCT('Hypothetical Res Bill Impact'!S22:S25,'Hypothetical Res Bill Impact'!V22:V25),VLOOKUP($D$3,'Hypothetical Res Bill Impact'!$P$22:$T$25,4,FALSE)) -> 15.5 | K7: therms per month
C8: Medium Pressure Distribution | F8: CARE bill impact calculated with average winter usage of | J8: =IF($D$3="ALL",SUMPRODUCT('Hypothetical Res Bill Impact'!T22:T25,'Hypothetical Res Bill Impact'!V22:V25),VLOOKUP($D$3,'Hypothetical Res Bill Impact'!$P$22:$T$25,5,FALSE)) -> 28.16666667 | K8: therms per month
C9: High Pressure Distribution | F9: Average monthly usage is for all customers (Non-CARE and CARE) based on seasonal usage in | K9: =Summary!L9 -> 2023
C10: Local Transmission | F10: Summer season | H10: =Summary!I10 -> 6 | I10: months
C11: Storage | F11: Winter Season | H11: =Summary!I11 -> 6 | I11: months
C12: GHG Revenue
C13: Other Balancing Acounts
C14: NGV Costs
C15: Backbone Transmisson
C16: Public Purpose Programs
C20: Total | D20: =SUM(D6:D18) -> 0
B25: Outputs:
D26: (A) | E26: (B) | F26: (C) | G26: (C)/(A) | H26: (C)/(B) | L26: (A) | M26: (B) | N26: (C) | O26: (C)/(A) | P26: (C)/(B)
B27: Bundled Average Rates - ¢/therm | J27: Total System (Bundled and Unbundled) Average Rates - ¢/therm
B28: Customer Group | D28: =Summary!D26 -> 2024-01-01 | E28: =Summary!E26 -> 2024-12-01 | F28: Proposed | G28: =Summary!H26 -> % Change over 1/1/2024 | H28: =Summary!I26 -> % Change over 12/1/2024 | J28: Customer Group | L28: =D28 -> 2024-01-01 | M28: =E28 -> 2024-12-01 | N28: Proposed | O28: =Summary!P26 -> 2024 Authorized | P28: =Summary!Q26 -> 2024 w/Pending
B29: Residential | D29: 221.1516908 | E29: ='Hypothetical SAR and RAR'!G28 -> 223.4229419 | F29: ='Hypothetical SAR and RAR'!H28 -> 223.4229419 | G29: =$F29/D29-1 -> 0.01027010507 | H29: =$F29/E29-1 -> 0 | J29: Residential | L29: 220.7985912 | M29: ='Hypothetical SAR and RAR'!R28 -> 223.0698423 | N29: ='Hypothetical SAR and RAR'!S28 -> 223.0698423 | O29: =$N29/L29-1 -> 0.01028652896 | P29: =$N29/M29-1 -> 0
B30: System | D30: 126.0723478 | E30: ='Hypothetical SAR and RAR'!G29 -> 127.3753579 | F30: ='Hypothetical SAR and RAR'!H29 -> 127.3753579 | G30: =$F30/D30-1 -> 0.01033541587 | H30: =$F30/E30-1 -> 0 | J30: System | L30: 94.64761593 | M30: ='Hypothetical SAR and RAR'!R29 -> 95.95062608 | N30: ='Hypothetical SAR and RAR'!S29 -> 95.95062608 | O30: =$N30/L30-1 -> 0.01376696212 | P30: =$N30/M30-1 -> 0
B33: Basic Bundled Residential Monthly Average Bills
D34: =$D$28 -> 2024-01-01 | E34: =$E$28 -> 2024-12-01 | F34: =$F$28 -> Proposed | G34: =$G$28 -> % Change over 1/1/2024 | H34: =$H$28 -> % Change over 12/1/2024
B35: Non-CARE | D35: =((D41*$H$10)+(D47*$H$11))/12 -> 56.24960614 | E35: =((E41*$H$10)+(E47*$H$11))/12 -> 56.79967781 | F35: 56.79967781 | G35: =$F35/D35-1 -> 0.009779120325 | H35: 0
B36: CARE | D36: =((D42*$H$10)+(D48*$H$11))/12 -> 38.14325467 | E36: 38.51929 | F36: 38.51929 | G36: 0.0098585015 | H36: 0
B37: Total | D37: =((D43*$H$10)+(D49*$H$11))/12 -> 53.4164913 | E37: 53.93933137 | F37: 53.93933137 | G37: 0.009787989702 | H37: 0 | J37: ='Res Bill Impact'!P18 -> Basic Bundled
J38: ='Res Bill Impact'!P19 -> 2023 Recorded Data - Average Monthly Usage - ALL-BASIC th
B39: Basic Bundled Residential Monthly Average Bills - Summer | J39: Climate Zone | K39: Summer | L39: Winter | M39: Summer | N39: Winter
D40: =D34 -> 2024-01-01 | E40: =E28 -> 2024-12-01 | F40: =F28 -> Proposed | G40: =G28 -> % Change over 1/1/2024 | H40: =$H$28 -> % Change over 12/1/2024 | K40: Non-CARE | M40: CARE
B41: Non-CARE | D41: =IF($D$3="All",'Hypothetical Res Bill Impact'!$C$47,(VLOOKUP($D$3,'Hypothetical Res Bill Impact'!$B$43:$J$46,2,FALSE))) -> 36.25549504 | E41: =IF($D$3="All",'Hypothetical Res Bill Impact'!$E$47,(VLOOKUP($D$3,'Hypothetical Res Bill Impact'!$B$43:$J$46,4,FALSE))) -> 36.61496837 | F41: =IF($D$3="All",'Hypothetical Res Bill Impact'!$G$47,(VLOOKUP($D$3,'Hypothetical Res Bill Impact'!$B$43:$J$46,6,FALSE))) -> 36.61496837 | G41: =$F41/D41-1 -> 0.009915002759 | H41: 0 | J41: =Zones -> SDG&E | K41: ='Hypothetical Res Bill Impact'!Q22 -> 15.83333333 | L41: ='Hypothetical Res Bill Impact'!R22 -> 34 | M41: ='Hypothetical Res Bill Impact'!S22 -> 15.5 | N41: ='Hypothetical Res Bill Impact'!T22 -> 28.16666667
B42: CARE | D42: =IF($D$3="All",'Hypothetical Res Bill Impact'!$C$57,(VLOOKUP($D$3,'Hypothetical Res Bill Impact'!$B$53:$J$56,2,FALSE))) -> 27.77393095 | E42: =IF($D$3="All",'Hypothetical Res Bill Impact'!$E$57,(VLOOKUP($D$3,'Hypothetical Res Bill Impact'!$B$53:$J$56,4,FALSE))) -> 28.05437895 | F42: =IF($D$3="All",'Hypothetical Res Bill Impact'!$G$57,(VLOOKUP($D$3,'Hypothetical Res Bill Impact'!$B$53:$J$56,6,FALSE))) -> 28.05437895 | G42: 0.01009752637 | H42: 0 | J42: 0 | K42: ='Hypothetical Res Bill Impact'!Q23 -> 0 | L42: ='Hypothetical Res Bill Impact'!R23 -> 0 | M42: ='Hypothetical Res Bill Impact'!S23 -> 0 | N42: ='Hypothetical Res Bill Impact'!T23 -> 0
B43: Total | D43: =D41*(1-'Hypothetical SAR and RAR'!$AA$16)+D42*'Hypothetical SAR and RAR'!$AA$16 -> 34.92837814 | E43: =E41*(1-'Hypothetical SAR and RAR'!$AA$16)+E42*'Hypothetical SAR and RAR'!$AA$16 -> 35.27548631 | F43: =F41*(1-'Hypothetical SAR and RAR'!$AA$16)+F42*'Hypothetical SAR and RAR'!$AA$16 -> 35.27548631 | G43: 0.009937712449 | H43: 0 | J43: 0 | K43: ='Hypothetical Res Bill Impact'!Q24 -> 0 | L43: ='Hypothetical Res Bill Impact'!R24 -> 0 | M43: ='Hypothetical Res Bill Impact'!S24 -> 0 | N43: ='Hypothetical Res Bill Impact'!T24 -> 0
J44: 0 | K44: ='Hypothetical Res Bill Impact'!Q25 -> 0 | L44: ='Hypothetical Res Bill Impact'!R25 -> 0 | M44: ='Hypothetical Res Bill Impact'!S25 -> 0 | N44: ='Hypothetical Res Bill Impact'!T25 -> 0
B45: Basic Bundled Residential Monthly Average Bills - Winter
D46: =$D$28 -> 2024-01-01 | E46: =$E$28 -> 2024-12-01 | F46: =F40 -> Proposed | G46: =G28 -> % Change over 1/1/2024 | H46: =$H$28 -> % Change over 12/1/2024
B47: Non-CARE | D47: =IF($D$3="All",'Hypothetical Res Bill Impact'!$D$47,(VLOOKUP($D$3,'Hypothetical Res Bill Impact'!$B$43:$J$46,3,FALSE))) -> 76.24371724 | E47: =IF($D$3="All",'Hypothetical Res Bill Impact'!$F$47,(VLOOKUP($D$3,'Hypothetical Res Bill Impact'!$B$43:$J$46,5,FALSE))) -> 76.98438724 | F47: =IF($D$3="All",'Hypothetical Res Bill Impact'!$H$47,(VLOOKUP($D$3,'Hypothetical Res Bill Impact'!$B$43:$J$46,7,FALSE))) -> 76.98438724 | G47: =$F47/D47-1 -> 0.009714505363 | H47: 0
B48: CARE | D48: =IF($D$3="All",'Hypothetical Res Bill Impact'!$D$57,(VLOOKUP($D$3,'Hypothetical Res Bill Impact'!$B$53:$J$56,3,FALSE))) -> 48.51257839 | E48: =IF($D$3="All",'Hypothetical Res Bill Impact'!$F$57,(VLOOKUP($D$3,'Hypothetical Res Bill Impact'!$B$53:$J$56,5,FALSE))) -> 48.98420105 | F48: =IF($D$3="All",'Hypothetical Res Bill Impact'!$H$57,(VLOOKUP($D$3,'Hypothetical Res Bill Impact'!$B$53:$J$56,7,FALSE))) -> 48.98420105 | G48: 0.0097216574 | H48: 0
B49: Total | D49: =D47*(1-'Hypothetical SAR and RAR'!$AA$16)+D48*'Hypothetical SAR and RAR'!$AA$16 -> 71.90460447 | E49: =E47*(1-'Hypothetical SAR and RAR'!$AA$16)+E48*'Hypothetical SAR and RAR'!$AA$16 -> 72.60317642 | F49: =F47*(1-'Hypothetical SAR and RAR'!$AA$16)+F48*'Hypothetical SAR and RAR'!$AA$16 -> 72.60317642 | G49: 0.009715260386 | H49: 0
B52: Basic Bundled Essential Use Residential Monthly Average Bills
D53: =D46 -> 2024-01-01 | E53: =E46 -> 2024-12-01 | F53: =F46 -> Proposed | G53: =$G$28 -> % Change over 1/1/2024 | H53: % Change over Authorized
B54: Essential Use - Non-CARE | D54: =((D60*$H$10)+(D66*$H$11))/12 -> 43.96880426 | E54: =((E60*$H$10)+(E66*$H$11))/12 -> 44.38740426 | F54: 44.38740426 | G54: =$F54/D54-1 -> 0.009520386261 | H54: 0
B55: Essential Use - CARE | D55: =((D61*$H$10)+(D67*$H$11))/12 -> 34.44680122 | E55: 34.78168122 | F55: 34.78168122 | G55: 0.0097216574 | H55: 0
B56: Total | D56: =((D62*$H$10)+(D68*$H$11))/12 -> 42.47888907 | E56: 42.88438934 | F56: 42.88438934 | G56: 0.009545924473 | H56: 0
J57: ='Res Bill Impact'!H19 -> Essential Usage
B58: Basic Bundled Essential Use Residential Monthly Average Bills - Summer | J58: Monthly Tier 1 Baseline Allowance -BASIC (th)
D59: =D53 -> 2024-01-01 | E59: =E53 -> 2024-12-01 | F59: =F53 -> Proposed | G59: =$G$28 -> % Change over 1/1/2024 | H59: % Change over Authorized | J59: Climate Zone | K59: Summer | L59: Winter
B60: Essential Use - Non-CARE | D60: =IF($D$3="All",'Hypothetical Res Bill Impact'!C67,(VLOOKUP($D$3,'Hypothetical Res Bill Impact'!$B$63:$J$66,2,FALSE))) -> 24.18284234 | E60: =IF($D$3="All",'Hypothetical Res Bill Impact'!E67,(VLOOKUP($D$3,'Hypothetical Res Bill Impact'!$B$63:$J$66,4,FALSE))) -> 24.41307234 | F60: =IF($D$3="All",'Hypothetical Res Bill Impact'!G67,(VLOOKUP($D$3,'Hypothetical Res Bill Impact'!$B$63:$J$66,6,FALSE))) -> 24.41307234 | G60: =$F60/D60-1 -> 0.009520386261 | H60: 0 | J60: =Zones -> SDG&E | K60: ='Hypothetical Res Bill Impact'!I22 -> 11 | L60: ='Hypothetical Res Bill Impact'!J22 -> 29
B61: Essential Use - CARE | D61: =IF($D$3="All",'Hypothetical Res Bill Impact'!C77,(VLOOKUP($D$3,'Hypothetical Res Bill Impact'!$B$73:$J$76,2,FALSE))) -> 18.94574067 | E61: =IF($D$3="All",'Hypothetical Res Bill Impact'!E77,(VLOOKUP($D$3,'Hypothetical Res Bill Impact'!$B$73:$J$76,4,FALSE))) -> 19.12992467 | F61: =IF($D$3="All",'Hypothetical Res Bill Impact'!G77,(VLOOKUP($D$3,'Hypothetical Res Bill Impact'!$B$73:$J$76,6,FALSE))) -> 19.12992467 | G61: 0.0097216574 | H61: 0 | J61: 0 | K61: ='Hypothetical Res Bill Impact'!I23 -> 0 | L61: ='Hypothetical Res Bill Impact'!J23 -> 0
B62: Total | D62: =D60*(1-'Hypothetical SAR and RAR'!$AA$16)+D61*'Hypothetical SAR and RAR'!$AA$16 -> 23.36338899 | E62: =E60*(1-'Hypothetical SAR and RAR'!$AA$16)+E61*'Hypothetical SAR and RAR'!$AA$16 -> 23.58641414 | F62: =F60*(1-'Hypothetical SAR and RAR'!$AA$16)+F61*'Hypothetical SAR and RAR'!$AA$16 -> 23.58641414 | G62: 0.009545924473 | H62: 0 | J62: 0 | K62: ='Hypothetical Res Bill Impact'!I24 -> 0 | L62: ='Hypothetical Res Bill Impact'!J24 -> 0
J63: 0 | K63: ='Hypothetical Res Bill Impact'!I25 -> 0 | L63: ='Hypothetical Res Bill Impact'!J25 -> 0
B64: Basic Bundled Essential Use Residential Monthly Average Bills - Winter
D65: =D59 -> 2024-01-01 | E65: =E59 -> 2024-12-01 | F65: =F59 -> Proposed | G65: =$G$28 -> % Change over 1/1/2024 | H65: % Change over Authorized
B66: Essential Use - Non-CARE | D66: =IF($D$3="All",'Hypothetical Res Bill Impact'!D67,(VLOOKUP($D$3,'Hypothetical Res Bill Impact'!$B$63:$J$66,3,FALSE))) -> 63.75476618 | E66: =IF($D$3="All",'Hypothetical Res Bill Impact'!F67,(VLOOKUP($D$3,'Hypothetical Res Bill Impact'!$B$63:$J$66,5,FALSE))) -> 64.36173618 | F66: =IF($D$3="All",'Hypothetical Res Bill Impact'!H67,(VLOOKUP($D$3,'Hypothetical Res Bill Impact'!$B$63:$J$66,7,FALSE))) -> 64.36173618 | G66: =$F66/D66-1 -> 0.009520386261 | H66: 0
B67: Essential Use - CARE | D67: =IF($D$3="All",'Hypothetical Res Bill Impact'!D77,(VLOOKUP($D$3,'Hypothetical Res Bill Impact'!$B$73:$J$76,3,FALSE))) -> 49.94786177 | E67: =IF($D$3="All",'Hypothetical Res Bill Impact'!F77,(VLOOKUP($D$3,'Hypothetical Res Bill Impact'!$B$73:$J$76,5,FALSE))) -> 50.43343777 | F67: =IF($D$3="All",'Hypothetical Res Bill Impact'!H77,(VLOOKUP($D$3,'Hypothetical Res Bill Impact'!$B$73:$J$76,7,FALSE))) -> 50.43343777 | G67: 0.0097216574 | H67: 0
B68: Total | D68: =D66*(1-'Hypothetical SAR and RAR'!$AA$16)+D67*'Hypothetical SAR and RAR'!$AA$16 -> 61.59438915 | E68: =E66*(1-'Hypothetical SAR and RAR'!$AA$16)+E67*'Hypothetical SAR and RAR'!$AA$16 -> 62.18236454 | F68: =F66*(1-'Hypothetical SAR and RAR'!$AA$16)+F67*'Hypothetical SAR and RAR'!$AA$16 -> 62.18236454 | G68: 0.009545924473 | H68: 0
B71: Basic Bundled Typical Residential Monthly Average Bills
D72: =D65 -> 2024-01-01 | E72: =E65 -> 2024-12-01 | F72: =F65 -> Proposed | G72: =$G$28 -> % Change over 1/1/2024 | H72: % Change over Authorized
B73: 5-Year Average Usage - Non-CARE | D73: =((D79*$H$10)+(D85*$H$11))/12 -> 56.12182574 | E73: =((E79*$H$10)+(E85*$H$11))/12 -> 56.67052946 | F73: 56.67052946 | G73: =$F73/D73-1 -> 0.009777011192 | H73: 0
C74: 5-Year Average Usage - CARE | D74: =((D80*$H$10)+(D86*$H$11))/12 -> 35.95555041 | E74: 36.30911004 | F74: 36.30911004 | G74: 0.009833242246 | H74: 0
B75: Total | D75: =((D81*$H$10)+(D87*$H$11))/12 -> 52.96639302 | E75: 53.4845624 | F75: 53.4845624 | G75: 0.009782983951 | H75: 0 | J75: ='Res Bill Impact'!P27 -> Typical Bundled
J76: ='Res Bill Impact'!P28 -> 2019-2023 Recorded Data - Average Monthly Usage - ALL-BASIC th
B77: Basic Bundled Typical Residential Monthly Average Bills - Summer | J77: Climate Zone | K77: Summer | L77: Winter | M77: Summer | N77: Winter
D78: =D72 -> 2024-01-01 | E78: =E72 -> 2024-12-01 | F78: =F72 -> Proposed | G78: =$G$28 -> % Change over 1/1/2024 | H78: % Change over Authorized | K78: Non-CARE | M78: CARE
B79: 5-Year Average Usage - Non-CARE | D79: =IF($D$3="All",'Hypothetical Res Bill Impact'!C87,(VLOOKUP($D$3,'Hypothetical Res Bill Impact'!$B$83:$J$86,2,FALSE))) -> 35.82688941 | E79: =IF($D$3="All",'Hypothetical Res Bill Impact'!E87,(VLOOKUP($D$3,'Hypothetical Res Bill Impact'!$B$83:$J$86,4,FALSE))) -> 36.18177432 | F79: =IF($D$3="All",'Hypothetical Res Bill Impact'!G87,(VLOOKUP($D$3,'Hypothetical Res Bill Impact'!$B$83:$J$86,6,FALSE))) -> 36.18177432 | G79: =$F79/D79-1 -> 0.009905546298 | H79: 0 | J79: =Zones -> SDG&E | K79: ='Hypothetical Res Bill Impact'!Q31 -> 15.66173941 | L79: ='Hypothetical Res Bill Impact'!R31 -> 34.06927917 | M79: ='Hypothetical Res Bill Impact'!S31 -> 14.45891468 | N79: ='Hypothetical Res Bill Impact'!T31 -> 26.81212205
C80: 5-Year Average Usage - CARE | D80: =IF($D$3="All",'Hypothetical Res Bill Impact'!C97,(VLOOKUP($D$3,'Hypothetical Res Bill Impact'!$B$93:$J$96,2,FALSE))) -> 25.73150888 | E80: =IF($D$3="All",'Hypothetical Res Bill Impact'!E97,(VLOOKUP($D$3,'Hypothetical Res Bill Impact'!$B$93:$J$96,4,FALSE))) -> 25.98968599 | F80: =IF($D$3="All",'Hypothetical Res Bill Impact'!G97,(VLOOKUP($D$3,'Hypothetical Res Bill Impact'!$B$93:$J$96,6,FALSE))) -> 25.98968599 | G80: 0.01003350033 | H80: 0 | J80: 0 | K80: ='Hypothetical Res Bill Impact'!Q32 -> 0 | L80: ='Hypothetical Res Bill Impact'!R32 -> 0 | M80: ='Hypothetical Res Bill Impact'!S32 -> 0 | N80: ='Hypothetical Res Bill Impact'!T32 -> 0
B81: Total | D81: =D79*(1-'Hypothetical SAR and RAR'!$AA$16)+D80*'Hypothetical SAR and RAR'!$AA$16 -> 34.2472574 | E81: =E79*(1-'Hypothetical SAR and RAR'!$AA$16)+E80*'Hypothetical SAR and RAR'!$AA$16 -> 34.58701036 | F81: =F79*(1-'Hypothetical SAR and RAR'!$AA$16)+F80*'Hypothetical SAR and RAR'!$AA$16 -> 34.58701036 | G81: 0.009920589028 | H81: 0 | J81: 0 | K81: ='Hypothetical Res Bill Impact'!Q33 -> 0 | L81: ='Hypothetical Res Bill Impact'!R33 -> 0 | M81: ='Hypothetical Res Bill Impact'!S33 -> 0 | N81: ='Hypothetical Res Bill Impact'!T33 -> 0
J82: 0 | K82: ='Hypothetical Res Bill Impact'!Q34 -> 0 | L82: ='Hypothetical Res Bill Impact'!R34 -> 0 | M82: ='Hypothetical Res Bill Impact'!S34 -> 0 | N82: ='Hypothetical Res Bill Impact'!T34 -> 0
B83: Basic Bundled Typical Residential Monthly Average Bills - Winter
D84: =D78 -> 2024-01-01 | E84: =E78 -> 2024-12-01 | F84: =F78 -> Proposed | G84: =$G$28 -> % Change over 1/1/2024 | H84: % Change over Authorized
B85: 5-Year Average Usage - Non-CARE | D85: =IF($D$3="All",'Hypothetical Res Bill Impact'!D87,(VLOOKUP($D$3,'Hypothetical Res Bill Impact'!$B$83:$J$86,3,FALSE))) -> 76.41676208 | E85: =IF($D$3="All",'Hypothetical Res Bill Impact'!F87,(VLOOKUP($D$3,'Hypothetical Res Bill Impact'!$B$83:$J$86,5,FALSE))) -> 77.1592846 | F85: =IF($D$3="All",'Hypothetical Res Bill Impact'!H87,(VLOOKUP($D$3,'Hypothetical Res Bill Impact'!$B$83:$J$86,7,FALSE))) -> 77.1592846 | G85: =$F85/D85-1 -> 0.009716749374 | H85: 0
C86: 5-Year Average Usage - CARE | D86: =IF($D$3="All",'Hypothetical Res Bill Impact'!D97,(VLOOKUP($D$3,'Hypothetical Res Bill Impact'!$B$93:$J$96,3,FALSE))) -> 46.17959193 | E86: =IF($D$3="All",'Hypothetical Res Bill Impact'!F97,(VLOOKUP($D$3,'Hypothetical Res Bill Impact'!$B$93:$J$96,5,FALSE))) -> 46.6285341 | F86: =IF($D$3="All",'Hypothetical Res Bill Impact'!H97,(VLOOKUP($D$3,'Hypothetical Res Bill Impact'!$B$93:$J$96,7,FALSE))) -> 46.6285341 | G86: 0.0097216574 | H86: 0
B87: Total | D87: =D85*(1-'Hypothetical SAR and RAR'!$AA$16)+D86*'Hypothetical SAR and RAR'!$AA$16 -> 71.68552865 | E87: =E85*(1-'Hypothetical SAR and RAR'!$AA$16)+E86*'Hypothetical SAR and RAR'!$AA$16 -> 72.38211443 | F87: =F85*(1-'Hypothetical SAR and RAR'!$AA$16)+F86*'Hypothetical SAR and RAR'!$AA$16 -> 72.38211443 | G87: 0.009717244093 | H87: 0

Sheet Hypothetical SAR and RAR
C2: Revenue Change ($000)
B3: =RevRecoveryMechanisms -> Core Procurement | C3: ='Hypothetical Summary'!D6 -> 0 | G3: Allocation
B4: Allocated Base Margin | C4: ='Hypothetical Summary'!D7 -> 0 | G4: =TRANSPOSE(RevRecoveryMechanisms) -> Core Procurement | H4: Allocated Base Margin | I4: Distribution | J4: All Residential | K4: Local Transmission | L4: Seasonal Storage | M4: GHG End User | N4: Public Purpose Programs | O4: - | P4: 46% Res (LUAF, Other) | Q4: ECPT | R4: EPAM | S4: CFCA | T4: Non-Residential
B5: Distribution | C5: ='Hypothetical Summary'!D8 -> 0 | F5: Residential | G5: ='SAR and RAR'!G5 -> 0.588631244 | H5: ='SAR and RAR'!H5 -> 0.8281360555 | I5: ='SAR and RAR'!I5 -> 0.6930742196 | J5: ='SAR and RAR'!J5 -> 1 | K5: ='SAR and RAR'!K5 -> 0.4153105798 | L5: ='SAR and RAR'!L5 -> 0.7428982671 | M5: ='SAR and RAR'!M5 -> 0.5237519402 | N5: ='SAR and RAR'!N5 -> 0.474391856 | O5: ='SAR and RAR'!O5 -> 0 | P5: ='SAR and RAR'!P5 -> 0.46 | Q5: ='SAR and RAR'!Q5 -> 0.2823673283 | R5: ='SAR and RAR'!R5 -> 0.8281360555 | S5: ='SAR and RAR'!S5 -> 0.6165889671 | T5: ='SAR and RAR'!T5 -> 0
B6: All Residential | C6: ='Hypothetical Summary'!D9 -> 0
B7: Local Transmission | C7: ='Hypothetical Summary'!D10 -> 0 | G7: Revenue Change ($000) - System
B8: Seasonal Storage | C8: ='Hypothetical Summary'!D11 -> 0 | F8: w/Proposed | G8: =TRANSPOSE(RevRecoveryMechanisms) -> Core Procurement | H8: Allocated Base Margin | I8: Distribution | J8: All Residential | K8: Local Transmission | L8: Seasonal Storage | M8: GHG End User | N8: Public Purpose Programs | O8: - | P8: 46% Res (LUAF, Other) | Q8: ECPT | R8: EPAM | S8: CFCA | T8: Non-Residential
B9: GHG End User | C9: ='Hypothetical Summary'!D12 -> 0 | F9: Residential | G9: =G5*G10 -> 0 | H9: =H5*H10 -> 0 | I9: =I5*I10 -> 0 | J9: 0 | K9: 0 | L9: 0 | M9: 0 | N9: 0 | P9: 0 | Q9: =Q5*Q10 -> 0 | R9: =R5*R10 -> 0 | S9: =S5*S10 -> 0 | T9: 0 | U9: =SUM(G9:T9) -> 0 | V9: Check
B10: Public Purpose Programs | C10: ='Hypothetical Summary'!D13 -> 0 | F10: Total System | G10: =C3 -> 0 | H10: =C4 -> 0 | I10: =C5 -> 0 | J10: =C6 -> 0 | K10: =C7 -> 0 | L10: =C8 -> 0 | M10: =C9 -> 0 | N10: =C10 -> 0 | P10: =C12 -> 0 | Q10: =C13 -> 0 | R10: =C14 -> 0 | S10: =C15 -> 0 | T10: =C16 -> 0 | U10: =SUM(G10:T10) -> 0 | V10: =U10-C17 -> 0
B11: -
B12: 46% Res (LUAF, Other) | C12: ='Hypothetical Summary'!D15 -> 0
B13: ECPT | C13: ='Hypothetical Summary'!D16 -> 0
B14: EPAM | C14: ='Hypothetical Summary'!D17 -> 0
B15: CFCA | C15: ='Hypothetical Summary'!D18 -> 0 | AA15: w/Proposed
B16: Non-Residential | C16: ='Hypothetical Summary'!D14 -> 0 | U16: Total UDC w/Proposed | W16: Commodity w/Proposed | Z16: % of CARE Sales (Bundled) | AA16: ='SAR and RAR'!AC15 -> 0.1564707744
B17: Total | C17: =SUM(C3:C16) -> 0 | G17: Revenue Split - Bundled | U17: Bundled Revenue Change | W17: Bundled Revenue Change
B18: CPUC Fee | C18: ='SAR and RAR'!D18 -> 0.001 | G18: =TRANSPOSE(RevRecoveryMechanisms) -> Core Procurement | H18: Allocated Base Margin | I18: Distribution | J18: All Residential | K18: Local Transmission | L18: Seasonal Storage | M18: GHG End User | N18: Public Purpose Programs | O18: - | P18: 46% Res (LUAF, Other) | Q18: ECPT | R18: EPAM | S18: CFCA | T18: Non-Residential | U18: Total | W18: Total
F19: Residential | G19: 1 | H19: 1 | I19: 1 | J19: 1 | K19: 1 | L19: 1 | M19: 1 | N19: 1 | O19: 1 | P19: 1 | Q19: 1 | R19: 1 | S19: 1 | T19: 0 | U19: =SUMPRODUCT(H9:S9,H19:S19) -> 0 | W19: =SUMPRODUCT(G9,G19) -> 0
F20: Total System | G20: 1 | H20: 1 | I20: 1 | J20: 1 | K20: 1 | L20: 1 | M20: 1 | N20: 1 | O20: 1 | P20: 1 | Q20: 1 | R20: 1 | S20: 1 | T20: 0 | U20: =SUMPRODUCT(H10:S10,H20:S20) -> 0 | W20: =SUMPRODUCT(G10,G20) -> 0
C22: ='SAR and RAR'!C22 -> TCAP D.20-02-045 SALES DETERMINANTS SYSTEM NET | D22: ='SAR and RAR'!D22 -> TCAP D.20-02-045 SALES DETERMINANTS BUNDLED
B23: Residential | C23: ='SAR and RAR'!C23 -> 313234.4093 | D23: ='SAR and RAR'!D23 -> 310981.1947
B24: Total System | C24: ='SAR and RAR'!C24 -> 1109315.342 | D24: ='SAR and RAR'!D24 -> 473212.1866
F26: Bundled | P26: System (Bundled and Unbundled)
F27: =Summary!I3&" Authorized Sales Forecast" -> 2024 Authorized Sales Forecast | G27: ='SAR and RAR'!G27 -> 12/01/2024 Avg Rates(sales adj.) | H27: Proposed Avg Rates | I27: % Change | Q27: =F27 -> 2024 Authorized Sales Forecast | R27: =G27 -> 12/01/2024 Avg Rates(sales adj.) | S27: Proposed Avg Rates | T27: % Change
E28: Residential | F28: ='SAR and RAR'!F28 -> 310981.1947 | G28: 223.4229419 | H28: =(U19/C23*100)+(W19/D23*100)+G28 -> 223.4229419 | I28: =H28/G28-1 -> 0 | P28: Residential | Q28: ='SAR and RAR'!Q28 -> 313234.4093 | R28: 223.0698423 | S28: =U9/Q28*100+R28 -> 223.0698423 | T28: =S28/R28-1 -> 0
E29: Total System | F29: ='SAR and RAR'!F29 -> 473212.1866 | G29: 127.3753579 | H29: =(U20/C24*100)+(W20/D24*100)+G29 -> 127.3753579 | I29: =H29/G29-1 -> 0 | P29: Total System | Q29: ='SAR and RAR'!Q29 -> 1109315.342 | R29: 95.95062608 | S29: =U10/Q29*100+R29 -> 95.95062608 | T29: =S29/R29-1 -> 0

Sheet Hypothetical Res Bill Impact
E3: Schedule GR | P3: Schedule GR [CARE]
E4: =SalesForecastYear -> 2024 | F4: ='Res Bill Impact'!F4 -> 2024-12-01 | G4: ='Res Bill Impact'!G4 -> 2024-12-01 | H4: Proposed | I4: Proposed | P4: =SalesForecastYear -> 2024 | Q4: ='Res Bill Impact'!Q4 -> 2024-12-01 | R4: ='Res Bill Impact'!R4 -> 2024-12-01 | S4: Proposed | T4: Proposed
E5: Sales Forecast | F5: Rates | G5: Revenue | H5: Rates | I5: Revenue | P5: Sales Forecast | Q5: Rates | R5: Revenue | S5: Rates | T5: Revenue
D7: Baseline | E7: ='Res Bill Impact'!E7 -> 187959.3296 | F7: ='Res Bill Impact'!F7 -> 2.218370213 | G7: =F7*E7 -> 416963.378 | H7: =(Y10/SUM(SUM(E7),F9/F7*SUM(E9),SUM(P7)*(Q7/F7),SUM(P9)*(Q9/F7))) -> 2.218370213 | I7: =E7*H7 -> 416963.378 | O7: Baseline | P7: ='Res Bill Impact'!P7 -> 34568.65952 | Q7: ='Res Bill Impact'!Q7 -> 1.738084061 | R7: ='Res Bill Impact'!R7 -> 60083.23612 | S7: =H7*(1+(Q7/F7-1)) -> 1.738084061 | T7: =P7*S7 -> 60083.23612 | X7: Bundled Residential Rev Req
X8: Current | Y8: =(SUM(G7:G12)+SUM(R7:R12)) -> 698319.3955
D9: Non-Baseline | E9: ='Res Bill Impact'!E9 -> 76615.61141 | F9: ='Res Bill Impact'!F9 -> 2.523530213 | G9: =F9*E9 -> 193341.8102 | H9: =F9/F$7*H$7 -> 2.523530213 | I9: =E9*H9 -> 193341.8102 | O9: Non-Baseline | P9: ='Res Bill Impact'!P9 -> 14090.80885 | Q9: ='Res Bill Impact'!Q9 -> 1.982212061 | R9: ='Res Bill Impact'!R9 -> 27930.97125 | S9: =H9*(1+(Q9/F9-1)) -> 1.982212061 | T9: =P9*S9 -> 27930.97125 | X9: Change (Proposed) | Y9: ='Hypothetical SAR and RAR'!U9 -> 0
X10: Proposed (w/ Current Revenues) | Y10: =Y8+Y9 -> 698319.3955
E11: Non-CARE customers | P11: CARE Customers
D12: Fixed Charge | E12: =E13-P12 -> 664014.4092 | F12: 0 | G12: =F12*12*E12/1000 -> 0 | H12: 0 | I12: =(H12*12*E12)/1000 -> 0 | O12: Fixed Charge | P12: 210053 | Q12: =F12*(1-CAREDiscountPercent) -> 0 | R12: =Q12*12*P12/1000 -> 0 | S12: =H12*(1-CAREDiscountPercent) -> 0 | T12: =(S12*12*P12)/1000 -> 0
D13: Total Customers | E13: 874067.4092
P18: ='Res Bill Impact'!P18 -> Basic Bundled
H19: ='Res Bill Impact'!H19 -> Essential Usage | P19: ='Res Bill Impact'!P19 -> 2023 Recorded Data - Average Monthly Usage - ALL-BASIC th
B20: SCHEDULE DR RATES ($/th) | H20: Monthly Tier 1 Baseline Allowance -BASIC (th) | P20: Climate Zone | Q20: Summer | R20: Winter | S20: Summer | T20: Winter | U20: Population Weight
B21: Rates | C21: ='Res Bill Impact'!C21 -> 2024-01-01 | D21: ='Res Bill Impact'!D21 -> 2024-12-01 | E21: Proposed | H21: Climate Zone | I21: Summer | J21: Winter | Q21: Non-CARE | S21: CARE | U21: Non-CARE | V21: CARE
A22: Summer | B22: Tier 1 | C22: 2.197440213 | D22: 2.218370213 | E22: =H7 -> 2.218370213 | H22: =Zones -> SDG&E | I22: ='Res Bill Impact'!I22 -> 11 | J22: ='Res Bill Impact'!J22 -> 29 | P22: =Zones -> SDG&E | Q22: ='Res Bill Impact'!Q22 -> 15.83333333 | R22: ='Res Bill Impact'!R22 -> 34 | S22: ='Res Bill Impact'!S22 -> 15.5 | T22: ='Res Bill Impact'!T22 -> 28.16666667 | U22: =SUM(Q22:R22)/SUM($Q$22:$R$25) -> 1 | V22: =SUM(S22:T22)/SUM($S$22:$T$25) -> 1
B23: Tier 2 | C23: 2.496790213 | D23: 2.523530213 | E23: =H9 -> 2.523530213 | H23: 0 | I23: ='Res Bill Impact'!I23 -> 0 | J23: ='Res Bill Impact'!J23 -> 0 | P23: 0 | Q23: ='Res Bill Impact'!Q23 -> 0 | R23: ='Res Bill Impact'!R23 -> 0 | S23: ='Res Bill Impact'!S23 -> 0 | T23: ='Res Bill Impact'!T23 -> 0 | U23: =SUM(Q23:R23)/SUM($Q$22:$R$25) -> 0 | V23: =SUM(S23:T23)/SUM($S$22:$T$25) -> 0
H24: 0 | I24: ='Res Bill Impact'!I24 -> 0 | J24: ='Res Bill Impact'!J24 -> 0 | P24: 0 | Q24: ='Res Bill Impact'!Q24 -> 0 | R24: ='Res Bill Impact'!R24 -> 0 | S24: ='Res Bill Impact'!S24 -> 0 | T24: ='Res Bill Impact'!T24 -> 0 | U24: =SUM(Q24:R24)/SUM($Q$22:$R$25) -> 0 | V24: =SUM(S24:T24)/SUM($S$22:$T$25) -> 0
A25: Winter | B25: Tier 1 | C25: =C22 -> 2.197440213 | D25: 2.218370213 | E25: 2.218370213 | H25: 0 | I25: ='Res Bill Impact'!I25 -> 0 | J25: ='Res Bill Impact'!J25 -> 0 | P25: 0 | Q25: ='Res Bill Impact'!Q25 -> 0 | R25: ='Res Bill Impact'!R25 -> 0 | S25: ='Res Bill Impact'!S25 -> 0 | T25: ='Res Bill Impact'!T25 -> 0 | U25: =SUM(Q25:R25)/SUM($Q$22:$R$25) -> 0 | V25: =SUM(S25:T25)/SUM($S$22:$T$25) -> 0
B26: Tier 2 | C26: 2.496790213 | D26: 2.523530213 | E26: 2.523530213
P27: ='Res Bill Impact'!P27 -> Typical Bundled
P28: ='Res Bill Impact'!P28 -> 2019-2023 Recorded Data - Average Monthly Usage - ALL-BASIC th
B29: SCHEDULE DR [CARE] ($/th) | P29: Climate Zone | Q29: Summer | R29: Winter | S29: Summer | T29: Winter | U29: Population Weight
B30: Rates | C30: =C21 -> 2024-01-01 | D30: =D21 -> 2024-12-01 | E30: Proposed | Q30: Non-CARE | S30: CARE | U30: Non-CARE | V30: CARE
A31: Summer | B31: Tier 1 | C31: 1.721340061 | D31: 1.738084061 | E31: =S7 -> 1.738084061 | P31: =Zones -> SDG&E | Q31: ='Res Bill Impact'!Q31 -> 15.66173941 | R31: ='Res Bill Impact'!R31 -> 34.06927917 | S31: ='Res Bill Impact'!S31 -> 14.45891468 | T31: ='Res Bill Impact'!T31 -> 26.81212205 | U31: =SUM(Q31:R31)/SUM($Q$31:$R$34) -> 1 | V31: =SUM(S31:T31)/SUM($S$31:$T$34) -> 1
B32: Tier 2 | C32: 1.960820061 | D32: 1.982212061 | E32: =S9 -> 1.982212061 | P32: 0 | U32: =SUM(Q32:R32)/SUM($Q$31:$R$34) -> 0 | V32: =SUM(S32:T32)/SUM($S$31:$T$34) -> 0
P33: 0 | U33: 0 | V33: 0
A34: Winter | B34: Tier 1 | C34: =C31 -> 1.721340061 | D34: 1.738084061 | E34: 1.738084061 | P34: 0 | U34: 0 | V34: 0
B35: Tier 2 | C35: 1.960820061 | D35: 1.982212061 | E35: 1.982212061
B39: Note: Bill inserts include CPUC fee in the calculations
B40: ='Res Bill Impact'!C40 -> 2023 Recorded Average Basic Bundled Non-CARE Customer Bill
C41: =C30 -> 2024-01-01 | E41: =D30 -> 2024-12-01 | G41: =E30 -> Proposed
C42: Summer | D42: Winter | E42: Summer | F42: Winter | G42: Summer | H42: Winter
B43: =Zones -> SDG&E | C43: =IF($Q22>$I22,C$22*$I22+C$23*($Q22-$I22),$Q22*C$22)+('Hypothetical SAR and RAR'!$C$18*$Q22)+IF(Q22>0,$F$12,0) -> 36.25549504 | D43: =IF($R22>$J22,C$25*$J22+C$26*($R22-$J22),$R22*C$25)+('Hypothetical SAR and RAR'!$C$18*$R22)+IF(R22>0,$F$12,0) -> 76.24371724 | E43: =IF($Q22>$I22,D$22*$I22+D$23*($Q22-$I22),$Q22*D$22)+('Hypothetical SAR and RAR'!$C$18*$Q22)+IF(Q22>0,$F$12,0) -> 36.61496837 | F43: =IF($R22>$J22,D$25*$J22+D$26*($R22-$J22),$R22*D$25)+('Hypothetical SAR and RAR'!$C$18*$R22)+IF(R22>0,$F$12,0) -> 76.98438724 | G43: =IF($Q22>$I22,E$22*$I22+E$23*($Q22-$I22),$Q22*E$22)+('Hypothetical SAR and RAR'!$C$18*$Q22)+IF(Q22>0,$H$12,0) -> 36.61496837 | H43: =IF($R22>$J22,E$25*$J22+E$26*($R22-$J22),$R22*E$25)+('Hypothetical SAR and RAR'!$C$18*$R22)+IF(R22>0,$H$12,0) -> 76.98438724
B44: 0 | C44: =IF($Q23>$I23,C$22*$I23+C$23*($Q23-$I23),$Q23*C$22)+('Hypothetical SAR and RAR'!$C$18*$Q23)+IF(Q23>0,$F$12,0) -> 0 | D44: =IF($R23>$J23,C$25*$J23+C$26*($R23-$J23),$R23*C$25)+('Hypothetical SAR and RAR'!$C$18*$R23)+IF(R23>0,$F$12,0) -> 0 | E44: =IF($Q23>$I23,D$22*$I23+D$23*($Q23-$I23),$Q23*D$22)+('Hypothetical SAR and RAR'!$C$18*$Q23)+IF(Q23>0,$F$12,0) -> 0 | F44: =IF($R23>$J23,D$25*$J23+D$26*($R23-$J23),$R23*D$25)+('Hypothetical SAR and RAR'!$C$18*$R23)+IF(R23>0,$F$12,0) -> 0 | G44: =IF($Q23>$I23,E$22*$I23+E$23*($Q23-$I23),$Q23*E$22)+('Hypothetical SAR and RAR'!$C$18*$Q23)+IF(Q23>0,$H$12,0) -> 0 | H44: =IF($R23>$J23,E$25*$J23+E$26*($R23-$J23),$R23*E$25)+('Hypothetical SAR and RAR'!$C$18*$R23)+IF(R23>0,$H$12,0) -> 0
B45: 0 | C45: =IF($Q24>$I24,C$22*$I24+C$23*($Q24-$I24),$Q24*C$22)+('Hypothetical SAR and RAR'!$C$18*$Q24)+IF(Q24>0,$F$12,0) -> 0 | D45: =IF($R24>$J24,C$25*$J24+C$26*($R24-$J24),$R24*C$25)+('Hypothetical SAR and RAR'!$C$18*$R24)+IF(R24>0,$F$12,0) -> 0 | E45: =IF($Q24>$I24,D$22*$I24+D$23*($Q24-$I24),$Q24*D$22)+('Hypothetical SAR and RAR'!$C$18*$Q24)+IF(Q24>0,$F$12,0) -> 0 | F45: =IF($R24>$J24,D$25*$J24+D$26*($R24-$J24),$R24*D$25)+('Hypothetical SAR and RAR'!$C$18*$R24)+IF(R24>0,$F$12,0) -> 0 | G45: =IF($Q24>$I24,E$22*$I24+E$23*($Q24-$I24),$Q24*E$22)+('Hypothetical SAR and RAR'!$C$18*$Q24)+IF(Q24>0,$H$12,0) -> 0 | H45: =IF($R24>$J24,E$25*$J24+E$26*($R24-$J24),$R24*E$25)+('Hypothetical SAR and RAR'!$C$18*$R24)+IF(R24>0,$H$12,0) -> 0
B46: 0 | C46: =IF($Q25>$I25,C$22*$I25+C$23*($Q25-$I25),$Q25*C$22)+('Hypothetical SAR and RAR'!$C$18*$Q25)+IF(Q25>0,$F$12,0) -> 0 | D46: =IF($R25>$J25,C$25*$J25+C$26*($R25-$J25),$R25*C$25)+('Hypothetical SAR and RAR'!$C$18*$R25)+IF(R25>0,$F$12,0) -> 0 | E46: =IF($Q25>$I25,D$22*$I25+D$23*($Q25-$I25),$Q25*D$22)+('Hypothetical SAR and RAR'!$C$18*$Q25)+IF(Q25>0,$F$12,0) -> 0 | F46: =IF($R25>$J25,D$25*$J25+D$26*($R25-$J25),$R25*D$25)+('Hypothetical SAR and RAR'!$C$18*$R25)+IF(R25>0,$F$12,0) -> 0 | G46: =IF($Q25>$I25,E$22*$I25+E$23*($Q25-$I25),$Q25*E$22)+('Hypothetical SAR and RAR'!$C$18*$Q25)+IF(Q25>0,$H$12,0) -> 0 | H46: =IF($R25>$J25,E$25*$J25+E$26*($R25-$J25),$R25*E$25)+('Hypothetical SAR and RAR'!$C$18*$R25)+IF(R25>0,$H$12,0) -> 0
B47: Total | C47: =SUMPRODUCT(C43:C46,$U$22:$U$25) -> 36.25549504 | D47: =SUMPRODUCT(D43:D46,$U$22:$U$25) -> 76.24371724 | E47: 36.61496837 | F47: 76.98438724 | G47: 36.61496837 | H47: 76.98438724
C50: ='Res Bill Impact'!C50 -> 2023 Recorded Average Basic Bundled CARE Customer Bill
C51: =C30 -> 2024-01-01 | E51: =D30 -> 2024-12-01 | G51: =E30 -> Proposed
C52: Summer | D52: Winter | E52: Summer | F52: Winter | G52: Summer | H52: Winter
B53: =Zones -> SDG&E | C53: =IF($S22>$I22,C$31*$I22+C$32*($S22-$I22),$S22*C$31)+('Hypothetical SAR and RAR'!$C$18*$S22)+IF(S22>0,$Q$12,0) -> 27.77393095 | D53: =IF($T22>$J22,C$34*$J22+C$35*($T22-$J22),$T22*C$34)+('Hypothetical SAR and RAR'!$C$18*$T22)+IF(T22>0,$Q$12,0) -> 48.51257839 | E53: =IF($S22>$I22,D$31*$I22+D$32*($S22-$I22),$S22*D$31)+('Hypothetical SAR and RAR'!$C$18*$S22)+IF(S22>0,$Q$12,0) -> 28.05437895 | F53: =IF($T22>$J22,D$34*$J22+D$35*($T22-$J22),$T22*D$34)+('Hypothetical SAR and RAR'!$C$18*$T22)+IF(T22>0,$Q$12,0) -> 48.98420105 | G53: =IF($S22>$I22,E$31*$I22+E$32*($S22-$I22),$S22*E$31)+('Hypothetical SAR and RAR'!$C$18*$S22)+IF(S22>0,$S$12,0) -> 28.05437895 | H53: =IF($T22>$J22,E$34*$J22+E$35*($T22-$J22),$T22*E$34)+('Hypothetical SAR and RAR'!$C$18*$T22)+IF(T22>0,$S$12,0) -> 48.98420105
B54: 0 | C54: =IF($S23>$I23,C$31*$I23+C$32*($S23-$I23),$S23*C$31)+('Hypothetical SAR and RAR'!$C$18*$S23)+IF(S23>0,$Q$12,0) -> 0 | D54: =IF($T23>$J23,C$34*$J23+C$35*($T23-$J23),$T23*C$34)+('Hypothetical SAR and RAR'!$C$18*$T23)+IF(T23>0,$Q$12,0) -> 0 | E54: =IF($S23>$I23,D$31*$I23+D$32*($S23-$I23),$S23*D$31)+('Hypothetical SAR and RAR'!$C$18*$S23)+IF(S23>0,$Q$12,0) -> 0 | F54: =IF($T23>$J23,D$34*$J23+D$35*($T23-$J23),$T23*D$34)+('Hypothetical SAR and RAR'!$C$18*$T23)+IF(T23>0,$Q$12,0) -> 0 | G54: =IF($S23>$I23,E$31*$I23+E$32*($S23-$I23),$S23*E$31)+('Hypothetical SAR and RAR'!$C$18*$S23)+IF(S23>0,$S$12,0) -> 0 | H54: =IF($T23>$J23,E$34*$J23+E$35*($T23-$J23),$T23*E$34)+('Hypothetical SAR and RAR'!$C$18*$T23)+IF(T23>0,$S$12,0) -> 0
B55: 0 | C55: =IF($S24>$I24,C$31*$I24+C$32*($S24-$I24),$S24*C$31)+('Hypothetical SAR and RAR'!$C$18*$S24)+IF(S24>0,$Q$12,0) -> 0 | D55: =IF($T24>$J24,C$34*$J24+C$35*($T24-$J24),$T24*C$34)+('Hypothetical SAR and RAR'!$C$18*$T24)+IF(T24>0,$Q$12,0) -> 0 | E55: =IF($S24>$I24,D$31*$I24+D$32*($S24-$I24),$S24*D$31)+('Hypothetical SAR and RAR'!$C$18*$S24)+IF(S24>0,$Q$12,0) -> 0 | F55: =IF($T24>$J24,D$34*$J24+D$35*($T24-$J24),$T24*D$34)+('Hypothetical SAR and RAR'!$C$18*$T24)+IF(T24>0,$Q$12,0) -> 0 | G55: =IF($S24>$I24,E$31*$I24+E$32*($S24-$I24),$S24*E$31)+('Hypothetical SAR and RAR'!$C$18*$S24)+IF(S24>0,$S$12,0) -> 0 | H55: =IF($T24>$J24,E$34*$J24+E$35*($T24-$J24),$T24*E$34)+('Hypothetical SAR and RAR'!$C$18*$T24)+IF(T24>0,$S$12,0) -> 0
B56: 0 | C56: =IF($S25>$I25,C$31*$I25+C$32*($S25-$I25),$S25*C$31)+('Hypothetical SAR and RAR'!$C$18*$S25)+IF(S25>0,$Q$12,0) -> 0 | D56: =IF($T25>$J25,C$34*$J25+C$35*($T25-$J25),$T25*C$34)+('Hypothetical SAR and RAR'!$C$18*$T25)+IF(T25>0,$Q$12,0) -> 0 | E56: =IF($S25>$I25,D$31*$I25+D$32*($S25-$I25),$S25*D$31)+('Hypothetical SAR and RAR'!$C$18*$S25)+IF(S25>0,$Q$12,0) -> 0 | F56: =IF($T25>$J25,D$34*$J25+D$35*($T25-$J25),$T25*D$34)+('Hypothetical SAR and RAR'!$C$18*$T25)+IF(T25>0,$Q$12,0) -> 0 | G56: =IF($S25>$I25,E$31*$I25+E$32*($S25-$I25),$S25*E$31)+('Hypothetical SAR and RAR'!$C$18*$S25)+IF(S25>0,$S$12,0) -> 0 | H56: =IF($T25>$J25,E$34*$J25+E$35*($T25-$J25),$T25*E$34)+('Hypothetical SAR and RAR'!$C$18*$T25)+IF(T25>0,$S$12,0) -> 0
B57: Total | C57: =SUMPRODUCT(C53:C56,$V$22:$V$25) -> 27.77393095 | D57: =SUMPRODUCT(D53:D56,$V$22:$V$25) -> 48.51257839 | E57: 28.05437895 | F57: 48.98420105 | G57: 28.05437895 | H57: 48.98420105
C60: Essential Usage Basic Bundled Non-CARE Customer
C61: =C51 -> 2024-01-01 | E61: =D30 -> 2024-12-01 | G61: =G51 -> Proposed
C62: Summer | D62: Winter | E62: Summer | F62: Winter | G62: Summer | H62: Winter
B63: =Zones -> SDG&E | C63: =($C$22*$I22)+('Hypothetical SAR and RAR'!$C$18*$I22)+IF(I22>0,$F$12,0) -> 24.18284234 | D63: =($C$25*$J22)+('Hypothetical SAR and RAR'!$C$18*$J22)+IF(J22>0,$F$12,0) -> 63.75476618 | E63: =($D$22*$I22)+('Hypothetical SAR and RAR'!$C$18*$I22)+IF(I22>0,$F$12,0) -> 24.41307234 | F63: =($D$25*$J22)+('Hypothetical SAR and RAR'!$C$18*$J22)+IF(J22>0,$F$12,0) -> 64.36173618 | G63: =($E$22*$I22)+('Hypothetical SAR and RAR'!$C$18*$I22)+IF(I22>0,$H$12,0) -> 24.41307234 | H63: =($E$25*$J22)+('Hypothetical SAR and RAR'!$C$18*$J22)+IF(J22>0,$H$12,0) -> 64.36173618
B64: 0 | C64: =($C$22*$I23)+('Hypothetical SAR and RAR'!$C$18*$I23)+IF(I23>0,$F$12,0) -> 0 | D64: =($C$25*$J23)+('Hypothetical SAR and RAR'!$C$18*$J23)+IF(J23>0,$F$12,0) -> 0 | E64: =($D$22*$I23)+('Hypothetical SAR and RAR'!$C$18*$I23)+IF(I23>0,$F$12,0) -> 0 | F64: =($D$25*$J23)+('Hypothetical SAR and RAR'!$C$18*$J23)+IF(J23>0,$F$12,0) -> 0 | G64: =($E$22*$I23)+('Hypothetical SAR and RAR'!$C$18*$I23)+IF(I23>0,$H$12,0) -> 0 | H64: =($E$25*$J23)+('Hypothetical SAR and RAR'!$C$18*$J23)+IF(J23>0,$H$12,0) -> 0
B65: 0 | C65: =($C$22*$I24)+('Hypothetical SAR and RAR'!$C$18*$I24)+IF(I24>0,$F$12,0) -> 0 | D65: =($C$25*$J24)+('Hypothetical SAR and RAR'!$C$18*$J24)+IF(J24>0,$F$12,0) -> 0 | E65: =($D$22*$I24)+('Hypothetical SAR and RAR'!$C$18*$I24)+IF(I24>0,$F$12,0) -> 0 | F65: =($D$25*$J24)+('Hypothetical SAR and RAR'!$C$18*$J24)+IF(J24>0,$F$12,0) -> 0 | G65: =($E$22*$I24)+('Hypothetical SAR and RAR'!$C$18*$I24)+IF(I24>0,$H$12,0) -> 0 | H65: =($E$25*$J24)+('Hypothetical SAR and RAR'!$C$18*$J24)+IF(J24>0,$H$12,0) -> 0
B66: 0 | C66: =($C$22*$I25)+('Hypothetical SAR and RAR'!$C$18*$I25)+IF(I25>0,$F$12,0) -> 0 | D66: =($C$25*$J25)+('Hypothetical SAR and RAR'!$C$18*$J25)+IF(J25>0,$F$12,0) -> 0 | E66: =($D$22*$I25)+('Hypothetical SAR and RAR'!$C$18*$I25)+IF(I25>0,$F$12,0) -> 0 | F66: =($D$25*$J25)+('Hypothetical SAR and RAR'!$C$18*$J25)+IF(J25>0,$F$12,0) -> 0 | G66: =($E$22*$I25)+('Hypothetical SAR and RAR'!$C$18*$I25)+IF(I25>0,$H$12,0) -> 0 | H66: =($E$25*$J25)+('Hypothetical SAR and RAR'!$C$18*$J25)+IF(J25>0,$H$12,0) -> 0
B67: Total | C67: =SUMPRODUCT(C63:C66,$U$22:$U$25) -> 24.18284234 | D67: =SUMPRODUCT(D63:D66,$U$22:$U$25) -> 63.75476618 | E67: =SUMPRODUCT(E63:E66,$U$22:$U$25) -> 24.41307234 | F67: 64.36173618 | G67: 24.41307234 | H67: 64.36173618
C70: Essential Usage Basic Bundled CARE Customer
C71: =C51 -> 2024-01-01 | E71: =E61 -> 2024-12-01 | G71: =G61 -> Proposed
C72: Summer | D72: Winter | E72: Summer | F72: Winter | G72: Summer | H72: Winter
B73: =Zones -> SDG&E | C73: =($C$31*$I22)+('Hypothetical SAR and RAR'!$C$18*$I22)+IF(I22>0,$Q$12,0) -> 18.94574067 | D73: =($C$34*$J22)+('Hypothetical SAR and RAR'!$C$18*$J22)+IF(J22>0,$Q$12,0) -> 49.94786177 | E73: =($D$31*$I22)+('Hypothetical SAR and RAR'!$C$18*$I22)+IF(I22>0,$Q$12,0) -> 19.12992467 | F73: =($D$34*$J22)+('Hypothetical SAR and RAR'!$C$18*$J22)+IF(J22>0,$Q$12,0) -> 50.43343777 | G73: =($E$31*$I22)+('Hypothetical SAR and RAR'!$C$18*$I22)+IF(I22>0,$S$12,0) -> 19.12992467 | H73: =($E$34*$J22)+('Hypothetical SAR and RAR'!$C$18*$J22)+IF(J22>0,$S$12,0) -> 50.43343777
B74: 0 | C74: =($C$31*$I23)+('Hypothetical SAR and RAR'!$C$18*$I23)+IF(I23>0,$Q$12,0) -> 0 | D74: =($C$34*$J23)+('Hypothetical SAR and RAR'!$C$18*$J23)+IF(J23>0,$Q$12,0) -> 0 | E74: =($D$31*$I23)+('Hypothetical SAR and RAR'!$C$18*$I23)+IF(I23>0,$Q$12,0) -> 0 | F74: =($D$34*$J23)+('Hypothetical SAR and RAR'!$C$18*$J23)+IF(J23>0,$Q$12,0) -> 0 | G74: =($E$31*$I23)+('Hypothetical SAR and RAR'!$C$18*$I23)+IF(I23>0,$S$12,0) -> 0 | H74: =($E$34*$J23)+('Hypothetical SAR and RAR'!$C$18*$J23)+IF(J23>0,$S$12,0) -> 0
B75: 0 | C75: =($C$31*$I24)+('Hypothetical SAR and RAR'!$C$18*$I24)+IF(I24>0,$Q$12,0) -> 0 | D75: =($C$34*$J24)+('Hypothetical SAR and RAR'!$C$18*$J24)+IF(J24>0,$Q$12,0) -> 0 | E75: =($D$31*$I24)+('Hypothetical SAR and RAR'!$C$18*$I24)+IF(I24>0,$Q$12,0) -> 0 | F75: =($D$34*$J24)+('Hypothetical SAR and RAR'!$C$18*$J24)+IF(J24>0,$Q$12,0) -> 0 | G75: =($E$31*$I24)+('Hypothetical SAR and RAR'!$C$18*$I24)+IF(I24>0,$S$12,0) -> 0 | H75: =($E$34*$J24)+('Hypothetical SAR and RAR'!$C$18*$J24)+IF(J24>0,$S$12,0) -> 0
B76: 0 | C76: =($C$31*$I25)+('Hypothetical SAR and RAR'!$C$18*$I25)+IF(I25>0,$Q$12,0) -> 0 | D76: =($C$34*$J25)+('Hypothetical SAR and RAR'!$C$18*$J25)+IF(J25>0,$Q$12,0) -> 0 | E76: =($D$31*$I25)+('Hypothetical SAR and RAR'!$C$18*$I25)+IF(I25>0,$Q$12,0) -> 0 | F76: =($D$34*$J25)+('Hypothetical SAR and RAR'!$C$18*$J25)+IF(J25>0,$Q$12,0) -> 0 | G76: =($E$31*$I25)+('Hypothetical SAR and RAR'!$C$18*$I25)+IF(I25>0,$S$12,0) -> 0 | H76: =($E$34*$J25)+('Hypothetical SAR and RAR'!$C$18*$J25)+IF(J25>0,$S$12,0) -> 0
B77: Total | C77: =SUMPRODUCT(C73:C76,$V$22:$V$25) -> 18.94574067 | D77: =SUMPRODUCT(D73:D76,$V$22:$V$25) -> 49.94786177 | E77: 19.12992467 | F77: 50.43343777 | G77: 19.12992467 | H77: 50.43343777
C80: Typical Monthly Usage Basic Bundled Non-CARE Customer
C81: =C71 -> 2024-01-01 | E81: =E71 -> 2024-12-01 | G81: =G71 -> Proposed
C82: Summer | D82: Winter | E82: Summer | F82: Winter | G82: Summer | H82: Winter
B83: =Zones -> SDG&E | C83: =IF($Q31>$I22,C$22*$I22+C$23*($Q31-$I22),$Q31*C$22)+('Hypothetical SAR and RAR'!$C$18*$Q31)+IF(Q31>0,$F$12,0) -> 35.82688941 | D83: =IF($R31>$J22,C$25*$J22+C$26*($R31-$J22),$R31*C$25)+('Hypothetical SAR and RAR'!$C$18*$R31)+IF(R31>0,$F$12,0) -> 76.41676208 | E83: =IF($Q31>$I22,D$22*$I22+D$23*($Q31-$I22),$Q31*D$22)+('Hypothetical SAR and RAR'!$C$18*$Q31)+IF(Q31>0,$F$12,0) -> 36.18177432 | F83: =IF($R31>$J22,D$25*$J22+D$26*($R31-$J22),$R31*D$25)+('Hypothetical SAR and RAR'!$C$18*$R31)+IF(R31>0,$F$12,0) -> 77.1592846 | G83: =IF($Q31>$I22,E$22*$I22+E$23*($Q31-$I22),$Q31*E$22)+('Hypothetical SAR and RAR'!$C$18*$Q31)+IF(Q31>0,$H$12,0) -> 36.18177432 | H83: =IF($R31>$J22,E$25*$J22+E$26*($R31-$J22),$R31*E$25)+('Hypothetical SAR and RAR'!$C$18*$R31)+IF(R31>0,$H$12,0) -> 77.1592846
B84: 0 | C84: =IF($Q32>$I23,C$22*$I23+C$23*($Q32-$I23),$Q32*C$22)+('Hypothetical SAR and RAR'!$C$18*$Q32)+IF(Q32>0,$F$12,0) -> 0 | D84: =IF($R32>$J23,C$25*$J23+C$26*($R32-$J23),$R32*C$25)+('Hypothetical SAR and RAR'!$C$18*$R32)+IF(R32>0,$F$12,0) -> 0 | E84: =IF($Q32>$I23,D$22*$I23+D$23*($Q32-$I23),$Q32*D$22)+('Hypothetical SAR and RAR'!$C$18*$Q32)+IF(Q32>0,$F$12,0) -> 0 | F84: =IF($R32>$J23,D$25*$J23+D$26*($R32-$J23),$R32*D$25)+('Hypothetical SAR and RAR'!$C$18*$R32)+IF(R32>0,$F$12,0) -> 0 | G84: =IF($Q32>$I23,E$22*$I23+E$23*($Q32-$I23),$Q32*E$22)+('Hypothetical SAR and RAR'!$C$18*$Q32)+IF(Q32>0,$H$12,0) -> 0 | H84: =IF($R32>$J23,E$25*$J23+E$26*($R32-$J23),$R32*E$25)+('Hypothetical SAR and RAR'!$C$18*$R32)+IF(R32>0,$H$12,0) -> 0
B85: 0 | C85: =IF($Q33>$I24,C$22*$I24+C$23*($Q33-$I24),$Q33*C$22)+('Hypothetical SAR and RAR'!$C$18*$Q33)+IF(Q33>0,$F$12,0) -> 0 | D85: =IF($R33>$J24,C$25*$J24+C$26*($R33-$J24),$R33*C$25)+('Hypothetical SAR and RAR'!$C$18*$R33)+IF(R33>0,$F$12,0) -> 0 | E85: =IF($Q33>$I24,D$22*$I24+D$23*($Q33-$I24),$Q33*D$22)+('Hypothetical SAR and RAR'!$C$18*$Q33)+IF(Q33>0,$F$12,0) -> 0 | F85: =IF($R33>$J24,D$25*$J24+D$26*($R33-$J24),$R33*D$25)+('Hypothetical SAR and RAR'!$C$18*$R33)+IF(R33>0,$F$12,0) -> 0 | G85: =IF($Q33>$I24,E$22*$I24+E$23*($Q33-$I24),$Q33*E$22)+('Hypothetical SAR and RAR'!$C$18*$Q33)+IF(Q33>0,$H$12,0) -> 0 | H85: =IF($R33>$J24,E$25*$J24+E$26*($R33-$J24),$R33*E$25)+('Hypothetical SAR and RAR'!$C$18*$R33)+IF(R33>0,$H$12,0) -> 0
B86: 0 | C86: =IF($Q34>$I25,C$22*$I25+C$23*($Q34-$I25),$Q34*C$22)+('Hypothetical SAR and RAR'!$C$18*$Q34)+IF(Q34>0,$F$12,0) -> 0 | D86: =IF($R34>$J25,C$25*$J25+C$26*($R34-$J25),$R34*C$25)+('Hypothetical SAR and RAR'!$C$18*$R34)+IF(R34>0,$F$12,0) -> 0 | E86: =IF($Q34>$I25,D$22*$I25+D$23*($Q34-$I25),$Q34*D$22)+('Hypothetical SAR and RAR'!$C$18*$Q34)+IF(Q34>0,$F$12,0) -> 0 | F86: =IF($R34>$J25,D$25*$J25+D$26*($R34-$J25),$R34*D$25)+('Hypothetical SAR and RAR'!$C$18*$R34)+IF(R34>0,$F$12,0) -> 0 | G86: =IF($Q34>$I25,E$22*$I25+E$23*($Q34-$I25),$Q34*E$22)+('Hypothetical SAR and RAR'!$C$18*$Q34)+IF(Q34>0,$H$12,0) -> 0 | H86: =IF($R34>$J25,E$25*$J25+E$26*($R34-$J25),$R34*E$25)+('Hypothetical SAR and RAR'!$C$18*$R34)+IF(R34>0,$H$12,0) -> 0
B87: Total | C87: =SUMPRODUCT(C83:C86,$U$22:$U$25) -> 35.82688941 | D87: =SUMPRODUCT(D83:D86,$U$22:$U$25) -> 76.41676208 | E87: 36.18177432 | F87: 77.1592846 | G87: 36.18177432 | H87: 77.1592846
C90: Typical Monthly Usage Basic Bundled CARE Customer
C91: =C81 -> 2024-01-01 | E91: =E81 -> 2024-12-01 | G91: =G81 -> Proposed
C92: Summer | D92: Winter | E92: Summer | F92: Winter | G92: Summer | H92: Winter
B93: =Zones -> SDG&E | C93: =IF($S31>$I22,C$31*$I22+C$32*($S31-$I22),$S31*C$31)+('Hypothetical SAR and RAR'!$C$18*$S31)+IF(S31>0,$Q$12,0) -> 25.73150888 | D93: =IF($T31>$J22,C$34*$J22+C$35*($T31-$J22),$T31*C$34)+('Hypothetical SAR and RAR'!$C$18*$T31)+IF(T31>0,$Q$12,0) -> 46.17959193 | E93: =IF($S31>$I22,D$31*$I22+D$32*($S31-$I22),$S31*D$31)+('Hypothetical SAR and RAR'!$C$18*$S31)+IF(S31>0,$Q$12,0) -> 25.98968599 | F93: =IF($T31>$J22,D$34*$J22+D$35*($T31-$J22),$T31*D$34)+('Hypothetical SAR and RAR'!$C$18*$T31)+IF(T31>0,$Q$12,0) -> 46.6285341 | G93: =IF($S31>$I22,E$31*$I22+E$32*($S31-$I22),$S31*E$31)+('Hypothetical SAR and RAR'!$C$18*$S31)+IF(S31>0,$S$12,0) -> 25.98968599 | H93: =IF($T31>$J22,E$34*$J22+E$35*($T31-$J22),$T31*E$34)+('Hypothetical SAR and RAR'!$C$18*$T31)+IF(T31>0,$S$12,0) -> 46.6285341
B94: 0 | C94: =IF($S32>$I23,C$31*$I23+C$32*($S32-$I23),$S32*C$31)+('Hypothetical SAR and RAR'!$C$18*$S32)+IF(S32>0,$Q$12,0) -> 0 | D94: =IF($T32>$J23,C$34*$J23+C$35*($T32-$J23),$T32*C$34)+('Hypothetical SAR and RAR'!$C$18*$T32)+IF(T32>0,$Q$12,0) -> 0 | E94: =IF($S32>$I23,D$31*$I23+D$32*($S32-$I23),$S32*D$31)+('Hypothetical SAR and RAR'!$C$18*$S32)+IF(S32>0,$Q$12,0) -> 0 | F94: =IF($T32>$J23,D$34*$J23+D$35*($T32-$J23),$T32*D$34)+('Hypothetical SAR and RAR'!$C$18*$T32)+IF(T32>0,$Q$12,0) -> 0 | G94: =IF($S32>$I23,E$31*$I23+E$32*($S32-$I23),$S32*E$31)+('Hypothetical SAR and RAR'!$C$18*$S32)+IF(S32>0,$S$12,0) -> 0 | H94: =IF($T32>$J23,E$34*$J23+E$35*($T32-$J23),$T32*E$34)+('Hypothetical SAR and RAR'!$C$18*$T32)+IF(T32>0,$S$12,0) -> 0
B95: 0 | C95: =IF($S33>$I24,C$31*$I24+C$32*($S33-$I24),$S33*C$31)+('Hypothetical SAR and RAR'!$C$18*$S33)+IF(S33>0,$Q$12,0) -> 0 | D95: =IF($T33>$J24,C$34*$J24+C$35*($T33-$J24),$T33*C$34)+('Hypothetical SAR and RAR'!$C$18*$T33)+IF(T33>0,$Q$12,0) -> 0 | E95: =IF($S33>$I24,D$31*$I24+D$32*($S33-$I24),$S33*D$31)+('Hypothetical SAR and RAR'!$C$18*$S33)+IF(S33>0,$Q$12,0) -> 0 | F95: =IF($T33>$J24,D$34*$J24+D$35*($T33-$J24),$T33*D$34)+('Hypothetical SAR and RAR'!$C$18*$T33)+IF(T33>0,$Q$12,0) -> 0 | G95: =IF($S33>$I24,E$31*$I24+E$32*($S33-$I24),$S33*E$31)+('Hypothetical SAR and RAR'!$C$18*$S33)+IF(S33>0,$S$12,0) -> 0 | H95: =IF($T33>$J24,E$34*$J24+E$35*($T33-$J24),$T33*E$34)+('Hypothetical SAR and RAR'!$C$18*$T33)+IF(T33>0,$S$12,0) -> 0
B96: 0 | C96: =IF($S34>$I25,C$31*$I25+C$32*($S34-$I25),$S34*C$31)+('Hypothetical SAR and RAR'!$C$18*$S34)+IF(S34>0,$Q$12,0) -> 0 | D96: =IF($T34>$J25,C$34*$J25+C$35*($T34-$J25),$T34*C$34)+('Hypothetical SAR and RAR'!$C$18*$T34)+IF(T34>0,$Q$12,0) -> 0 | E96: =IF($S34>$I25,D$31*$I25+D$32*($S34-$I25),$S34*D$31)+('Hypothetical SAR and RAR'!$C$18*$S34)+IF(S34>0,$Q$12,0) -> 0 | F96: =IF($T34>$J25,D$34*$J25+D$35*($T34-$J25),$T34*D$34)+('Hypothetical SAR and RAR'!$C$18*$T34)+IF(T34>0,$Q$12,0) -> 0 | G96: =IF($S34>$I25,E$31*$I25+E$32*($S34-$I25),$S34*E$31)+('Hypothetical SAR and RAR'!$C$18*$S34)+IF(S34>0,$S$12,0) -> 0 | H96: =IF($T34>$J25,E$34*$J25+E$35*($T34-$J25),$T34*E$34)+('Hypothetical SAR and RAR'!$C$18*$T34)+IF(T34>0,$S$12,0) -> 0
B97: Total | C97: =SUMPRODUCT(C93:C96,$V$22:$V$25) -> 25.73150888 | D97: =SUMPRODUCT(D93:D96,$V$22:$V$25) -> 46.17959193 | E97: 25.98968599 | F97: 46.6285341 | G97: 25.98968599 | H97: 46.6285341

Sheet SetUp
C4: Current Quarter Effective Rate Date | D4: 2024-12-01 | F4: Zones | H4: Revenue Recovery Mechanisms | J4: Years Available for Rate Impact | K4: Procurement Rate Assumption
C5: Beginning of Year Effecive Rate Date | D5: 2024-01-01 | F5: SDG&E | H5: Core Procurement | J5: 2024 | K5: 0.5480233333
C6: Care Discount % | D6: 0.2 | H6: Allocated Base Margin | J6: =J5+1 -> 2025 | K6: =K5*(1+L6) -> 0.6028256667 | L6: 0.1
C7: Proposed Residential Fixed Charge | D7: 0 | H7: Distribution | J7: =J6+1 -> 2026 | K7: 0.6631082333 | L7: 0.1
H8: All Residential | J8: 2027 | K8: 0.7294190567 | L8: 0.1
F9: All | H9: Local Transmission | J9: 2028 | K9: 0.8023609623 | L9: 0.1
H10: Seasonal Storage
H11: GHG End User | J11: =J5-1 -> 2023 | K11: 0.7947016667
C12: Regulatory Fee | D12: 0.001 | H12: Public Purpose Programs
H13: -
F14: Other Revenues | H14: 46% Res (LUAF, Other)
F15: and Balancing | H15: ECPT
F16: Accouns | H16: EPAM
H17: CFCA
H18: Non-Residential
H21: Procurement
H22: Customer Costs
H23: Medium Pressure Distribution
H24: High Pressure Distribution
H25: Local Transmission
H26: Storage
H27: GHG Revenue
H28: Other Balancing Acounts
H29: NGV Costs
H30: Backbone Transmisson
H31: Public Purpose Programs
